{"text_format":"1","workbook":"xlsx","n_sheets":24,"sheets":["Accueil","Données Elec","Tutoriel Chauffage","Chauffage","PDF chauffage","Tutoriel double service","Double Service Elec","PDF Double Service Elec","Données Double Service Elec","Données ECS Double Service Elec","Tutoriel ECS","ECS","PDF ECS","Données ECS","Données ECS ECS","Tutoriel chauffage Hybride","Chauffage hybride","Données Hybride","PDF chauffage Hybride","Préférence Pac","Validation des Données","Informations Devis","Schématèque","ImageDimensionsPac"],"not_rendered":{"charts":0,"images":124,"macros":1,"external_links":0,"defined_names":364,"comments":4,"pivot_tables":0},"unopened":[],"bounds":{"document_bytes":16777216,"sheet_cells":100000,"rows_first":2000,"rows_last":500,"rows_between":2000,"halvings":0,"cell_chars":16384,"cell_head_chars":4096},"cells_cut":0,"cells_raw":0,"read":"whole","date_system":"1900"}

{"sheet":"Accueil","index":0,"n_rows":43,"n_cols":12,"rows_kept":43,"cut":false,"hidden":false,"merged":[[42,6,42,7],[42,8,42,9],[42,10,42,11],[14,4,15,6],[14,7,15,10],[23,4,24,6],[14,11,15,15],[39,3,39,5],[41,3,41,5],[41,6,41,7],[41,8,41,9],[41,10,41,11],[20,1,21,3],[29,1,30,3],[33,2,43,2],[34,3,34,5],[35,3,35,5],[37,3,37,5],[38,3,38,5],[43,3,43,5],[42,3,42,5],[9,1,10,12],[1,3,3,10],[2,11,2,12],[2,14,2,17],[5,2,5,11],[6,2,6,11]]}
[]
[null,null,null,"OUTIL DE DIMENSIONNEMENT IZEA"]
[null,null,null,null,null,null,null,null,null,null,null,{"$f":"\"Version \"&version","v":"Version 3.1"}]
[]
[]
[null,null,"Cet utilitaire de dimensionnement vous accompagne dans vos projets de chauffage thermodynamique collectif et tertiaire."]
[null,null,"Identifiez la solution Izea la plus adaptée à votre projet grâce aux nombreux filtres de comparaisons."]
[]
[]
[null,"Accédez à 4 interfaces, pour le chauffage 100% électrique,le chauffage hybride, le double service 100% électrique ou l'ECS 100% électrique."]
[]
[]
[]
[]
[null,null,null,null,"Chauffage 100% électrique",null,null,"Double service 100% électrique",null,null,null,"ECS 100% électrique"]
[]
[]
[]
[]
[]
[null,"100% électrique"]
[]
[]
[null,null,null,null,"Chauffage Hybride"]
[]
[]
[]
[]
[]
[null,"Hybride"]
[]
[]
[]
[null,null,"IZEA"]
[null,null,null,"Fluide frigorigène: R290"]
[null,null,null,"GWP = 3"]
[]
[null,null,null,"Température max: 75°C"]
[]
[null,null,null,"PAC Monobloc"]
[]
[null,null,null,"De 15 à 50 kW*",null,null,"Châssis S",null,"Châssis M",null,"Châssis L"]
[null,null,null,"*pour Text 7°C / Eau 35°C",null,null,"Izea 15-18",null,"Izea 23-27",null,"Izea 40-50"]

{"sheet":"Données Elec","index":1,"n_rows":50,"n_cols":8,"rows_kept":50,"cut":false,"hidden":true,"merged":[[16,7,49,7],[0,0,15,0],[0,1,5,1],[12,1,15,1],[6,1,11,1],[16,0,49,0],[17,1,19,1],[20,1,29,1],[30,1,32,1],[33,1,35,1],[36,1,39,1],[40,1,45,1],[46,1,47,1],[48,1,49,1]]}
["Entrées","Localisation","Ville",{"$f":"Chauffage!G16","v":"01 - AMBERIEU"}]
[null,null,"Altitude",{"$f":"Chauffage!G18","v":250}]
[null,null,"Température de base (Tbase)",{"$f":"Chauffage!G20","v":-11}]
[null,null,"Température été (Tete)",35]
[null,null,"Traitement Anti Corrosion",{"$f":"Chauffage!G22=\"Oui\"","v":false}]
[null,null,"BordDeMer / Montagne",{"$f":"IF(Chauffage!C24 = \"\",\"\",Chauffage!G24=\"Oui\")","v":""}]
[null,"Installation","Distance PAC / ballon",{"$f":"Chauffage!R16","v":5}]
[null,null,"Distance PAC / Bâtiment",{"$f":"Chauffage!R18","v":2}]
[null,null,"taux de glycol",{"$f":"Chauffage!R20","v":0}]
[null,null,"Hauteur sous plafond",{"$f":"IF(Chauffage!R24=\"\",\"\",Chauffage!R24)","v":""}]
[null,null,"Largeur de porte",{"$f":"IF(Chauffage!R26=\"\",\"\",Chauffage!R26)","v":""}]
[null,null,"Gamme de Pac",{"$f":"IF(E12= 1,\"AHP60\",\"AHP70\")","v":"AHP70"},2]
[null,"Circuit.s","Type",{"$f":"\"\"&Chauffage!F38","v":""},{"$f":"\"\"&Chauffage!I38","v":""},{"$f":"\"\"&Chauffage!L38","v":""},{"$f":"\"\"&Chauffage!O38","v":""},{"$f":"\"\"&Chauffage!R38","v":""}]
[null,null,"Puissance circuit",{"$f":"IF(Chauffage!F40 = \"\", \"\", Chauffage!F40)","v":""},{"$f":"IF(Chauffage!I40 = \"\", \"\", Chauffage!I40)","v":""},{"$f":"IF(Chauffage!L40 = \"\", \"\", Chauffage!L40)","v":""},{"$f":"IF(Chauffage!O40 = \"\", \"\", Chauffage!O40)","v":""},{"$f":"IF(Chauffage!R40 = \"\", \"\", Chauffage!R40)","v":""}]
[null,null,"Consigne de départ",{"$f":"IF(Chauffage!F42 = \"\", \"\", Chauffage!F42)","v":""},{"$f":"IF(Chauffage!I42 = \"\", \"\", Chauffage!I42)","v":""},{"$f":"IF(Chauffage!L42 = \"\", \"\", Chauffage!L42)","v":""},{"$f":"IF(Chauffage!O42 = \"\", \"\", Chauffage!O42)","v":""},{"$f":"IF(Chauffage!R42 = \"\", \"\", Chauffage!R42)","v":""}]
[null,null,"Delta T",{"$f":"IF(Chauffage!F44 = \"\", \"\", Chauffage!F44)","v":""},{"$f":"IF(Chauffage!I44 = \"\", \"\", Chauffage!I44)","v":""},{"$f":"IF(Chauffage!L44 = \"\", \"\", Chauffage!L44)","v":""},{"$f":"IF(Chauffage!O44 = \"\", \"\", Chauffage!O44)","v":""},{"$f":"IF(Chauffage!R44 = \"\", \"\", Chauffage!R44)","v":""}]
["Sorties","Solutions","nom","Economique","Encombrement","Max Thermo",null,"Système choisi pour générer le PDF"]
[null,"Pac","nom Pac"]
[null,null,"nb Pac"]
[null,null,"ChassisPac"]
[null,"Ballon & Appoints","Puissance App élec total"]
[null,null,"Ballon de charge 1"]
[null,null,"Ballon de charge 1 Appoint 1"]
[null,null,"Ballon de charge 1 Appoint 2"]
[null,null,"Ballon de charge 1 Appoint 3"]
[null,null,"Ballon de charge 2"]
[null,null,"Ballon Supplémentaire"]
[null,null,"Ballon Sup Appoint 1"]
[null,null,"Ballon Sup Appoint 2"]
[null,null,"Ballon Sup Appoint 3"]
[null,"Stats","Part PAC à Tbase"]
[null,null,"Puissance PAC à Tbase"]
[null,null,"Taux de couverture PAC annuel estimé"]
[null,"Besoins Elec","Puissance électrique max"]
[null,null,"Intensité électrique max"]
[null,null,"Puissance active"]
[null,"Hydraulique","Débit PAC préconisé"]
[null,null,"Diamètre préconisé des canalisations"]
[null,null,"HMT disponible"]
[null,null,"Pression maximale"]
[null,"Dimensions","Surface nécessaire installation PAC"]
[null,null,"Hauteur Pac"]
[null,null,"Largeur Pac"]
[null,null,"Profondeur Pac"]
[null,null,"Hauteur du plus gros ballon"]
[null,null,"Diametre du plus gros ballon"]
[null,"Puissance Sonore","P.sonore Charge partielle"]
[null,null,"P.sonore Pleine charge"]
[null,"Prix","PPHT estimé"]
[null,null,"code schéma"]

{"sheet":"Tutoriel Chauffage","index":2,"n_rows":68,"n_cols":6,"rows_kept":68,"cut":false,"hidden":false,"merged":[[53,4,54,16],[62,4,63,16],[28,3,29,4],[28,5,29,6],[38,4,39,16],[43,1,43,2],[44,1,44,2],[45,4,46,16],[17,3,18,16],[20,1,20,2],[24,3,25,4],[24,5,25,6],[26,3,27,4],[26,5,27,6],[1,2,2,6],[7,1,7,2],[9,1,9,2],[11,3,12,16],[14,1,14,2],[14,3,15,16]]}
[]
[null,null,"Tutoriel interface chauffage"]
[]
[]
[null,"Utilisez cette interface afin de dimensionner votre projet de chauffage 100% thermodynamique en plusieurs étapes:"]
[]
["1)","Paramétrez votre étude en remplissant les différents champs de données d'entrées:"]
[null,"Référence de l'étude",null,"Donnez un nom à votre étude, celui-ci sera le nom du document généré à l'issue de l'étude"]
[]
[null,"Localisation",null,"Indiquez la station météo la plus proche de votre projet, vous pouvez ensuite ajuster l'altitude ou directement la température extérieure de base"]
[null,null,null,"Choisissez si vous voulez appliquer un traitement anti-corrosion à la PAC"]
[null,null,null,"Pour certaines stations météo vous devrez indiquer si vous vous trouvez dans une zone montagne ou bord de mer: cela applique automatiquement un facteur correctif sur les performances de la PAC"]
[]
[]
[null,"Installation",null,"Indiquez les distances entre la PAC et le batiment et entre la PAC et le ballon, afin d'estimer le volume primaire contenu dans les canalisations. Si vous ne les connaissez pas, des valeurs par défaut sont initialisées"]
[]
[null,null,null,"Si votre installation nécessite du glycol, indiquez le taux de glycol (10% maximum). Autrement, laissez 0%."]
[null,null,null,"Si vous avez des contraintes de tailles (hauteur sous plafond, passage de porte etc) veuillez les indiquer dans le champs contraintes chaufferie. Le volume primaire de votre solution sera, si possible, adapté à ces contraintes."]
[]
[]
[null,"Circuits de chauffage",null,"Paramétrez jusqu'à 5 circuits de chauffage. Appuyez sur \"+\" pour ajouter et sur \"-\" pour retirer un circuit."]
[null,null,null,"Indiquez le type de circuit (constant ou régulé) ainsi que sa puissance. "]
[null,null,null,"Renseignez la consigne de température associée au circuit: Attention, les consignes de départ maximales diffèrent selon le type de circuits:"]
[]
[null,null,null,"Type de circuit",null,"Consigne départ maximale (°C)"]
[]
[null,null,null,"Circuit régulé",null,75]
[]
[null,null,null,"Circuit constant",null,70]
[]
[]
[null,null,null,"Renseignez enfin le delta T du circuit: différence de température entre le départ et retour du circuit"]
[]
["2)","Générez des solutions, en cliquant sur le bouton prévu à cet effet"]
[]
["3)","Identifiez la solution la plus adaptée à votre projet: "]
[null,"Faites votre choix parmi 3 solutions complètes:"]
[null,"La solution la plus économique:",null,null,"Solution respectant le DTU 65-16 lorsque les données d’entrées le permettent (Part PAC à Tbase > 70%) et la moins chère en termes de coûts de fourniture."]
[null,"La solution la moins encombrante",null,null,"Solution respectant le DTU 65-16 lorsque les données d’entrées le permettent (Part PAC à Tbase > 70%) et occupant le moins de place en extérieur (surface PAC + dégagements) Cette solution peut parfois être la même que la solution « la + économique »."]
[]
[null,"La solution \"max thermo\"",null,null,"Solution avec la part PAC à Tbase la plus grande, afin de maximiser la part ENR et de diminuer les appoints électriques."]
[]
[null,"Accédez à de nombreuses données techniques sur les solutions proposées:"]
[null,"PAC",null,null,"Choix de la PAC et nombre"]
[null,"Appoint électrique total",null,null,"Somme des appoints électriques dimensionnés, voir dans les trois lignes en dessous leur répartition dans les différents ballons"]
[null,"Ballons de charge / supplémentaires",null,null,"Possibilité de solutions jusqu’à 3 ballons :ballon de charge 1 et 2 et ballon supplémentaire. Description dans la ligne inférieure de la répartition des appoints électriques."]
[]
[]
[null,"Part PAC à Tbase",null,null,"Part PAC à Tbase de la solution correspondante. Critère déterminant pour le respect du DTU 65-16, un message s’affiche pour confirmer ou non le respect du DTU 65-16 "]
[null,"Puissance totale PAC à Tbase",null,null,"Puissance calorifique totale à Tbase de la solution"]
[null,"Taux de couverture PAC annuel estimé",null,null,"Taux de couverture annuel estimé pour la solution"]
[]
[null,"Données électriques",null,null,"Puissance et intensité électrique max associées à la solution: PAC + Appoint(s) électrique(s). "]
[null,null,null,null,"Puissance apparente associée à la solution (seulement PAC + appoint). Permet de donner une indication sur la possibilité ou non pour le client d’un tarif bleu. Un message s’affiche lorsque le tarif bleu est jugé possible, sur la base des données PAC et appoints."]
[]
[null,"Données hydrauliques",null,null,"Débit PAC préconisé de la solution, Diamètre des canalisations préconisé entre la/les PAC et le ballon. Hauteur manométrique disponible pour la solution "]
[null,null,null,null,"Pression maximale: Attention: la pression maximale est de 6 bar pour Izea châssis M et L. La pression max est de 3 bar pour Izea châssis S"]
[]
[null,"Données dimensionnelles",null,null,"Surface nécessaire à l’installation PAC, dimensions pour 1 PAC, hauteur et diamètre du plus gros ballon"]
[]
[null,"Données acoustiques",null,null,"\nPuissance sonore pour la solution PAC à pleine charge et puissance sonore pour une PAC à charge partielle, selon la norme EN 12102"]
[]
[null,"Coût",null,null,"Prix Public Hors Taxe de la solution choisie. Il s’agit d’une enveloppe qui comprend le prix du système PAC + ballon(s) + appoint(s) + systèmes de régulation et accessoires obligatoires. Le devis final peut légèrement différer de cette enveloppe."]
[]
["4)","Cliquez sur \"générer étude de prédimensionnement\" afin d'être redirigé vers la synthèse de l'étude"]
[null,"Vous retrouverez sur cette onglet un récapitulatif de votre étude ainsi qu'un schéma de principe de votre solution PAC et les dimensions de la PAC sélectionnée."]
[]
["5)","Cliquez sur \"télecharger le rapport\" si vous souhaitez sauvegarder votre étude sur votre PC"]

{"sheet":"Chauffage","index":3,"n_rows":108,"n_cols":22,"rows_kept":108,"cut":false,"hidden":false,"merged":[[21,2,21,5],[25,17,25,18],[23,2,23,4],[23,6,23,8],[23,17,23,18],[41,17,41,18],[43,17,43,18],[35,14,35,15],[37,14,37,15],[39,14,39,15],[41,14,41,15],[43,14,43,15],[35,17,35,18],[37,17,37,18],[39,17,39,18],[41,11,41,12],[43,11,43,12],[35,8,35,9],[37,8,37,9],[39,8,39,9],[41,8,41,9],[43,8,43,9],[35,11,35,12],[37,11,37,12],[39,11,39,12],[76,20,77,20],[0,7,1,15],[15,6,15,8],[8,5,8,17],[19,17,19,18],[15,17,15,18],[17,17,17,18],[19,2,19,5],[37,5,37,6],[35,5,35,6],[39,5,39,6],[51,1,51,21],[17,6,17,8],[19,6,19,8],[21,6,21,8],[41,5,41,6],[58,14,58,15],[65,8,65,11],[65,13,65,16],[76,19,77,19],[76,15,77,15],[76,10,77,10],[76,14,77,14],[76,9,77,9],[74,3,74,6],[71,3,72,6],[72,8,72,11],[58,9,58,10],[63,8,63,11],[68,8,68,11],[67,8,67,11],[72,30,72,31],[43,5,43,6],[67,18,67,21],[67,13,67,16],[62,18,62,21],[62,8,62,11],[62,13,62,16],[72,18,72,21],[72,13,72,16],[63,18,63,21],[63,13,63,16],[58,19,58,20],[72,25,72,26],[68,13,68,16],[68,18,68,21],[65,18,65,21],[101,3,101,6],[92,3,92,6],[103,2,103,6],[105,2,105,6],[104,3,104,6],[83,3,84,6],[84,8,84,11],[76,3,77,6],[95,3,95,6],[99,3,99,6],[86,3,86,6],[107,7,108,7],[84,13,84,16],[84,18,84,21],[107,8,108,9],[87,3,89,6],[107,4,108,6],[97,13,97,15],[97,18,97,20],[107,20,108,20],[107,15,108,15],[107,10,108,10],[107,13,108,14],[107,18,108,19],[97,8,97,10],[97,3,97,6],[90,3,90,6]]}
[null,null,null,null,null,null,null,"APPLICATION  CHAUFFAGE"]
[]
[]
[]
[]
[]
[]
[]
[null,null,null,null,null,"Référence"]
[]
[]
[]
[]
[]
[]
[null,null,"Ville",null,null,null,"01 - AMBERIEU",null,null,null,null,null,null,"Distance PAC / ballon",null,null,null,5,null,"m"]
[]
[null,null,"Altitude",null,null,null,250,null,null,"m",null,null,null,"Distance PAC / Bâtiment",null,null,null,2,null,"m"]
[]
[null,null,"T° extérieure de base (Tbase)",null,null,null,-11,null,null,"°C",null,null,null,"Taux de glycol",null,null,null,0,null,"%"]
[]
[null,null,"Traitement Anti Corrosion",null,null,null,"Non",null,null,null,null,null,null,"Contraintes local technique / accès (si connues)"]
[]
[null,null,{"$f":"IF(VLOOKUP(G16,'Validation des Données'!A3:B174,2,FALSE)=0,\"\",VLOOKUP(G16,'Validation des Données'!A3:B174,2,FALSE))","v":""},null,null,null,null,null,null,null,null,null,null,"Hauteur sous plafond",null,null,null,null,null,"mm"]
[]
[null,null,null,null,null,null,null,null,null,null,null,null,null,"Largeur de passage",null,null,null,null,null,"mm"]
[]
[]
[]
[]
[null,null,null,null,null,null,null,null,null,null,null,"*Pris en charge par la PAC"]
[]
[null,null,null,null,null,null,null,null,null,"Ajouter un circuit",null,null,null,"Supprimer un circuit"]
[]
[]
[null,null,null,null,null,"Circuit 1"]
[]
[null,null,null,"Type"]
[]
[null,null,null,"Puissance circuit",null,null,null,"kW",null,null,"kW",null,null,"kW",null,null,"kW",null,null,"kW"]
[]
[null,null,null,"Consigne de départ",null,null,null,"°C",null,null,"°C",null,null,"°C",null,null,"°C",null,null,"°C"]
[]
[null,null,null,"Delta T°",null,null,null,"K",null,null,"K",null,null,"K",null,null,"K",null,null,"K"]
[]
[]
[]
[]
[]
[]
[]
[null,"Ce dimensionnement est réalisé à titre indicatif afin de guider l'utilisateur vers un système en fonction des données d'entrées renseignées. Il ne remplace pas une étude de dimensionnement finale effectuée par le service Avant Vente ACV."]
[]
[]
[]
[]
[]
[]
[null,null,null,null,null,null,"PAC",null,null,{"$f":"IF(ISBLANK('Données Elec'!D18),\"\",_xlfn.TEXTJOIN(\" x \", TRUE, 'Données Elec'!D19, 'Données Elec'!D18))","v":""},null,null,null,null,{"$f":"IF(ISBLANK('Données Elec'!E18),\"\",_xlfn.TEXTJOIN(\" x \", TRUE, 'Données Elec'!E19, 'Données Elec'!E18))","v":""},null,null,null,null,{"$f":"IF(ISBLANK('Données Elec'!F18),\"\",_xlfn.TEXTJOIN(\" x \", TRUE, 'Données Elec'!F19, 'Données Elec'!F18))","v":""}]
[]
[null,null,null,null,null,null,"Appoint électrique total",null,null,{"$f":"IF(ISBLANK('Données Elec'!D21),\"\",'Données Elec'!D21)","v":""},"kW",null,null,null,{"$f":"IF(ISBLANK('Données Elec'!E21),\"\",'Données Elec'!E21)","v":""},"kW",null,null,null,{"$f":"IF(ISBLANK('Données Elec'!F21),\"\",'Données Elec'!F21)","v":""},"kW"]
[]
[null,null,null,null,null,null,"Ballon de charge 1",null,{"$f":"IF(ISBLANK('Données Elec'!D22),\"\",'Données Elec'!D22)","v":""},null,null,null,null,{"$f":"IF(ISBLANK('Données Elec'!E22),\"\",'Données Elec'!E22)","v":""},null,null,null,null,{"$f":"IF(ISBLANK('Données Elec'!F22),\"\",'Données Elec'!F22)","v":""}]
[null,null,null,null,null,null,"Appoint.s équipé.s",null,{"$f":"_xlfn.TEXTJOIN(\" + \",TRUE,_xlfn.MAP('Données Elec'!D23:D25,_xlfn.LAMBDA(_xlpm.puissance,IF(_xlpm.puissance=\"\",\"\",_xlpm.puissance&\" kW\"))))","v":""},null,null,null,null,{"$f":"_xlfn.TEXTJOIN(\" + \",TRUE,_xlfn.MAP('Données Elec'!E23:E25,_xlfn.LAMBDA(_xlpm.puissance,IF(_xlpm.puissance=\"\",\"\",_xlpm.puissance&\" kW\"))))","v":""},null,null,null,null,{"$f":"_xlfn.TEXTJOIN(\" + \",TRUE,_xlfn.MAP('Données Elec'!F23:F25,_xlfn.LAMBDA(_xlpm.puissance,IF(_xlpm.puissance=\"\",\"\",_xlpm.puissance&\" kW\"))))","v":""}]
[]
[null,null,null,null,null,null,"Ballon de charge 2",null,{"$f":"IF(ISBLANK('Données Elec'!D26),\"\",'Données Elec'!D26)","v":""},null,null,null,null,{"$f":"IF(ISBLANK('Données Elec'!E26),\"\",'Données Elec'!E26)","v":""},null,null,null,null,{"$f":"IF(ISBLANK('Données Elec'!F26),\"\",'Données Elec'!F26)","v":""}]
[]
[null,null,null,null,null,null,"Ballon Supplémentaire",null,{"$f":"IF(ISBLANK('Données Elec'!D27),\"\",'Données Elec'!D27)","v":""},null,null,null,null,{"$f":"IF(ISBLANK('Données Elec'!E27),\"\",'Données Elec'!E27)","v":""},null,null,null,null,{"$f":"IF(ISBLANK('Données Elec'!F27),\"\",'Données Elec'!F27)","v":""}]
[null,null,null,null,null,null,"Appoint.s équipé.s",null,{"$f":"_xlfn.TEXTJOIN(\" + \",TRUE,_xlfn.MAP('Données Elec'!D28:D30,_xlfn.LAMBDA(_xlpm.puissance,IF(_xlpm.puissance=\"\",\"\",_xlpm.puissance&\" kW\"))))","v":""},null,null,null,null,{"$f":"_xlfn.TEXTJOIN(\" + \",TRUE,_xlfn.MAP('Données Elec'!E28:E30,_xlfn.LAMBDA(_xlpm.puissance,IF(_xlpm.puissance=\"\",\"\",_xlpm.puissance&\" kW\"))))","v":""},null,null,null,null,{"$f":"_xlfn.TEXTJOIN(\" + \",TRUE,_xlfn.MAP('Données Elec'!F28:F30,_xlfn.LAMBDA(_xlpm.puissance,IF(_xlpm.puissance=\"\",\"\",_xlpm.puissance&\" kW\"))))","v":""}]
[]
[]
[null,null,null,"Part PAC à Tbase",null,null,null,null,null,{"$f":"IF(ISBLANK('Données Elec'!D31),\"\",'Données Elec'!D31 * 100)","v":""},"%",null,null,null,{"$f":"IF(ISBLANK('Données Elec'!E31),\"\",'Données Elec'!E31 * 100)","v":""},"%",null,null,null,{"$f":"IF(ISBLANK('Données Elec'!F31),\"\",'Données Elec'!F31 * 100)","v":""},"%"]
[null,null,null,null,null,null,null,null,{"$f":"IF(ISBLANK('Données Elec'!D31),\"\",IF('Données Elec'!D31>=0.695,\"Cette solution respecte le DTU 65-16\",\"Cette solution ne respecte pas le DTU 65-16\"))","v":""},null,null,null,null,{"$f":"IF(ISBLANK('Données Elec'!E31),\"\",IF('Données Elec'!E31>=0.695,\"Cette solution respecte le DTU 65-16\",\"Cette solution ne respecte pas le DTU 65-16\"))","v":""},null,null,null,null,{"$f":"IF(ISBLANK('Données Elec'!F31),\"\",IF('Données Elec'!F31>=0.695,\"Cette solution respecte le DTU 65-16\",\"Cette solution ne respecte pas le DTU 65-16\"))","v":""}]
[]
[null,null,null,"Puissance Totale PAC à Tbase",null,null,null,null,null,{"$f":"IF(ISBLANK('Données Elec'!D32),\"\",'Données Elec'!D32)","v":""},"kW",null,null,null,{"$f":"IF(ISBLANK('Données Elec'!E32),\"\",'Données Elec'!E32)","v":""},"kW",null,null,null,{"$f":"IF(ISBLANK('Données Elec'!F32),\"\",'Données Elec'!F32)","v":""},"kW"]
[]
[null,null,null,"Taux de couverture PAC annuel estimé",null,null,null,null,null,{"$f":"IF(ISBLANK('Données Elec'!D33),\"\",'Données Elec'!D33 * 100)","v":""},"%",null,null,null,{"$f":"IF(ISBLANK('Données Elec'!E33),\"\",'Données Elec'!E33 * 100)","v":""},"%",null,null,null,{"$f":"IF(ISBLANK('Données Elec'!F33),\"\",'Données Elec'!F33 * 100)","v":""},"%"]
[]
[]
[null,null,null,null,null,null,"Puissance électrique max",null,null,{"$f":"IF(ISBLANK('Données Elec'!D34),\"\",'Données Elec'!D34)","v":""},"kW",null,null,null,{"$f":"IF(ISBLANK('Données Elec'!E34),\"\",'Données Elec'!E34)","v":""},"kW",null,null,null,{"$f":"IF(ISBLANK('Données Elec'!F34),\"\",'Données Elec'!F34)","v":""},"kW"]
[]
[null,null,null,null,null,null,"Intensité électrique max",null,null,{"$f":"IF(ISBLANK('Données Elec'!D35),\"\",'Données Elec'!D35)","v":""},"A",null,null,null,{"$f":"IF(ISBLANK('Données Elec'!E35),\"\",'Données Elec'!E35)","v":""},"A",null,null,null,{"$f":"IF(ISBLANK('Données Elec'!F35),\"\",'Données Elec'!F35)","v":""},"A"]
[]
[null,null,null,"Puissance apparente",null,null,null,null,null,{"$f":"IF(ISBLANK('Données Elec'!D36),\"\",'Données Elec'!D36)","v":""},"kVA",null,null,null,{"$f":"IF(ISBLANK('Données Elec'!E36),\"\",'Données Elec'!E36)","v":""},"kVA",null,null,null,{"$f":"IF(ISBLANK('Données Elec'!F36),\"\",'Données Elec'!F36)","v":""},"kVA"]
[]
[]
[null,null,null,"Débit global PAC préconisé",null,null,null,null,null,{"$f":"IF(ISBLANK('Données Elec'!D37),\"\",'Données Elec'!D37)","v":""},"m³/h",null,null,null,{"$f":"IF(ISBLANK('Données Elec'!E37),\"\",'Données Elec'!E37)","v":""},"m³/h",null,null,null,{"$f":"IF(ISBLANK('Données Elec'!F37),\"\",'Données Elec'!F37)","v":""},"m³/h"]
[null,null,null,"Diamètre préconisé des canalisations"]
[null,null,null,null,null,null,null,null,null,{"$f":"IF(ISBLANK('Données Elec'!D38),\"\",'Données Elec'!D38)","v":""},null,null,null,null,{"$f":"IF(ISBLANK('Données Elec'!E38),\"\",'Données Elec'!E38)","v":""},null,null,null,null,{"$f":"IF(ISBLANK('Données Elec'!F38),\"\",'Données Elec'!F38)","v":""}]
[]
[null,null,null,"HMT disponible",null,null,null,null,null,{"$f":"IF(ISBLANK('Données Elec'!D39),\"\",'Données Elec'!D39)","v":""},"kPa",null,null,null,{"$f":"IF(ISBLANK('Données Elec'!E39),\"\",'Données Elec'!E39)","v":""},"kPa",null,null,null,{"$f":"IF(ISBLANK('Données Elec'!F39),\"\",'Données Elec'!F39)","v":""},"kPa"]
[]
[null,null,null,"Pression maximum de service",null,null,null,null,null,{"$f":"IF(ISBLANK('Données Elec'!D40),\"\",'Données Elec'!D40)","v":""},"bar",null,null,null,{"$f":"IF(ISBLANK('Données Elec'!E40),\"\",'Données Elec'!E40)","v":""},"bar",null,null,null,{"$f":"IF(ISBLANK('Données Elec'!E40),\"\",'Données Elec'!E40)","v":""},"bar"]
[]
[]
[null,null,null,"Surface nécessaire installation PAC",null,null,null,null,null,{"$f":"IF(ISBLANK('Données Elec'!D41),\"\",'Données Elec'!D41)","v":""},"m²",null,null,null,{"$f":"IF(ISBLANK('Données Elec'!E41),\"\",'Données Elec'!E41)","v":""},"m²",null,null,null,{"$f":"IF(ISBLANK('Données Elec'!F41),\"\",'Données Elec'!F41)","v":""},"m²"]
[]
[null,null,null,"Dimensions 1 PAC (HxLxP)",null,null,null,null,{"$f":"IF(ISBLANK('Données Elec'!D42),\"\",_xlfn.TEXTJOIN(\" x \",TRUE, 'Données Elec'!D42:D44))","v":""},null,null,"mm",null,{"$f":"IF(ISBLANK('Données Elec'!E42),\"\",_xlfn.TEXTJOIN(\" x \",TRUE, 'Données Elec'!E42:E44))","v":""},null,null,"mm",null,{"$f":"IF(ISBLANK('Données Elec'!F42),\"\",_xlfn.TEXTJOIN(\" x \",TRUE, 'Données Elec'!F42:F44))","v":""},null,null,"mm"]
[]
[null,null,null,"Hauteur minimale local",null,null,null,null,null,{"$f":"IF(ISBLANK('Données Elec'!D45),\"\",'Données Elec'!D45)","v":""},"mm",null,null,null,{"$f":"IF(ISBLANK('Données Elec'!E45),\"\",'Données Elec'!E45)","v":""},"mm",null,null,null,{"$f":"IF(ISBLANK('Données Elec'!F45),\"\",'Données Elec'!F45)","v":""},"mm"]
[]
[null,null,null,"Largeur de passage minimale local",null,null,null,null,null,{"$f":"IF(ISBLANK('Données Elec'!D46),\"\",'Données Elec'!D46)","v":""},"mm",null,null,null,{"$f":"IF(ISBLANK('Données Elec'!E46),\"\",'Données Elec'!E46)","v":""},"mm",null,null,null,{"$f":"IF(ISBLANK('Données Elec'!F46),\"\",'Données Elec'!F46)","v":""},"mm"]
[]
[null,null,"Puissance sonore 1 PAC à charge partielle\nPuissance sonore 1 PAC à charge partielle\nPuissance sonore 1 PAC à charge partielle",null,null,null,null,null,null,{"$f":"IF(ISBLANK('Données Elec'!D47),\"\",'Données Elec'!D47)","v":""},"dB(A)",null,null,null,{"$f":"IF(ISBLANK('Données Elec'!E47),\"\",'Données Elec'!E47)","v":""},"dB(A)",null,null,null,{"$f":"IF(ISBLANK('Données Elec'!F47),\"\",'Données Elec'!F47)","v":""},"dB(A)"]
[null,null,null,"Selon la norme EN 12-102"]
[null,null,"Puissance sonore totale à pleine charge",null,null,null,null,null,null,{"$f":"IF(ISBLANK('Données Elec'!D48),\"\",'Données Elec'!D48)","v":""},"dB(A)",null,null,null,{"$f":"IF(ISBLANK('Données Elec'!E48),\"\",'Données Elec'!E48)","v":""},"dB(A)",null,null,null,{"$f":"IF(ISBLANK('Données Elec'!F48),\"\",'Données Elec'!F48)","v":""},"dB(A)"]
[]
[null,null,null,null,"PPHT estimé",null,null,null,{"$f":"IF(ISBLANK('Données Elec'!D49),\"\",'Données Elec'!D49)","v":""},null,"€",null,null,{"$f":"IF(ISBLANK('Données Elec'!E49),\"\",'Données Elec'!E49)","v":""},null,"€",null,null,{"$f":"IF(ISBLANK('Données Elec'!F49),\"\",'Données Elec'!F49)","v":""},null,"€"]

{"sheet":"PDF chauffage","index":4,"n_rows":116,"n_cols":11,"rows_kept":116,"cut":false,"hidden":false,"merged":[[55,1,55,4],[54,1,54,4],[41,1,41,4],[58,1,59,2],[53,1,53,4],[52,1,52,4],[25,1,25,2],[26,1,26,2],[27,1,27,2],[28,1,28,2],[48,6,48,8],[47,6,47,8],[47,1,47,3],[37,5,37,6],[37,3,37,4],[36,7,36,8],[36,5,36,6],[38,3,38,4],[33,5,33,6],[34,5,34,6],[46,1,46,3],[48,1,48,3],[34,1,34,4],[33,1,33,4],[46,6,46,8],[43,1,43,4],[38,7,38,8],[37,7,37,8],[42,1,42,4],[36,3,36,4],[38,1,38,2],[37,1,37,2],[36,1,36,2],[1,3,1,8],[20,7,20,8],[19,7,19,8],[16,4,16,5],[16,1,16,3],[9,4,9,7],[10,4,10,7],[20,1,20,4],[17,7,17,8],[16,7,16,8],[18,7,18,8],[19,1,19,4],[18,1,18,4],[17,1,17,4],[3,1,6,10],[12,3,12,4],[12,5,12,6],[55,5,55,6],[54,5,54,6],[53,5,53,6],[52,5,52,6],[49,6,49,8],[115,5,115,6],[58,3,58,5],[59,3,59,5],[67,1,90,10],[95,1,114,10],[62,1,62,4]]}
[]
[null,null,null,"CHAUFFAGE",null,null,null,null,null,null,{"$f":"\"Version \"&version","v":"Version 3.1"}]
[]
[null,"Cet outil est avant tout un outil où les Utilisateurs se voient proposer une aide au dimensionnement pour les pompes à chaleur pour la production de chauffage collectif. \nLes informations indiquées sur l'Outil sont données à titre indicatif, et sont susceptibles d’évoluer. Par ailleurs, les renseignements figurant sur l'Outil ne sont pas exhaustifs. Ils sont donnés sous réserve de modifications ayant été apportées depuis leur mise en ligne. ACV n'assume aucune responsabilité quant aux conséquences directes ou indirectes, quelle qu'en soit la nature, de l'utilisation de l’Outil et de son Contenu."]
[]
[]
[]
[]
[]
[null,null,null,"Référence du projet:",{"$f":"Chauffage!F9","v":"Référence"}]
[null,null,null,"Date:",{"$f":"TODAY()","v":"2024-10-28"}]
[]
[null,null,null,"Technologie",null,{"$f":"_xlfn.SWITCH('Données Elec'!I12, \"AHP60\", \"Effipac R32\", \"AHP70\", \"IZEA R290\",\"\")","v":""}]
[]
[null,"Localisation",null,null,null,null,null,"Installation"]
[]
[null,"Ville",null,null,{"$f":"\"\"&'Données Elec'!I1","v":""},null,null,"Distance PAC / ballon",null,{"$f":"\"\"&'Données Elec'!I7","v":""},"m"]
[null,"Altitude",null,null,null,{"$f":"\"\"&'Données Elec'!I2","v":""},"m","Distance PAC / Bâtiment",null,{"$f":"\"\"&'Données Elec'!I8","v":""},"m"]
[null,"Température extérieure de base",null,null,null,{"$f":"\"\"&'Données Elec'!I3","v":""},"°C","Taux de glycol",null,{"$f":"\"\"&'Données Elec'!I9","v":""},"%"]
[null,"Traitement Anti Corrosion nécessaire",null,null,null,{"$f":"IF('Données Elec'!I5,\"oui\",\"non\")","v":"non"},null,"Hauteur sous plafond",null,{"$f":"\"\"&'Données Elec'!I10","v":""},"mm"]
[null,"Zone \"montagne ou bord de mer\"",null,null,null,{"$f":"IF('Données Elec'!I6=TRUE,\"oui\",\"non\")","v":"non"},null,"Largeur de passage",null,{"$f":"\"\"&'Données Elec'!I11","v":""},"mm"]
[]
[null,"Circuits de chauffage"]
[]
[null,null,null,null,"Circuit 1","Circuit 2","Circuit 3","Circuit 4","Circuit 5"]
[null,"Type",null,"-",{"$f":"\"\"&'Données Elec'!I13","v":""},{"$f":"\"\"&'Données Elec'!J13","v":""},{"$f":"\"\"&'Données Elec'!K13","v":""},{"$f":"\"\"&'Données Elec'!L13","v":""},{"$f":"\"\"&'Données Elec'!M13","v":""}]
[null,"Puissance",null,"kW",{"$f":"\"\"&'Données Elec'!I14","v":""},{"$f":"\"\"&'Données Elec'!J14","v":""},{"$f":"\"\"&'Données Elec'!K14","v":""},{"$f":"\"\"&'Données Elec'!L14","v":""},{"$f":"\"\"&'Données Elec'!M14","v":""}]
[null,"Consigne",null,"°C",{"$f":"\"\"&'Données Elec'!I15","v":""},{"$f":"\"\"&'Données Elec'!J15","v":""},{"$f":"\"\"&'Données Elec'!K15","v":""},{"$f":"\"\"&'Données Elec'!L15","v":""},{"$f":"\"\"&'Données Elec'!M15","v":""}]
[null,"Delta T°",null,"K",{"$f":"\"\"&'Données Elec'!I16","v":""},{"$f":"\"\"&'Données Elec'!J16","v":""},{"$f":"\"\"&'Données Elec'!K16","v":""},{"$f":"\"\"&'Données Elec'!L16","v":""},{"$f":"\"\"&'Données Elec'!M16","v":""}]
[]
[null,"Résultat"]
[]
[null,"Equipement"]
[null,"PAC",null,null,null,{"$f":"_xlfn.TEXTJOIN(\" \", TRUE, 'Données Elec'!I19,'Données Elec'!I18)","v":""}]
[null,"Appoint électrique total",null,null,null,{"$f":"'Données Elec'!I21","v":0},null,"kW"]
[]
[null,"Ballon",null,"Ballon de charge 1",null,"Ballon de charge 2",null,"Ballon Supplémentaire"]
[null,"Type",null,{"$f":"IF('Données Elec'!I22=\"\",\"\",'Données Elec'!I22)","v":""},null,{"$f":"IF('Données Elec'!I26=\"\",\"\",'Données Elec'!I26)","v":""},null,{"$f":"IF('Données Elec'!I27=\"\",\"\",'Données Elec'!I27)","v":""}]
[null,"Appoint(s) équipé(s)",null,{"$f":"_xlfn.TEXTJOIN(\" + \",TRUE,_xlfn.MAP('Données Elec'!I23:I25,_xlfn.LAMBDA(_xlpm.puissance,IF(_xlpm.puissance=\"\",\"\",_xlpm.puissance&\" kW\"))))","v":""},null,null,null,{"$f":"_xlfn.TEXTJOIN(\" + \",TRUE,_xlfn.MAP('Données Elec'!I28:I30,_xlfn.LAMBDA(_xlpm.puissance,IF(_xlpm.puissance=\"\",\"\",_xlpm.puissance&\" kW\"))))","v":""}]
[]
[null,"Performances estimées"]
[null,"Part PAC à la température de base",null,null,null,{"$f":"'Données Elec'!I31","v":0},{"$f":"IF(ISBLANK('Données Elec'!I31),\"\",IF('Données Elec'!I31>=0.695,\"Cette solution respecte le DTU 65-16\",\"Cette solution ne respecte pas le DTU 65-16\"))","v":""}]
[null,"Puissance PAC à la température de base",null,null,null,{"$f":"'Données Elec'!I32","v":0},"kW"]
[null,"Taux de couverture PAC annuel estimé",null,null,null,{"$f":"'Données Elec'!I33","v":0}]
[]
[null,"Données électriques",null,null,null,null,"Données hydrauliques"]
[null,"Puissance électrique max",null,null,{"$f":"'Données Elec'!I34","v":0},"kW","Débit global PAC préconisé",null,null,{"$f":"'Données Elec'!I37","v":0},"m³/h"]
[null,"Intensité électrique max",null,null,{"$f":"'Données Elec'!I35","v":0},"A","Diamètre préconisé des canalisations*",null,null,{"$f":"'Données Elec'!I38","v":0}]
[null,"Puissance apparente",null,null,{"$f":"'Données Elec'!I36","v":0},"kVA","HMT disponible",null,null,{"$f":"'Données Elec'!I39","v":0},"kPa"]
[null,null,null,null,null,null,"Pression maximum de service",null,null,{"$f":"'Données Elec'!I40","v":0},"bar"]
[null,null,null,null,null,null,"*selon la distance PAC-ballons renseignée"]
[null,"Dimensions et encombrement"]
[null,"Surface nécessaire installation PAC",null,null,null,{"$f":"'Données Elec'!I41","v":0},null,"m²"]
[null,"Dimensions 1 PAC (HxLxP)",null,null,null,{"$f":"_xlfn.TEXTJOIN(\" x \", TRUE, 'Données Elec'!I42:I44)","v":""},null,"mm"]
[null,"Hauteur minimale local",null,null,null,{"$f":"'Données Elec'!I45","v":0},null,"mm"]
[null,"Largeur de passage minimale local",null,null,null,{"$f":"'Données Elec'!I46","v":0},null,"mm"]
[]
[null,"Acoustique"]
[null,"Puissance sonore\nselon EN 12 102",null,"Pour une PAC à charge partielle",null,null,{"$f":"'Données Elec'!I47","v":0},"dB(A)"]
[null,null,null,"Pour la solution à pleine charge",null,null,{"$f":"'Données Elec'!I48","v":0},"dB(A)"]
[]
[null,"Coût"]
[null,"PPHT estimé",null,null,null,{"$f":"'Données Elec'!I49","v":0},"€"]
[]
[]
[]
[null,"Schéma de principe"]
[null,{"$f":"getSchemaElec","v":{"$error":"#VALUE!"}}]
[]
[]
[]
[]
[]
[]
[]
[]
[]
[]
[]
[]
[]
[]
[]
[]
[]
[]
[]
[]
[]
[]
[]
[]
[]
[]
[null,"Caractéristiques dimensionnelles (en mm)"]
[null,{"$f":"getImageDimensionsPacElec","v":{"$error":"#VALUE!"}}]
[]
[]
[]
[]
[]
[]
[]
[]
[]
[]
[]
[]
[]
[]
[]
[]
[]
[]
[]
[null,null,null,null,null,{"$f":"\"\"&'Données Elec'!I18","v":""}]

{"sheet":"Tutoriel double service","index":5,"n_rows":91,"n_cols":6,"rows_kept":91,"cut":false,"hidden":false,"merged":[[63,1,63,2],[64,4,65,16],[66,4,66,16],[71,1,72,2],[75,4,76,16],[84,4,85,16],[38,3,39,16],[42,3,42,16],[43,3,43,16],[53,4,54,16],[58,4,59,16],[62,1,62,2],[28,3,29,4],[28,5,29,6],[30,3,31,4],[30,5,31,6],[35,1,35,2],[35,3,35,16],[16,1,16,2],[16,3,17,16],[19,3,20,16],[22,1,22,2],[26,3,27,4],[26,5,27,6],[13,3,14,16],[1,2,2,6],[4,1,4,9],[7,1,7,2],[9,1,9,2],[11,3,12,16]]}
[]
[null,null,"Tutoriel interface Double service"]
[]
[]
[null,"Utilisez cette interface afin de dimensionner votre projet double service 100% thermodynamique en plusieurs étapes:"]
[]
["1)","Paramétrez votre étude en remplissant les différents champs de données d'entrées:"]
[null,"Référence de l'étude",null,"Donnez un nom à votre étude, celui-ci sera le nom du document généré à l'issue de l'étude"]
[]
[null,"Localisation",null,"Indiquez la station météo la plus proche de votre projet, vous pouvez ensuite ajuster l'altitude ou directement la température extérieure de base"]
[null,null,null,"Choisissez si vous voulez appliquer un traitement anti-corrosion à la PAC"]
[null,null,null,"Pour certaines stations météo vous devrez indiquer si vous vous trouvez dans une zone montagne ou bord de mer: cela applique automatiquement un facteur correctif sur les performances de la PAC"]
[]
[null,null,null,"Indiquez la température extérieure maximale atteinte à l'emplacement où la PAC sera installée, en été. Ce paramètre impacte la production d'ECS en été et devra être compris entre 35 et 40°C."]
[]
[]
[null,"Installation",null,"Indiquez les distances entre la PAC et le batiment et entre la PAC et le ballon, afin d'estimer le volume primaire contenu dans les canalisations. Si vous ne les connaissez pas, des valeurs par défaut sont initialisées"]
[]
[null,null,null,"Si votre installation nécessite du glycol, indiquez le taux de glycol Attention: 10% maximum pour Izea. Autrement, laissez 0%."]
[null,null,null,"Si vous avez des contraintes de tailles (hauteur sous plafond, passage de porte etc) veuillez les indiquer dans le champs contraintes chaufferie. Le volume primaire de votre solution sera, si possible, adapté à ces contraintes."]
[]
[]
[null,"Circuits de chauffage",null,"Paramétrez jusqu'à 5 circuits de chauffage. Appuyez sur \"+\" pour ajouter et sur \"-\" pour retirer un circuit."]
[null,null,null,"Indiquez le type de circuit (constant ou régulé) ainsi que sa puissance. "]
[null,null,null,"Renseignez la consigne de température associée au circuit: Attention, les consignes de départ maximales diffèrent selon le type de circuits:"]
[]
[null,null,null,"Type de circuit",null,"Consigne départ maximale (°C)"]
[]
[null,null,null,"Circuit régulé",null,75]
[]
[null,null,null,"Circuit constant",null,70]
[]
[]
[null,null,null,"Rensignez enfin le delta T du circuit: différence de température entre le départ et retour du circuit"]
[]
[null,"Besoin ECS",null,"Paramétrez votre batiment en indiquant le type parmis logements privés, sociaux ou senior et sa typologie. Le nombre total de logement est ensuite calculé automoatiquement."]
[null,null,null,"Indiquez la température minimale d'eau froide ainsi que les pertes thermiques du bouclage"]
[null,null,null,"Le volume journalier (en litres à 60°C) est aussi calculé automatiquement"]
[null,null,null,"Indiquez si la PAC doit prendre en charge les cycles anti-légionnelles. Si oui, précisez ensuite la consigne du cycle anti-légionnelles. Notez que pour une consigne suppérieure à 60°C, le cycle anti-légionnelle nécessitera l'usage d'un appoint supplémentaire."]
[]
[]
["2)","Déterminez le préparateur ECS, en cliquant sur le bouton prévu à cet effet"]
[null,null,null,"Choisissez ensuite dans la liste déroulante le préparateur ECS qui correspond le mieux à votre étude avant de générer des solutions."]
[null,null,null,"Attention, si vous modifiez les paramètres ECS après avoir appuyé sur \"Déterminer le préparateur ECS\", veuillez rappuyer sur ce même bouton."]
[]
["3)","Générez des solutions, en cliquant sur le bouton prévu à cet effet"]
[null,null,null,"Attention, si vous modifiez les paramètres de l'étude après avoir généré des solutions, veuillez rappuyer sur \"générer des solutions\"."]
[]
["4)","Identifiez la solution la plus adaptée à votre projet: "]
[null,"Faites votre choix parmi 4 solutions complètes:"]
[]
[null,"Objectif: conso énergétique mini"]
[null,"La solution la plus économique:",null,null,"Solution avec le moins d'appoint possible, la moins chère en termes de coûts de fourniture."]
[null,"La solution la moins encombrante",null,null,"Solution avec le moins d'appoint possible occupant le moins de place en extérieur (surface PAC + dégagements) Cette solution peut parfois être la même que la solution « la + économique »."]
[]
[]
[null,"Objectif: bas carbone Ic contrustion"]
[null,"La solution la plus économique:",null,null,"Solution avec une Part PAC (chauffage) à Tbase > 70%, la moins chère en termes de coûts de fourniture."]
[null,"La solution la moins encombrante",null,null,"Solution avec une Part PAC (chauffage) à Tbase > 70% occupant le moins de place en extérieur (surface PAC + dégagements) Cette solution peut parfois être la même que la solution « la + économique »."]
[]
[]
[null,"Accédez à de nombreuses données techniques sur les solutions proposées:"]
[null,"PAC",null,null,"Choix de la PAC et nombre"]
[null,"Appoint électrique total",null,null,"Somme des appoints électriques dimensionnés, voir dans les trois lignes en dessous leur répartition dans les différents ballons"]
[null,"Ballons de charge / supplémentaires",null,null,"Possibilité de solutions jusqu’à 3 ballons :ballon de charge 1 et 2 et ballon supplémentaire. Description dans la ligne inférieure de la répartition des appoints électriques."]
[]
[null,"Ballon préparateur ECS",null,null,"Retrouvez le ballon préparateur ECS que vous avez choisi"]
[]
[null,"Part PAC à Tbase",null,null,"Part PAC à Tbase de la solution correspondante, pour le poste chauffage ou chauffage + ECS"]
[null,"Part PAC + appoint(s) à Tbase",null,null,"Part PAC + appoint(s) à Tbase de la solution correspondante, pour le poste chauffage + ECS"]
[null,"Puissance totale PAC à Tbase",null,null,"Puissance calorifique totale à Tbase de la solution"]
[null,"Taux de couverture (Chauffage) PAC annuel estimé",null,null,"Taux de couverture annuel estimé pour la solution, sur les besoins de chauffage uniquement"]
[]
[]
[null,"Données électriques",null,null,"Puissance et intensité électrique max associées à la solution: PAC + Appoint(s) électrique(s). "]
[null,null,null,null,"Puissance apparente associée à la solution (seulement PAC + appoint). Permet de donner une indication sur la possibilité ou non pour le client d’un tarif bleu. Un message s’affiche lorsque le tarif bleu est jugé possible, sur la base des données PAC et appoints."]
[]
[null,"Données hydrauliques",null,null,"Débit PAC préconisé de la solution, Diamètre des canalisations préconisé entre la/les PAC et le ballon. Hauteur manométrique disponible pour la solution "]
[null,null,null,null,"Pression maximale: Attention: la pression maximale est de 6 bar pour Izea châssis M et L. La pression max est de 3 bar pour Izea châssis S"]
[]
[null,"Données dimensionnelles",null,null,"Surface nécessaire à l’installation PAC, dimensions pour 1 PAC, hauteur et diamètre du plus gros ballon"]
[]
[null,"Données acoustiques",null,null,"Puissance sonore pour la solution PAC à pleine charge et puissance sonore pour une PAC à charge partielle, selon la norme EN 12102"]
[]
[null,"Coût",null,null,"Prix Public Hors Taxe de la solution choisie. Il s’agit d’une enveloppe qui comprend le prix du système PAC + ballon(s) primaire(s) + ballon prépérateur + appoint(s) + système de régulation et accessoires obligatoires. Le devis final peut légèrement différer de cette enveloppe."]
[]
[]
["5)","Cliquez sur \"générer étude de prédimensionnement\" afin d'être redirigé vers la synthèse de l'étude"]
[null,"Vous retrouverez sur cette onglet un récapitulatif de votre étude ainsi qu'un schéma de principe de votre solution PAC et les dimensions de la PAC sélectionnée."]
[]
["6)","Cliquez sur \"télecharger le rapport\" si vous souhaitez sauvegarder votre étude sur votre PC"]

{"sheet":"Double Service Elec","index":6,"n_rows":158,"n_cols":27,"rows_kept":158,"cut":false,"hidden":false,"merged":[[61,14,62,14],[75,11,75,13],[71,3,71,4],[70,3,70,4],[69,3,69,4],[68,3,68,4],[67,3,67,4],[68,8,68,10],[69,8,69,10],[67,8,67,10],[71,5,71,7],[70,5,70,7],[69,5,69,7],[68,5,68,7],[67,5,67,7],[62,3,62,4],[61,3,61,4],[66,5,66,7],[65,5,65,7],[64,5,64,7],[66,3,66,4],[65,3,65,4],[64,3,64,4],[73,3,73,4],[73,5,73,7],[73,8,73,10],[73,11,73,13],[74,3,74,4],[74,5,74,7],[74,8,74,10],[74,11,74,13],[75,3,75,4],[75,5,75,7],[75,8,75,10],[147,23,147,25],[157,23,158,24],[157,25,158,25],[97,24,97,25],[101,23,101,26],[102,23,102,26],[104,23,104,26],[106,23,106,26],[107,23,107,26],[137,24,137,25],[109,23,109,26],[125,24,126,24],[125,25,126,25],[133,23,133,26],[147,8,147,10],[147,13,147,15],[147,18,147,20],[137,9,137,10],[137,14,137,15],[137,19,137,20],[79,3,79,19],[132,3,133,6],[133,8,133,11],[133,13,133,16],[133,18,133,21],[125,19,126,19],[125,10,126,10],[125,14,126,14],[125,15,126,15],[125,3,126,6],[125,9,126,9],[132,7,133,7],[125,20,126,20],[63,3,63,4],[70,8,70,10],[71,8,71,10],[61,11,61,13],[62,11,62,13],[123,3,123,6],[88,8,90,16],[88,18,90,26],[119,3,119,6],[121,2,121,6],[102,8,102,11],[102,13,102,16],[102,18,102,21],[104,8,104,11],[104,13,104,16],[104,18,104,21],[76,3,76,4],[76,5,76,7],[76,8,76,10],[76,11,76,13],[72,3,72,4],[72,5,72,7],[72,8,72,10],[72,11,72,13],[41,5,41,6],[41,8,41,9],[41,11,41,12],[56,16,56,17],[117,13,117,16],[117,18,117,21],[86,1,86,21],[97,9,97,10],[97,14,97,15],[97,19,97,20],[101,8,101,11],[101,13,101,16],[101,18,101,21],[116,3,117,6],[117,8,117,11],[41,14,41,15],[41,17,41,18],[43,5,43,6],[43,8,43,9],[57,1,59,3],[57,6,59,7],[63,5,63,7],[62,5,62,7],[61,5,61,7],[37,5,37,6],[37,8,37,9],[37,11,37,12],[37,14,37,15],[37,17,37,18],[39,5,39,6],[39,8,39,9],[39,11,39,12],[39,14,39,15],[39,17,39,18],[157,15,158,15],[157,18,158,19],[157,20,158,20],[154,3,154,6],[155,2,155,6],[157,4,158,6],[157,8,158,9],[157,10,158,10],[157,13,158,14],[157,7,158,7],[149,3,149,6],[151,3,151,6],[153,2,153,6],[135,3,135,6],[136,3,138,6],[139,3,139,6],[141,3,141,6],[145,3,145,6],[147,3,147,6],[143,3,143,6],[117,30,117,31],[117,23,117,26],[106,8,106,11],[106,13,106,16],[106,18,106,21],[107,8,107,11],[107,13,107,16],[107,18,107,21],[109,8,109,11],[109,13,109,16],[109,18,109,21],[111,23,111,26],[113,23,113,26],[0,7,1,15],[8,5,8,17],[15,6,15,8],[15,17,15,18],[23,17,23,18],[25,17,25,18],[35,5,35,6],[35,8,35,9],[35,11,35,12],[35,14,35,15],[35,17,35,18],[25,2,25,5],[17,6,17,8],[17,17,17,18],[19,2,19,5],[19,6,19,8],[19,17,19,18],[23,2,23,5],[23,6,23,8],[21,2,21,5],[21,6,21,8],[25,6,25,8],[50,10,50,13],[53,6,55,7],[53,8,55,8],[50,5,50,7],[43,11,43,12],[43,14,43,15],[43,17,43,18],[51,10,53,12],[54,10,54,12],[56,10,58,13],[69,19,70,19],[111,8,111,11],[113,8,113,11],[111,13,111,16],[113,13,113,16],[111,18,111,21],[113,18,113,21],[63,11,63,13],[64,11,64,13],[65,11,65,13],[66,11,66,13],[67,11,67,13],[68,11,68,13],[69,11,69,13],[70,11,70,13],[71,11,71,13],[61,8,61,10],[62,8,62,10],[63,8,63,10],[64,8,64,10],[65,8,65,10],[66,8,66,10],[69,16,70,18]]}
[null,null,null,null,null,null,null,"APPLICATION DOUBLE SERVICE"]
[]
[]
[]
[]
[]
[]
[]
[null,null,null,null,null,"Référence"]
[]
[]
[]
[]
[]
[]
[null,null,"Ville",null,null,null,"01 - AMBERIEU",null,null,null,null,null,null,"Distance PAC / ballon",null,null,null,5,null,"m"]
[]
[null,null,"Altitude",null,null,null,250,null,null,"m",null,null,null,"Distance PAC / Bâtiment",null,null,null,2,null,"m"]
[]
[null,null,"T° extérieure de base (Tbase)",null,null,null,-11,null,null,"°C"]
[]
[null,null,"T° extérieure maximale été",null,null,null,35,null,null,"°C",null,null,null,"Contraintes local technique / accès (si connues)"]
[]
[null,null,"Traitement Anti Corrosion",null,null,null,"Non",null,null,null,null,null,null,"Hauteur sous plafond",null,null,null,null,null,"mm"]
[]
[null,null,{"$f":"IF(VLOOKUP(G16,'Validation des Données'!A3:B174,2,FALSE)=0,\"\",VLOOKUP(G16,'Validation des Données'!A3:B174,2,FALSE))","v":""},null,null,null,null,null,null,null,null,null,null,"Largeur de passage",null,null,null,null,null,"mm"]
[]
[]
[]
[]
[null,null,null,null,null,null,null,null,null,null,null,"*Pris en charge par la PAC"]
[]
[null,null,null,null,null,null,null,null,null,"Ajouter un circuit",null,null,null,"Supprimer un circuit"]
[]
[]
[null,null,null,null,null,"Circuit 1"]
[]
[null,null,null,"Type"]
[]
[null,null,null,"Puissance circuit",null,null,null,"kW",null,null,"kW",null,null,"kW",null,null,"kW",null,null,"kW"]
[]
[null,null,null,"Consigne de départ",null,null,null,"°C",null,null,"°C",null,null,"°C",null,null,"°C",null,null,"°C"]
[]
[null,null,null,"Delta T°",null,null,null,"K",null,null,"K",null,null,"K",null,null,"K",null,null,"K"]
[]
[]
[]
[]
[]
[]
[null,null,null,"Bâtiment:",null,"Logements privés",null,null,null,null,"Anti-légionelle"]
[null,null,null,null,null,null,null,null,null,null,"Prise en charge cycle anti-légionnelle"]
[null,null,null,{"$f":"IF(F51=\"Résidence seniors\",\"Logements\",\"T1\")","v":"T1"},null,"T4",null,null,null,null,null,null,null,"Non"]
[null,null,null,null,null,null,"Nombre total de logements ",null,{"$f":"IF(F51=\"Logements seniors\",C53,SUM(C53,C55,C57,E53,E55,E57))","v":0}]
[null,null,null,"T2",null,"T5",null,null,null,null,"Consigne anti-légionnelle",null,null,"60°C / 1h",null,null,"Estimation des besoins ECS:"]
[]
[null,null,null,"T3",null,"T6",null,null,null,null,"Pour ces températures de consigne, le cycle anti-légionnelle nécessitera l'usage d'un appoint supplémentaire",null,null,null,null,null,"Volume journalier",null,{"$f":"IF('Données ECS Double Service Elec'!F2=\"\",\"\",'Données ECS Double Service Elec'!F2)","v":""},"litres à 60°C"]
[null,"Température minimale d'eau froide",null,null,null,null,"Pertes thermiques du bouclage"]
[null,null,null,null,10,"°C",null,null,null,"kW"]
[]
[]
[null,null,"Solution","Puissance ECS nécessaire",null,"Ballon préparateur ECS",null,null,"Ballon stockage ECS 1",null,null,"Ballon stockage ECS 2"]
[null,null,{"$f":"IF(D63<>\"\",ROW()-ROW($C$62),\"\")","v":""},{"$f":"IF('Données ECS Double Service Elec'!E2=\"\",\"\",ROUNDUP('Données ECS Double Service Elec'!E2,0)&\" kW\")","v":""},null,{"$f":"IF('Données ECS Double Service Elec'!B2=\"\",\"\",INDEX('Informations Devis'!$C$5:$C$9999,MATCH('Données ECS Double Service Elec'!B2&\"\",'Informations Devis'!$A$5:$A$9999,0)))","v":""},null,null,{"$f":"IF('Données ECS Double Service Elec'!C2=\"\",\"\",INDEX('Informations Devis'!$C$5:$C$9999,MATCH('Données ECS Double Service Elec'!C2&\"\",'Informations Devis'!$A$5:$A$9999,0)))","v":""},null,null,{"$f":"IF('Données ECS Double Service Elec'!D2=\"\",\"\",INDEX('Informations Devis'!$C$5:$C$9999,MATCH('Données ECS Double Service Elec'!D2&\"\",'Informations Devis'!$A$5:$A$9999,0)))","v":""}]
[null,null,{"$f":"IF(D64<>\"\",ROW()-ROW($C$62),\"\")","v":""},{"$f":"IF('Données ECS Double Service Elec'!E3=\"\",\"\",ROUNDUP('Données ECS Double Service Elec'!E3,0)&\" kW\")","v":""},null,{"$f":"IF('Données ECS Double Service Elec'!B3=\"\",\"\",INDEX('Informations Devis'!$C$5:$C$9999,MATCH('Données ECS Double Service Elec'!B3&\"\",'Informations Devis'!$A$5:$A$9999,0)))","v":""},null,null,{"$f":"IF('Données ECS Double Service Elec'!C3=\"\",\"\",INDEX('Informations Devis'!$C$5:$C$9999,MATCH('Données ECS Double Service Elec'!C3&\"\",'Informations Devis'!$A$5:$A$9999,0)))","v":""},null,null,{"$f":"IF('Données ECS Double Service Elec'!D3=\"\",\"\",INDEX('Informations Devis'!$C$5:$C$9999,MATCH('Données ECS Double Service Elec'!D3&\"\",'Informations Devis'!$A$5:$A$9999,0)))","v":""}]
[null,null,"",{"$f":"IF('Données ECS Double Service Elec'!E4=\"\",\"\",ROUNDUP('Données ECS Double Service Elec'!E4,0)&\" kW\")","v":""},null,{"$f":"IF('Données ECS Double Service Elec'!B4=\"\",\"\",INDEX('Informations Devis'!$C$5:$C$9999,MATCH('Données ECS Double Service Elec'!B4&\"\",'Informations Devis'!$A$5:$A$9999,0)))","v":""},null,null,{"$f":"IF('Données ECS Double Service Elec'!C4=\"\",\"\",INDEX('Informations Devis'!$C$5:$C$9999,MATCH('Données ECS Double Service Elec'!C4&\"\",'Informations Devis'!$A$5:$A$9999,0)))","v":""},null,null,{"$f":"IF('Données ECS Double Service Elec'!D4=\"\",\"\",INDEX('Informations Devis'!$C$5:$C$9999,MATCH('Données ECS Double Service Elec'!D4&\"\",'Informations Devis'!$A$5:$A$9999,0)))","v":""}]
[null,null,"",{"$f":"IF('Données ECS Double Service Elec'!E5=\"\",\"\",ROUNDUP('Données ECS Double Service Elec'!E5,0)&\" kW\")","v":""},null,{"$f":"IF('Données ECS Double Service Elec'!B5=\"\",\"\",INDEX('Informations Devis'!$C$5:$C$9999,MATCH('Données ECS Double Service Elec'!B5&\"\",'Informations Devis'!$A$5:$A$9999,0)))","v":""},null,null,{"$f":"IF('Données ECS Double Service Elec'!C5=\"\",\"\",INDEX('Informations Devis'!$C$5:$C$9999,MATCH('Données ECS Double Service Elec'!C5&\"\",'Informations Devis'!$A$5:$A$9999,0)))","v":""},null,null,{"$f":"IF('Données ECS Double Service Elec'!D5=\"\",\"\",INDEX('Informations Devis'!$C$5:$C$9999,MATCH('Données ECS Double Service Elec'!D5&\"\",'Informations Devis'!$A$5:$A$9999,0)))","v":""}]
[null,null,"",{"$f":"IF('Données ECS Double Service Elec'!E6=\"\",\"\",ROUNDUP('Données ECS Double Service Elec'!E6,0)&\" kW\")","v":""},null,{"$f":"IF('Données ECS Double Service Elec'!B6=\"\",\"\",INDEX('Informations Devis'!$C$5:$C$9999,MATCH('Données ECS Double Service Elec'!B6&\"\",'Informations Devis'!$A$5:$A$9999,0)))","v":""},null,null,{"$f":"IF('Données ECS Double Service Elec'!C6=\"\",\"\",INDEX('Informations Devis'!$C$5:$C$9999,MATCH('Données ECS Double Service Elec'!C6&\"\",'Informations Devis'!$A$5:$A$9999,0)))","v":""},null,null,{"$f":"IF('Données ECS Double Service Elec'!D6=\"\",\"\",INDEX('Informations Devis'!$C$5:$C$9999,MATCH('Données ECS Double Service Elec'!D6&\"\",'Informations Devis'!$A$5:$A$9999,0)))","v":""}]
[null,null,"",{"$f":"IF('Données ECS Double Service Elec'!E7=\"\",\"\",ROUNDUP('Données ECS Double Service Elec'!E7,0)&\" kW\")","v":""},null,{"$f":"IF('Données ECS Double Service Elec'!B7=\"\",\"\",INDEX('Informations Devis'!$C$5:$C$9999,MATCH('Données ECS Double Service Elec'!B7&\"\",'Informations Devis'!$A$5:$A$9999,0)))","v":""},null,null,{"$f":"IF('Données ECS Double Service Elec'!C7=\"\",\"\",INDEX('Informations Devis'!$C$5:$C$9999,MATCH('Données ECS Double Service Elec'!C7&\"\",'Informations Devis'!$A$5:$A$9999,0)))","v":""},null,null,{"$f":"IF('Données ECS Double Service Elec'!D7=\"\",\"\",INDEX('Informations Devis'!$C$5:$C$9999,MATCH('Données ECS Double Service Elec'!D7&\"\",'Informations Devis'!$A$5:$A$9999,0)))","v":""}]
[null,null,"",{"$f":"IF('Données ECS Double Service Elec'!E8=\"\",\"\",ROUNDUP('Données ECS Double Service Elec'!E8,0)&\" kW\")","v":""},null,{"$f":"IF('Données ECS Double Service Elec'!B8=\"\",\"\",INDEX('Informations Devis'!$C$5:$C$9999,MATCH('Données ECS Double Service Elec'!B8&\"\",'Informations Devis'!$A$5:$A$9999,0)))","v":""},null,null,{"$f":"IF('Données ECS Double Service Elec'!C8=\"\",\"\",INDEX('Informations Devis'!$C$5:$C$9999,MATCH('Données ECS Double Service Elec'!C8&\"\",'Informations Devis'!$A$5:$A$9999,0)))","v":""},null,null,{"$f":"IF('Données ECS Double Service Elec'!D8=\"\",\"\",INDEX('Informations Devis'!$C$5:$C$9999,MATCH('Données ECS Double Service Elec'!D8&\"\",'Informations Devis'!$A$5:$A$9999,0)))","v":""}]
[null,null,"",{"$f":"IF('Données ECS Double Service Elec'!E9=\"\",\"\",ROUNDUP('Données ECS Double Service Elec'!E9,0)&\" kW\")","v":""},null,{"$f":"IF('Données ECS Double Service Elec'!B9=\"\",\"\",INDEX('Informations Devis'!$C$5:$C$9999,MATCH('Données ECS Double Service Elec'!B9&\"\",'Informations Devis'!$A$5:$A$9999,0)))","v":""},null,null,{"$f":"IF('Données ECS Double Service Elec'!C9=\"\",\"\",INDEX('Informations Devis'!$C$5:$C$9999,MATCH('Données ECS Double Service Elec'!C9&\"\",'Informations Devis'!$A$5:$A$9999,0)))","v":""},null,null,{"$f":"IF('Données ECS Double Service Elec'!D9=\"\",\"\",INDEX('Informations Devis'!$C$5:$C$9999,MATCH('Données ECS Double Service Elec'!D9&\"\",'Informations Devis'!$A$5:$A$9999,0)))","v":""},null,null,null,null,"Choix solution"]
[null,null,"",{"$f":"IF('Données ECS Double Service Elec'!E10=\"\",\"\",ROUNDUP('Données ECS Double Service Elec'!E10,0)&\" kW\")","v":""},null,{"$f":"IF('Données ECS Double Service Elec'!B10=\"\",\"\",INDEX('Informations Devis'!$C$5:$C$9999,MATCH('Données ECS Double Service Elec'!B10&\"\",'Informations Devis'!$A$5:$A$9999,0)))","v":""},null,null,{"$f":"IF('Données ECS Double Service Elec'!C10=\"\",\"\",INDEX('Informations Devis'!$C$5:$C$9999,MATCH('Données ECS Double Service Elec'!C10&\"\",'Informations Devis'!$A$5:$A$9999,0)))","v":""},null,null,{"$f":"IF('Données ECS Double Service Elec'!D10=\"\",\"\",INDEX('Informations Devis'!$C$5:$C$9999,MATCH('Données ECS Double Service Elec'!D10&\"\",'Informations Devis'!$A$5:$A$9999,0)))","v":""}]
[null,null,"",{"$f":"IF('Données ECS Double Service Elec'!E11=\"\",\"\",ROUNDUP('Données ECS Double Service Elec'!E11,0)&\" kW\")","v":""},null,{"$f":"IF('Données ECS Double Service Elec'!B11=\"\",\"\",INDEX('Informations Devis'!$C$5:$C$9999,MATCH('Données ECS Double Service Elec'!B11&\"\",'Informations Devis'!$A$5:$A$9999,0)))","v":""},null,null,{"$f":"IF('Données ECS Double Service Elec'!C11=\"\",\"\",INDEX('Informations Devis'!$C$5:$C$9999,MATCH('Données ECS Double Service Elec'!C11&\"\",'Informations Devis'!$A$5:$A$9999,0)))","v":""},null,null,{"$f":"IF('Données ECS Double Service Elec'!D11=\"\",\"\",INDEX('Informations Devis'!$C$5:$C$9999,MATCH('Données ECS Double Service Elec'!D11&\"\",'Informations Devis'!$A$5:$A$9999,0)))","v":""}]
[null,null,"",{"$f":"IF('Données ECS Double Service Elec'!E12=\"\",\"\",ROUNDUP('Données ECS Double Service Elec'!E12,0)&\" kW\")","v":""},null,{"$f":"IF('Données ECS Double Service Elec'!B12=\"\",\"\",INDEX('Informations Devis'!$C$5:$C$9999,MATCH('Données ECS Double Service Elec'!B12&\"\",'Informations Devis'!$A$5:$A$9999,0)))","v":""},null,null,{"$f":"IF('Données ECS Double Service Elec'!C12=\"\",\"\",INDEX('Informations Devis'!$C$5:$C$9999,MATCH('Données ECS Double Service Elec'!C12&\"\",'Informations Devis'!$A$5:$A$9999,0)))","v":""},null,null,{"$f":"IF('Données ECS Double Service Elec'!D12=\"\",\"\",INDEX('Informations Devis'!$C$5:$C$9999,MATCH('Données ECS Double Service Elec'!D12&\"\",'Informations Devis'!$A$5:$A$9999,0)))","v":""}]
[null,null,"",{"$f":"IF('Données ECS Double Service Elec'!E13=\"\",\"\",ROUNDUP('Données ECS Double Service Elec'!E13,0)&\" kW\")","v":""},null,{"$f":"IF('Données ECS Double Service Elec'!B13=\"\",\"\",INDEX('Informations Devis'!$C$5:$C$9999,MATCH('Données ECS Double Service Elec'!B13&\"\",'Informations Devis'!$A$5:$A$9999,0)))","v":""},null,null,{"$f":"IF('Données ECS Double Service Elec'!C13=\"\",\"\",INDEX('Informations Devis'!$C$5:$C$9999,MATCH('Données ECS Double Service Elec'!C13&\"\",'Informations Devis'!$A$5:$A$9999,0)))","v":""},null,null,{"$f":"IF('Données ECS Double Service Elec'!D13=\"\",\"\",INDEX('Informations Devis'!$C$5:$C$9999,MATCH('Données ECS Double Service Elec'!D13&\"\",'Informations Devis'!$A$5:$A$9999,0)))","v":""}]
[null,null,"",{"$f":"IF('Données ECS Double Service Elec'!E14=\"\",\"\",ROUNDUP('Données ECS Double Service Elec'!E14,0)&\" kW\")","v":""},null,{"$f":"IF('Données ECS Double Service Elec'!B14=\"\",\"\",INDEX('Informations Devis'!$C$5:$C$9999,MATCH('Données ECS Double Service Elec'!B14&\"\",'Informations Devis'!$A$5:$A$9999,0)))","v":""},null,null,{"$f":"IF('Données ECS Double Service Elec'!C14=\"\",\"\",INDEX('Informations Devis'!$C$5:$C$9999,MATCH('Données ECS Double Service Elec'!C14&\"\",'Informations Devis'!$A$5:$A$9999,0)))","v":""},null,null,{"$f":"IF('Données ECS Double Service Elec'!D14=\"\",\"\",INDEX('Informations Devis'!$C$5:$C$9999,MATCH('Données ECS Double Service Elec'!D14&\"\",'Informations Devis'!$A$5:$A$9999,0)))","v":""}]
[null,null,"",{"$f":"IF('Données ECS Double Service Elec'!E15=\"\",\"\",ROUNDUP('Données ECS Double Service Elec'!E15,0)&\" kW\")","v":""},null,{"$f":"IF('Données ECS Double Service Elec'!B15=\"\",\"\",INDEX('Informations Devis'!$C$5:$C$9999,MATCH('Données ECS Double Service Elec'!B15&\"\",'Informations Devis'!$A$5:$A$9999,0)))","v":""},null,null,{"$f":"IF('Données ECS Double Service Elec'!C15=\"\",\"\",INDEX('Informations Devis'!$C$5:$C$9999,MATCH('Données ECS Double Service Elec'!C15&\"\",'Informations Devis'!$A$5:$A$9999,0)))","v":""},null,null,{"$f":"IF('Données ECS Double Service Elec'!D15=\"\",\"\",INDEX('Informations Devis'!$C$5:$C$9999,MATCH('Données ECS Double Service Elec'!D15&\"\",'Informations Devis'!$A$5:$A$9999,0)))","v":""}]
[null,null,"",{"$f":"IF('Données ECS Double Service Elec'!E16=\"\",\"\",ROUNDUP('Données ECS Double Service Elec'!E16,0)&\" kW\")","v":""},null,{"$f":"IF('Données ECS Double Service Elec'!B16=\"\",\"\",INDEX('Informations Devis'!$C$5:$C$9999,MATCH('Données ECS Double Service Elec'!B16&\"\",'Informations Devis'!$A$5:$A$9999,0)))","v":""},null,null,{"$f":"IF('Données ECS Double Service Elec'!C16=\"\",\"\",INDEX('Informations Devis'!$C$5:$C$9999,MATCH('Données ECS Double Service Elec'!C16&\"\",'Informations Devis'!$A$5:$A$9999,0)))","v":""},null,null,{"$f":"IF('Données ECS Double Service Elec'!D16=\"\",\"\",INDEX('Informations Devis'!$C$5:$C$9999,MATCH('Données ECS Double Service Elec'!D16&\"\",'Informations Devis'!$A$5:$A$9999,0)))","v":""}]
[]
[]
[null,null,null,"Si vous modifiez des paramètres de l'étude après avoir généré des solutions, veuillez rappuyer sur \"Déterminer le préparateur ECS\" (si paramètres ECS modifiés), puis sur \"Générer des solutions\"."]
[]
[]
[]
[]
[]
[]
[null,"Ce dimensionnement est réalisé à titre indicatif afin de guider l'utilisateur vers un système en fonction des données d'entrées renseignées. Il ne remplace pas une étude de dimensionnement finale effectuée par le service Avant Vente ACV."]
[]
[]
[]
[]
[]
[]
[]
[]
[]
[]
[null,null,null,null,null,null,"PAC",null,null,{"$f":"IF(ISBLANK('Données Double Service Elec'!D29),\"\",_xlfn.TEXTJOIN(\" x \", TRUE, 'Données Double Service Elec'!D30, 'Données Double Service Elec'!D29))","v":""},null,null,null,null,{"$f":"IF(ISBLANK('Données Double Service Elec'!E29),\"\",_xlfn.TEXTJOIN(\" x \", TRUE, 'Données Double Service Elec'!E30, 'Données Double Service Elec'!E29))","v":""},null,null,null,null,{"$f":"IF(ISBLANK('Données Double Service Elec'!F29),\"\",_xlfn.TEXTJOIN(\" x \", TRUE, 'Données Double Service Elec'!F30, 'Données Double Service Elec'!F29))","v":""},null,null,null,null,{"$f":"IF(ISBLANK('Données Double Service Elec'!G29),\"\",_xlfn.TEXTJOIN(\" x \", TRUE, 'Données Double Service Elec'!G30, 'Données Double Service Elec'!G29))","v":""}]
[]
[null,null,null,null,null,null,"Appoint électrique total",null,null,{"$f":"IF(ISBLANK('Données Double Service Elec'!D32),\"\",'Données Double Service Elec'!D32)","v":""},"kW",null,null,null,{"$f":"IF(ISBLANK('Données Double Service Elec'!E32),\"\",'Données Double Service Elec'!E32)","v":""},"kW",null,null,null,{"$f":"IF(ISBLANK('Données Double Service Elec'!F32),\"\",'Données Double Service Elec'!F32)","v":""},"kW",null,null,null,{"$f":"IF(ISBLANK('Données Double Service Elec'!G32),\"\",'Données Double Service Elec'!G32)","v":""},"kW"]
[]
[null,null,null,null,null,null,"Ballon de charge 1",null,{"$f":"IF(ISBLANK('Données Double Service Elec'!D33),\"\",'Données Double Service Elec'!D33)","v":""},null,null,null,null,{"$f":"IF(ISBLANK('Données Double Service Elec'!E33),\"\",'Données Double Service Elec'!E33)","v":""},null,null,null,null,{"$f":"IF(ISBLANK('Données Double Service Elec'!F33),\"\",'Données Double Service Elec'!F33)","v":""},null,null,null,null,{"$f":"IF(ISBLANK('Données Double Service Elec'!G33),\"\",'Données Double Service Elec'!G33)","v":""}]
[null,null,null,null,null,null,"Appoint.s équipé.s",null,{"$f":"_xlfn.TEXTJOIN(\" + \",TRUE,_xlfn.MAP('Données Double Service Elec'!D34:D36,_xlfn.LAMBDA(_xlpm.puissance,IF(_xlpm.puissance=\"\",\"\",_xlpm.puissance&\" kW\"))))","v":""},null,null,null,null,{"$f":"_xlfn.TEXTJOIN(\" + \",TRUE,_xlfn.MAP('Données Double Service Elec'!E34:E36,_xlfn.LAMBDA(_xlpm.puissance,IF(_xlpm.puissance=\"\",\"\",_xlpm.puissance&\" kW\"))))","v":""},null,null,null,null,{"$f":"_xlfn.TEXTJOIN(\" + \",TRUE,_xlfn.MAP('Données Double Service Elec'!F34:F36,_xlfn.LAMBDA(_xlpm.puissance,IF(_xlpm.puissance=\"\",\"\",_xlpm.puissance&\" kW\"))))","v":""},null,null,null,null,{"$f":"_xlfn.TEXTJOIN(\" + \",TRUE,_xlfn.MAP('Données Double Service Elec'!G34:G36,_xlfn.LAMBDA(_xlpm.puissance,IF(_xlpm.puissance=\"\",\"\",_xlpm.puissance&\" kW\"))))","v":""}]
[]
[null,null,null,null,null,null,"Ballon de charge 2",null,{"$f":"IF(ISBLANK('Données Double Service Elec'!D37),\"\",'Données Double Service Elec'!D37)","v":""},null,null,null,null,{"$f":"IF(ISBLANK('Données Double Service Elec'!E37),\"\",'Données Double Service Elec'!E37)","v":""},null,null,null,null,{"$f":"IF(ISBLANK('Données Double Service Elec'!F37),\"\",'Données Double Service Elec'!F37)","v":""},null,null,null,null,{"$f":"IF(ISBLANK('Données Double Service Elec'!G37),\"\",'Données Double Service Elec'!G37)","v":""}]
[]
[null,null,null,null,null,null,"Ballon Supplémentaire",null,{"$f":"IF(ISBLANK('Données Double Service Elec'!D38),\"\",'Données Double Service Elec'!D38)","v":""},null,null,null,null,{"$f":"IF(ISBLANK('Données Double Service Elec'!E38),\"\",'Données Double Service Elec'!E38)","v":""},null,null,null,null,{"$f":"IF(ISBLANK('Données Double Service Elec'!F38),\"\",'Données Double Service Elec'!F38)","v":""},null,null,null,null,{"$f":"IF(ISBLANK('Données Double Service Elec'!G38),\"\",'Données Double Service Elec'!G38)","v":""}]
[null,null,null,null,null,null,"Appoint.s équipé.s",null,{"$f":"_xlfn.TEXTJOIN(\" + \",TRUE,_xlfn.MAP('Données Double Service Elec'!D39:D41,_xlfn.LAMBDA(_xlpm.puissance,IF(_xlpm.puissance=\"\",\"\",_xlpm.puissance&\" kW\"))))","v":""},null,null,null,null,{"$f":"_xlfn.TEXTJOIN(\" + \",TRUE,_xlfn.MAP('Données Double Service Elec'!E39:E41,_xlfn.LAMBDA(_xlpm.puissance,IF(_xlpm.puissance=\"\",\"\",_xlpm.puissance&\" kW\"))))","v":""},null,null,null,null,{"$f":"_xlfn.TEXTJOIN(\" + \",TRUE,_xlfn.MAP('Données Double Service Elec'!F39:F41,_xlfn.LAMBDA(_xlpm.puissance,IF(_xlpm.puissance=\"\",\"\",_xlpm.puissance&\" kW\"))))","v":""},null,null,null,null,{"$f":"_xlfn.TEXTJOIN(\" + \",TRUE,_xlfn.MAP('Données Double Service Elec'!G39:G41,_xlfn.LAMBDA(_xlpm.puissance,IF(_xlpm.puissance=\"\",\"\",_xlpm.puissance&\" kW\"))))","v":""}]
[]
[null,null,null,null,null,null,"Ballon préparateur ECS",null,{"$f":"IF(ISBLANK('Données Double Service Elec'!D65),\"\",'Données Double Service Elec'!D65)","v":""},null,null,null,null,{"$f":"IF(ISBLANK('Données Double Service Elec'!E65),\"\",'Données Double Service Elec'!E65)","v":""},null,null,null,null,{"$f":"IF(ISBLANK('Données Double Service Elec'!F65),\"\",'Données Double Service Elec'!F65)","v":""},null,null,null,null,{"$f":"IF(ISBLANK('Données Double Service Elec'!G65),\"\",'Données Double Service Elec'!G65)","v":""}]
[]
[null,null,null,null,null,null,"Ballon stockage ECS 1",null,{"$f":"IF(ISBLANK('Données Double Service Elec'!D66),\"\",'Données Double Service Elec'!D66)","v":""},null,null,null,null,{"$f":"IF(ISBLANK('Données Double Service Elec'!E66),\"\",'Données Double Service Elec'!E66)","v":""},null,null,null,null,{"$f":"IF(ISBLANK('Données Double Service Elec'!F66),\"\",'Données Double Service Elec'!F66)","v":""},null,null,null,null,{"$f":"IF(ISBLANK('Données Double Service Elec'!G66),\"\",'Données Double Service Elec'!G66)","v":""}]
[]
[null,null,null,null,null,null,"Ballon stockage ECS 2",null,{"$f":"IF(ISBLANK('Données Double Service Elec'!D67),\"\",'Données Double Service Elec'!D67)","v":""},null,null,null,null,{"$f":"IF(ISBLANK('Données Double Service Elec'!E67),\"\",'Données Double Service Elec'!E67)","v":""},null,null,null,null,{"$f":"IF(ISBLANK('Données Double Service Elec'!F67),\"\",'Données Double Service Elec'!F67)","v":""},null,null,null,null,{"$f":"IF(ISBLANK('Données Double Service Elec'!G67),\"\",'Données Double Service Elec'!G67)","v":""}]
[]
[]
[null,null,null,"Part PAC à Tbase (Chauffage)",null,null,null,null,null,{"$f":"IF(ISBLANK('Données Double Service Elec'!D42),\"\",'Données Double Service Elec'!D42 * 100)","v":""},"%",null,null,null,{"$f":"IF(ISBLANK('Données Double Service Elec'!E42),\"\",'Données Double Service Elec'!E42 * 100)","v":""},"%",null,null,null,{"$f":"IF(ISBLANK('Données Double Service Elec'!F42),\"\",'Données Double Service Elec'!F42 * 100)","v":""},"%",null,null,null,{"$f":"IF(ISBLANK('Données Double Service Elec'!G42),\"\",'Données Double Service Elec'!G42 * 100)","v":""},"%"]
[null,null,null,null,null,null,null,null,{"$f":"IF(ISBLANK('Données Double Service Elec'!D42),\"\",IF('Données Double Service Elec'!D42>=0.695,\"Cette solution respecte le DTU 65-16\",\"Cette solution ne respecte pas le DTU 65-16\"))","v":""},null,null,null,null,{"$f":"IF(ISBLANK('Données Double Service Elec'!E42),\"\",IF('Données Double Service Elec'!E42>=0.695,\"Cette solution respecte le DTU 65-16\",\"Cette solution ne respecte pas le DTU 65-16\"))","v":""},null,null,null,null,{"$f":"IF(ISBLANK('Données Double Service Elec'!F42),\"\",IF('Données Double Service Elec'!F42>=0.695,\"Cette solution respecte le DTU 65-16\",\"Cette solution ne respecte pas le DTU 65-16\"))","v":""},null,null,null,null,{"$f":"IF(ISBLANK('Données Double Service Elec'!G42),\"\",IF('Données Double Service Elec'!G42>=0.695,\"Cette solution respecte le DTU 65-16\",\"Cette solution ne respecte pas le DTU 65-16\"))","v":""}]
[]
[null,null,null,"Part PAC à Tbase (Chauffage +ECS)",null,null,null,null,null,{"$f":"IF(ISBLANK('Données Double Service Elec'!D62),\"\",'Données Double Service Elec'!D62 * 100)","v":""},"%",null,null,null,{"$f":"IF(ISBLANK('Données Double Service Elec'!E62),\"\",'Données Double Service Elec'!E62 * 100)","v":""},"%",null,null,null,{"$f":"IF(ISBLANK('Données Double Service Elec'!F62),\"\",'Données Double Service Elec'!F62 * 100)","v":""},"%",null,null,null,{"$f":"IF(ISBLANK('Données Double Service Elec'!G62),\"\",'Données Double Service Elec'!G62 * 100)","v":""},"%"]
[]
[null,null,"Part PAC + appoint à Tbase (Chauffage +ECS)",null,null,null,null,null,null,{"$f":"IF(ISBLANK('Données Double Service Elec'!D63),\"\",'Données Double Service Elec'!D63 * 100)","v":""},"%",null,null,null,{"$f":"IF(ISBLANK('Données Double Service Elec'!E63),\"\",'Données Double Service Elec'!E63 * 100)","v":""},"%",null,null,null,{"$f":"IF(ISBLANK('Données Double Service Elec'!F63),\"\",'Données Double Service Elec'!F63 * 100)","v":""},"%",null,null,null,{"$f":"IF(ISBLANK('Données Double Service Elec'!G63),\"\",'Données Double Service Elec'!G63 * 100)","v":""},"%"]
[]
[null,null,null,"Puissance Totale PAC à Tbase",null,null,null,null,null,{"$f":"IF(ISBLANK('Données Double Service Elec'!D43),\"\",'Données Double Service Elec'!D43)","v":""},"kW",null,null,null,{"$f":"IF(ISBLANK('Données Double Service Elec'!E43),\"\",'Données Double Service Elec'!E43)","v":""},"kW",null,null,null,{"$f":"IF(ISBLANK('Données Double Service Elec'!F43),\"\",'Données Double Service Elec'!F43)","v":""},"kW",null,null,null,{"$f":"IF(ISBLANK('Données Double Service Elec'!G43),\"\",'Données Double Service Elec'!G43)","v":""},"kW"]
[]
[null,null,null,"Taux de couverture (Chauffage) PAC annuel estimé",null,null,null,null,null,{"$f":"IF(ISBLANK('Données Double Service Elec'!D44),\"\",'Données Double Service Elec'!D44 * 100)","v":""},"%",null,null,null,{"$f":"IF(ISBLANK('Données Double Service Elec'!E44),\"\",'Données Double Service Elec'!E44 * 100)","v":""},"%",null,null,null,{"$f":"IF(ISBLANK('Données Double Service Elec'!F44),\"\",'Données Double Service Elec'!F44 * 100)","v":""},"%",null,null,null,{"$f":"IF(ISBLANK('Données Double Service Elec'!G44),\"\",'Données Double Service Elec'!G44 * 100)","v":""},"%"]
[]
[]
[null,null,null,null,null,null,"Puissance électrique max",null,null,{"$f":"IF(ISBLANK('Données Double Service Elec'!D45),\"\",'Données Double Service Elec'!D45)","v":""},"kW",null,null,null,{"$f":"IF(ISBLANK('Données Double Service Elec'!E45),\"\",'Données Double Service Elec'!E45)","v":""},"kW",null,null,null,{"$f":"IF(ISBLANK('Données Double Service Elec'!F45),\"\",'Données Double Service Elec'!F45)","v":""},"kW",null,null,null,{"$f":"IF(ISBLANK('Données Double Service Elec'!G45),\"\",'Données Double Service Elec'!G45)","v":""},"kW"]
[]
[null,null,null,null,null,null,"Intensité électrique max",null,null,{"$f":"IF(ISBLANK('Données Double Service Elec'!D46),\"\",'Données Double Service Elec'!D46)","v":""},"A",null,null,null,{"$f":"IF(ISBLANK('Données Double Service Elec'!E46),\"\",'Données Double Service Elec'!E46)","v":""},"A",null,null,null,{"$f":"IF(ISBLANK('Données Double Service Elec'!F46),\"\",'Données Double Service Elec'!F46)","v":""},"A",null,null,null,{"$f":"IF(ISBLANK('Données Double Service Elec'!G46),\"\",'Données Double Service Elec'!G46)","v":""},"A"]
[]
[null,null,null,"Puissance apparente",null,null,null,null,null,{"$f":"IF(ISBLANK('Données Double Service Elec'!D47),\"\",'Données Double Service Elec'!D47)","v":""},"kVA",null,null,null,{"$f":"IF(ISBLANK('Données Double Service Elec'!E47),\"\",'Données Double Service Elec'!E47)","v":""},"kVA",null,null,null,{"$f":"IF(ISBLANK('Données Double Service Elec'!F47),\"\",'Données Double Service Elec'!F47)","v":""},"kVA",null,null,null,{"$f":"IF(ISBLANK('Données Double Service Elec'!G47),\"\",'Données Double Service Elec'!G47)","v":""},"kVA"]
[]
[]
[null,null,null,"Débit global PAC préconisé",null,null,null,null,null,{"$f":"IF(ISBLANK('Données Double Service Elec'!D48),\"\",'Données Double Service Elec'!D48)","v":""},"m³/h",null,null,null,{"$f":"IF(ISBLANK('Données Double Service Elec'!E48),\"\",'Données Double Service Elec'!E48)","v":""},"m³/h",null,null,null,{"$f":"IF(ISBLANK('Données Double Service Elec'!F48),\"\",'Données Double Service Elec'!F48)","v":""},"m³/h",null,null,null,{"$f":"IF(ISBLANK('Données Double Service Elec'!G48),\"\",'Données Double Service Elec'!G48)","v":""},"m³/h"]
[null,null,null,"Diamètre préconisé des canalisations"]
[null,null,null,null,null,null,null,null,null,{"$f":"IF(ISBLANK('Données Double Service Elec'!D49),\"\",'Données Double Service Elec'!D49)","v":""},null,null,null,null,{"$f":"IF(ISBLANK('Données Double Service Elec'!E49),\"\",'Données Double Service Elec'!E49)","v":""},null,null,null,null,{"$f":"IF(ISBLANK('Données Double Service Elec'!F49),\"\",'Données Double Service Elec'!F49)","v":""},null,null,null,null,{"$f":"IF(ISBLANK('Données Double Service Elec'!G49),\"\",'Données Double Service Elec'!G49)","v":""}]
[]
[null,null,null,"HMT disponible",null,null,null,null,null,{"$f":"IF(ISBLANK('Données Double Service Elec'!D50),\"\",'Données Double Service Elec'!D50)","v":""},"kPa",null,null,null,{"$f":"IF(ISBLANK('Données Double Service Elec'!E50),\"\",'Données Double Service Elec'!E50)","v":""},"kPa",null,null,null,{"$f":"IF(ISBLANK('Données Double Service Elec'!F50),\"\",'Données Double Service Elec'!F50)","v":""},"kPa",null,null,null,{"$f":"IF(ISBLANK('Données Double Service Elec'!G50),\"\",'Données Double Service Elec'!G50)","v":""},"kPa"]
[]
[null,null,null,"Pression maximum de service",null,null,null,null,null,{"$f":"IF(ISBLANK('Données Double Service Elec'!D51),\"\",'Données Double Service Elec'!D51)","v":""},"bar",null,null,null,{"$f":"IF(ISBLANK('Données Double Service Elec'!E51),\"\",'Données Double Service Elec'!E51)","v":""},"bar",null,null,null,{"$f":"IF(ISBLANK('Données Double Service Elec'!F51),\"\",'Données Double Service Elec'!F51)","v":""},"bar",null,null,null,{"$f":"IF(ISBLANK('Données Double Service Elec'!G51),\"\",'Données Double Service Elec'!G51)","v":""},"bar"]
[]
[null,null,null,"Débit préconisé serpentin",null,null,null,null,null,{"$f":"IF(ISBLANK('Données Double Service Elec'!D64),\"\",'Données Double Service Elec'!D64)","v":""},"m³/h",null,null,null,{"$f":"IF(ISBLANK('Données Double Service Elec'!E64),\"\",'Données Double Service Elec'!E64)","v":""},"m³/h",null,null,null,{"$f":"IF(ISBLANK('Données Double Service Elec'!F64),\"\",'Données Double Service Elec'!F64)","v":""},"m³/h",null,null,null,{"$f":"IF(ISBLANK('Données Double Service Elec'!G64),\"\",'Données Double Service Elec'!G64)","v":""},"m³/h"]
[]
[null,null,null,"Surface nécessaire installation PAC",null,null,null,null,null,{"$f":"IF(ISBLANK('Données Double Service Elec'!D52),\"\",'Données Double Service Elec'!D52)","v":""},"m²",null,null,null,{"$f":"IF(ISBLANK('Données Double Service Elec'!E52),\"\",'Données Double Service Elec'!E52)","v":""},"m²",null,null,null,{"$f":"IF(ISBLANK('Données Double Service Elec'!F52),\"\",'Données Double Service Elec'!F52)","v":""},"m²",null,null,null,{"$f":"IF(ISBLANK('Données Double Service Elec'!G52),\"\",'Données Double Service Elec'!G52)","v":""},"m²"]
[]
[null,null,null,"Dimensions 1 PAC (HxLxP)",null,null,null,null,{"$f":"IF(ISBLANK('Données Double Service Elec'!D53),\"\",_xlfn.TEXTJOIN(\" x \",TRUE, 'Données Double Service Elec'!D53:D55))","v":""},null,null,"mm",null,{"$f":"IF(ISBLANK('Données Double Service Elec'!E53),\"\",_xlfn.TEXTJOIN(\" x \",TRUE, 'Données Double Service Elec'!E53:E55))","v":""},null,null,"mm",null,{"$f":"IF(ISBLANK('Données Double Service Elec'!F53),\"\",_xlfn.TEXTJOIN(\" x \",TRUE, 'Données Double Service Elec'!F53:F55))","v":""},null,null,"mm",null,{"$f":"IF(ISBLANK('Données Double Service Elec'!G53),\"\",_xlfn.TEXTJOIN(\" x \",TRUE, 'Données Double Service Elec'!G53:G55))","v":""},null,null,"mm"]
[]
[null,null,null,"Hauteur minimale local",null,null,null,null,null,{"$f":"IF(ISBLANK('Données Double Service Elec'!D56),\"\",'Données Double Service Elec'!D56)","v":""},"mm",null,null,null,{"$f":"IF(ISBLANK('Données Double Service Elec'!E56),\"\",'Données Double Service Elec'!E56)","v":""},"mm",null,null,null,{"$f":"IF(ISBLANK('Données Double Service Elec'!F56),\"\",'Données Double Service Elec'!F56)","v":""},"mm",null,null,null,{"$f":"IF(ISBLANK('Données Double Service Elec'!G56),\"\",'Données Double Service Elec'!G56)","v":""},"mm"]
[]
[null,null,null,"Largeur de passage minimale local",null,null,null,null,null,{"$f":"IF(ISBLANK('Données Double Service Elec'!D57),\"\",'Données Double Service Elec'!D57)","v":""},"mm",null,null,null,{"$f":"IF(ISBLANK('Données Double Service Elec'!E57),\"\",'Données Double Service Elec'!E57)","v":""},"mm",null,null,null,{"$f":"IF(ISBLANK('Données Double Service Elec'!F57),\"\",'Données Double Service Elec'!F57)","v":""},"mm",null,null,null,{"$f":"IF(ISBLANK('Données Double Service Elec'!G57),\"\",'Données Double Service Elec'!G57)","v":""},"mm"]
[]
[null,null,"Puissance sonore 1 PAC à charge partielle\nPuissance sonore 1 PAC à charge partielle\nPuissance sonore 1 PAC à charge partielle",null,null,null,null,null,null,{"$f":"IF(ISBLANK('Données Double Service Elec'!D58),\"\",'Données Double Service Elec'!D58)","v":""},"dB(A)",null,null,null,{"$f":"IF(ISBLANK('Données Double Service Elec'!E58),\"\",'Données Double Service Elec'!E58)","v":""},"dB(A)",null,null,null,{"$f":"IF(ISBLANK('Données Double Service Elec'!F58),\"\",'Données Double Service Elec'!F58)","v":""},"dB(A)",null,null,null,{"$f":"IF(ISBLANK('Données Double Service Elec'!G58),\"\",'Données Double Service Elec'!G58)","v":""},"dB(A)"]
[null,null,null,"Selon la norme EN 12-102"]
[null,null,"Puissance sonore totale à pleine charge",null,null,null,null,null,null,{"$f":"IF(ISBLANK('Données Double Service Elec'!D59),\"\",'Données Double Service Elec'!D59)","v":""},"dB(A)",null,null,null,{"$f":"IF(ISBLANK('Données Double Service Elec'!E59),\"\",'Données Double Service Elec'!E59)","v":""},"dB(A)",null,null,null,{"$f":"IF(ISBLANK('Données Double Service Elec'!F59),\"\",'Données Double Service Elec'!F59)","v":""},"dB(A)",null,null,null,{"$f":"IF(ISBLANK('Données Double Service Elec'!G59),\"\",'Données Double Service Elec'!G59)","v":""},"dB(A)"]
[]
[null,null,null,null,"PPHT estimé",null,null,null,{"$f":"IF(ISBLANK('Données Double Service Elec'!D60),\"\",'Données Double Service Elec'!D60)","v":""},null,"€",null,null,{"$f":"IF(ISBLANK('Données Double Service Elec'!E60),\"\",'Données Double Service Elec'!E60)","v":""},null,"€",null,null,{"$f":"IF(ISBLANK('Données Double Service Elec'!F60),\"\",'Données Double Service Elec'!F60)","v":""},null,"€",null,null,{"$f":"IF(ISBLANK('Données Double Service Elec'!G60),\"\",'Données Double Service Elec'!G60)","v":""},null,"€"]

{"sheet":"PDF Double Service Elec","index":7,"n_rows":134,"n_cols":11,"rows_kept":134,"cut":false,"hidden":false,"merged":[[113,1,132,10],[14,1,14,3],[14,4,14,5],[14,7,14,8],[15,1,15,4],[15,7,15,8],[16,1,16,4],[16,7,16,8],[18,1,18,4],[19,1,19,4],[17,7,17,8],[24,1,24,2],[25,1,25,2],[44,1,44,2],[45,1,45,2],[44,3,44,4],[1,3,1,8],[3,1,6,10],[9,4,9,7],[10,4,10,7],[52,1,52,2],[52,3,52,4],[52,5,52,6],[52,7,52,8],[26,1,26,2],[27,1,27,2],[30,1,30,4],[30,5,30,8],[51,1,51,2],[51,3,51,4],[51,5,51,6],[51,7,51,8],[47,7,47,8],[35,1,35,3],[36,1,36,3],[37,1,37,3],[58,1,58,4],[38,1,38,3],[35,7,35,9],[48,7,48,8],[49,1,49,2],[49,3,49,4],[47,1,47,2],[47,3,47,4],[47,5,47,6],[48,1,48,2],[48,3,48,4],[48,5,48,6],[63,1,63,3],[63,6,63,8],[64,1,64,3],[64,6,64,8],[53,1,53,2],[53,3,53,4],[53,7,53,8],[56,1,56,4],[57,1,57,4],[73,5,73,6],[76,1,77,2],[76,3,76,5],[77,3,77,5],[65,1,65,3],[65,6,65,8],[133,5,133,6],[17,1,17,4],[59,1,59,4],[60,1,60,4],[67,6,67,8],[85,1,108,10],[80,1,80,4],[66,6,66,8],[70,1,70,4],[70,5,70,6],[71,1,71,4],[71,5,71,6],[72,1,72,4],[72,5,72,6],[73,1,73,4],[30,9,30,10]]}
[]
[null,null,null,"DOUBLE SERVICE ELECTRIQUE",null,null,null,null,null,null,{"$f":"\"Version \"&version","v":"Version 3.1"}]
[]
[null,"Cet outil est avant tout un outil où les Utilisateurs se voient proposer une aide au dimensionnement pour les pompes à chaleur pour la production de chauffage collectif. \nLes informations indiquées sur l'Outil sont données à titre indicatif, et sont susceptibles d’évoluer. Par ailleurs, les renseignements figurant sur l'Outil ne sont pas exhaustifs. Ils sont donnés sous réserve de modifications ayant été apportées depuis leur mise en ligne. ACV n'assume aucune responsabilité quant aux conséquences directes ou indirectes, quelle qu'en soit la nature, de l'utilisation de l’Outil et de son Contenu.\n"]
[]
[]
[]
[]
[]
[null,null,null,"Référence du projet:",{"$f":"'Double Service Elec'!F9","v":"Référence"}]
[null,null,null,"Date:",{"$f":"TODAY()","v":"2024-10-28"}]
[]
[null,"Localisation",null,null,null,null,null,"Installation"]
[]
[null,"Ville",null,null,{"$f":"\"\"&'Données Double Service Elec'!I1","v":""},null,null,"Distance PAC / ballon",null,{"$f":"'Données Double Service Elec'!I7","v":0},"m"]
[null,"Altitude",null,null,null,{"$f":"'Données Double Service Elec'!I2","v":0},"m","Distance PAC / Bâtiment",null,{"$f":"'Données Double Service Elec'!I8","v":0},"m"]
[null,"Température extérieure de base",null,null,null,{"$f":"'Données Double Service Elec'!I3","v":0},"°C","Hauteur sous plafond",null,{"$f":"'Données Double Service Elec'!I10","v":0},"mm"]
[null,"Température maximale été",null,null,null,{"$f":"'Données Double Service Elec'!I4","v":0},"°C","Largeur de passage",null,{"$f":"'Données Double Service Elec'!I11","v":0},"mm"]
[null,"Traitement Anti Corrosion nécessaire",null,null,null,{"$f":"IF('Données Double Service Elec'!I5,\"oui\",\"non\")","v":"non"}]
[null,"Zone \"montagne ou bord de mer\"",null,null,null,{"$f":"IF('Données Double Service Elec'!I6=TRUE,\"oui\",\"non\")","v":"non"}]
[]
[null,"Circuits de chauffage"]
[]
[null,null,null,null,"Circuit 1","Circuit 2","Circuit 3","Circuit 4","Circuit 5"]
[null,"Type",null,"-",{"$f":"\"\"&'Données Double Service Elec'!I13","v":""},{"$f":"\"\"&'Données Double Service Elec'!J13","v":""},{"$f":"\"\"&'Données Double Service Elec'!K13","v":""},{"$f":"\"\"&'Données Double Service Elec'!L13","v":""},{"$f":"\"\"&'Données Double Service Elec'!M13","v":""}]
[null,"Puissance",null,"kW",{"$f":"\"\"&'Données Double Service Elec'!I14","v":""},{"$f":"\"\"&'Données Double Service Elec'!J14","v":""},{"$f":"\"\"&'Données Double Service Elec'!K14","v":""},{"$f":"\"\"&'Données Double Service Elec'!L14","v":""},{"$f":"\"\"&'Données Double Service Elec'!M14","v":""}]
[null,"Consigne",null,"°C",{"$f":"\"\"&'Données Double Service Elec'!I15","v":""},{"$f":"\"\"&'Données Double Service Elec'!J15","v":""},{"$f":"\"\"&'Données Double Service Elec'!K15","v":""},{"$f":"\"\"&'Données Double Service Elec'!L15","v":""},{"$f":"\"\"&'Données Double Service Elec'!M15","v":""}]
[null,"Delta T°",null,"K",{"$f":"\"\"&'Données Double Service Elec'!I16","v":""},{"$f":"\"\"&'Données Double Service Elec'!J16","v":""},{"$f":"\"\"&'Données Double Service Elec'!K16","v":""},{"$f":"\"\"&'Données Double Service Elec'!L16","v":""},{"$f":"\"\"&'Données Double Service Elec'!M16","v":""}]
[]
[null,"Besoins ECS"]
[null,"Logements privés",null,null,null,"Logements sociaux",null,null,null,"Logements séniors"]
[null,"T1",{"$f":"IF('Données Double Service Elec'!$I$17=\"Logements privés\",'Données Double Service Elec'!I18,\"\")","v":""},"T4",{"$f":"IF('Données Double Service Elec'!$I$17=\"Logements privés\",'Données Double Service Elec'!I21,\"\")","v":""},"T1",{"$f":"IF('Données Double Service Elec'!$I$17=\"Logements sociaux\",'Données Double Service Elec'!I18,\"\")","v":""},"T4",{"$f":"IF('Données Double Service Elec'!$I$17=\"Logements sociaux\",'Données Double Service Elec'!I21,\"\")","v":""},"Logements",{"$f":"IF('Données Double Service Elec'!$I$17=\"Résidence seniors\",'Données Double Service Elec'!I18,\"\")","v":""}]
[null,"T2",{"$f":"IF('Données Double Service Elec'!$I$17=\"Logements privés\",'Données Double Service Elec'!I19,\"\")","v":""},"T5",{"$f":"IF('Données Double Service Elec'!$I$17=\"Logements privés\",'Données Double Service Elec'!I22,\"\")","v":""},"T2",{"$f":"IF('Données Double Service Elec'!$I$17=\"Logements sociaux\",'Données Double Service Elec'!I19,\"\")","v":""},"T5",{"$f":"IF('Données Double Service Elec'!$I$17=\"Logements sociaux\",'Données Double Service Elec'!I22,\"\")","v":""}]
[null,"T3",{"$f":"IF('Données Double Service Elec'!$I$17=\"Logements privés\",'Données Double Service Elec'!I20,\"\")","v":""},"T6",{"$f":"IF('Données Double Service Elec'!$I$17=\"Logements privés\",'Données Double Service Elec'!I23,\"\")","v":""},"T3",{"$f":"IF('Données Double Service Elec'!$I$17=\"Logements sociaux\",'Données Double Service Elec'!I20,\"\")","v":""},"T6",{"$f":"IF('Données Double Service Elec'!$I$17=\"Logements sociaux\",'Données Double Service Elec'!I23,\"\")","v":""}]
[]
[null,"Température minimale d'eau froide",null,null,{"$f":"\"\"&'Données Double Service Elec'!I24","v":""},"°C",null,"Nombre total de logements",null,null,{"$f":"'Double Service Elec'!I54","v":0}]
[null,"Pertes thermiques du bouclage",null,null,{"$f":"\"\"&'Données Double Service Elec'!I25","v":""},"kW"]
[null,"Prise en charge anti-légionelle",null,null,{"$f":"IF(E39=\"\",\"Non\",\"Oui\")","v":"Non"}]
[null,"Consigne anti-légionelle",null,null,{"$f":"\"\"&'Données Double Service Elec'!I26","v":""}]
[]
[]
[null,"Résultat"]
[]
[null,"Equipement"]
[null,"PAC",null,{"$f":"_xlfn.TEXTJOIN(\" \", TRUE, 'Données Double Service Elec'!I30,'Données Double Service Elec'!I29)","v":""}]
[null,"Appoint électrique total",null,{"$f":"'Données Double Service Elec'!I32","v":0},"kW"]
[]
[null,"Ballon ECS",null,"Ballon préparateur",null,"Ballon  de stockage 1",null,"Ballon  de stockage 2"]
[null,"Type",null,{"$f":"\"\"&'Données Double Service Elec'!I65","v":""},null,{"$f":"\"\"&'Données Double Service Elec'!I66","v":""},null,{"$f":"\"\"&'Données Double Service Elec'!I67","v":""}]
[null,"Puissance ECS nécessaire",null,{"$f":"IF('Données Double Service Elec'!I27=0,\"\",ROUNDUP(INDEX('Données ECS Double Service Elec'!E2:E16,'Données Double Service Elec'!I27),0))","v":""},null,"kW"]
[]
[null,"Ballon",null,"Ballon de charge 1",null,"Ballon de charge 2",null,"Ballon Supplémentaire"]
[null,"Type",null,{"$f":"\"\"&'Données Double Service Elec'!I33","v":""},null,{"$f":"\"\"&'Données Double Service Elec'!I37","v":""},null,{"$f":"\"\"&'Données Double Service Elec'!I38","v":""}]
[null,"Appoint(s) équipé(s)",null,{"$f":"_xlfn.TEXTJOIN(\" + \",TRUE,_xlfn.MAP('Données Double Service Elec'!I34:I36,_xlfn.LAMBDA(_xlpm.puissance,IF(_xlpm.puissance=\"\",\"\",_xlpm.puissance&\" kW\"))))","v":""},null,null,null,{"$f":"_xlfn.TEXTJOIN(\" + \",TRUE,_xlfn.MAP('Données Double Service Elec'!I39:I41,_xlfn.LAMBDA(_xlpm.puissance,IF(_xlpm.puissance=\"\",\"\",_xlpm.puissance&\" kW\"))))","v":""}]
[]
[null,"Performances estimées"]
[null,"Part PAC à la température de base",null,null,null,{"$f":"'Données Double Service Elec'!I42","v":0},{"$f":"IF(ISBLANK('Données Elec'!D31),\"\",IF('Données Elec'!D31>=0.695,\"Cette solution respecte le DTU 65-16\",\"Cette solution ne respecte pas le DTU 65-16\"))","v":""}]
[null,"Puissance PAC à la température de base",null,null,null,{"$f":"'Données Double Service Elec'!I43","v":0},"kW"]
[null,"Taux de couverture PAC annuel estimé",null,null,null,{"$f":"'Données Double Service Elec'!I44","v":0}]
[null,"DS part pac à Tbase",null,null,null,{"$f":"'Données Double Service Elec'!I62","v":0}]
[null,"DS part pac + appoint à Tbase",null,null,null,{"$f":"'Données Double Service Elec'!I63","v":0}]
[]
[null,"Données électriques",null,null,null,null,"Données hydrauliques"]
[null,"Puissance électrique max",null,null,{"$f":"'Données Double Service Elec'!I45","v":0},"kW","Débit global PAC préconisé",null,null,{"$f":"'Données Double Service Elec'!I48","v":0},"m³/h"]
[null,"Intensité électrique max",null,null,{"$f":"'Données Double Service Elec'!I46","v":0},"A","Diamètre préconisé des canalisations*",null,null,{"$f":"'Données Double Service Elec'!I49","v":0}]
[null,"Puissance apparente",null,null,{"$f":"'Données Double Service Elec'!I47","v":0},"kVA","HMT disponible",null,null,{"$f":"'Données Double Service Elec'!I50","v":0},"kPa"]
[null,null,null,null,null,null,"Pression maximum de service",null,null,{"$f":"'Données Double Service Elec'!I51","v":0},"bar"]
[null,null,null,null,null,null,"Debit Serpentin préconisé",null,null,{"$f":"'Données Double Service Elec'!I64","v":0},"m³/h"]
[null,null,null,null,null,null,"*selon la distance PAC-ballons renseignée"]
[null,"Dimensions et encombrement"]
[null,"Surface nécessaire installation PAC",null,null,null,{"$f":"'Données Double Service Elec'!I52","v":0},null,"m²"]
[null,"Dimensions 1 PAC (HxLxP)",null,null,null,{"$f":"_xlfn.TEXTJOIN(\" x \", TRUE, 'Données Double Service Elec'!I53:I55)","v":""},null,"mm"]
[null,"Hauteur minimale local",null,null,null,{"$f":"'Données Double Service Elec'!I56","v":0},null,"mm"]
[null,"Largeur de passage minimale local",null,null,null,{"$f":"'Données Double Service Elec'!I57","v":0},null,"mm"]
[]
[null,"Acoustique"]
[null,"Puissance sonore\nselon EN 12 102",null,"Pour une PAC à charge partielle",null,null,{"$f":"'Données Double Service Elec'!I58","v":0},"dB(A)"]
[null,null,null,"Pour la solution à pleine charge",null,null,{"$f":"'Données Double Service Elec'!I59","v":0},"dB(A)"]
[]
[null,"Coût"]
[null,"PPHT estimé",null,null,null,{"$f":"'Données Double Service Elec'!I60","v":0},"€"]
[]
[]
[]
[null,"Schéma de principe"]
[null,{"$f":"getSchemaDsElec","v":{"$error":"#VALUE!"}}]
[]
[]
[]
[]
[]
[]
[]
[]
[]
[]
[]
[]
[]
[]
[]
[]
[]
[]
[]
[]
[]
[]
[]
[]
[]
[]
[null,"Caractéristiques dimensionnelles (en mm)"]
[null,{"$f":"getImageDimensionsPacDsElec","v":{"$error":"#VALUE!"}}]
[]
[]
[]
[]
[]
[]
[]
[]
[]
[]
[]
[]
[]
[]
[]
[]
[]
[]
[]
[null,null,null,null,null,{"$f":"\"\"&'Données Double Service Elec'!I29","v":""}]

{"sheet":"Données Double Service Elec","index":8,"n_rows":67,"n_cols":8,"rows_kept":67,"cut":false,"hidden":true,"merged":[[27,0,66,0],[59,1,60,1],[57,1,58,1],[28,7,66,7],[47,1,50,1],[44,1,46,1],[41,1,43,1],[28,1,30,1],[31,1,40,1],[51,1,56,1],[61,1,66,1],[16,1,26,1],[0,0,26,0],[0,1,5,1],[6,1,11,1],[12,1,15,1]]}
["Entrées","Localisation","Ville",{"$f":"'Double Service Elec'!G16","v":"01 - AMBERIEU"}]
[null,null,"Altitude",{"$f":"'Double Service Elec'!$G$18","v":250}]
[null,null,"Température de base (Tbase)",{"$f":"'Double Service Elec'!G20","v":-11}]
[null,null,"Température été (Tete)",{"$f":"'Double Service Elec'!$G$22","v":35}]
[null,null,"Traitement Anti Corrosion",{"$f":"'Double Service Elec'!G24=\"Oui\"","v":false}]
[null,null,"BordDeMer / Montagne",{"$f":"IF('Double Service Elec'!C26 = \"\",\"\",'Double Service Elec'!G26=\"Oui\")","v":""}]
[null,"Installation","Distance PAC / ballon",{"$f":"'Double Service Elec'!R16","v":5}]
[null,null,"Distance PAC / Bâtiment",{"$f":"'Double Service Elec'!R18","v":2}]
[null,null,"taux de glycol",0]
[null,null,"Hauteur sous plafond",{"$f":"\"\"&'Double Service Elec'!R24","v":""}]
[null,null,"Largeur de porte",{"$f":"\"\"&'Double Service Elec'!R26","v":""}]
[null,null,"Gamme de Pac","AHP70"]
[null,"Circuit.s","Type",{"$f":"\"\"& 'Double Service Elec'!F38","v":""},{"$f":"\"\"& 'Double Service Elec'!I38","v":""},{"$f":"\"\"& 'Double Service Elec'!L38","v":""},{"$f":"\"\"& 'Double Service Elec'!O38","v":""},{"$f":"\"\"& 'Double Service Elec'!R38","v":""}]
[null,null,"Puissance circuit",{"$f":"IF('Double Service Elec'!F40 = \"\", \"\", 'Double Service Elec'!F40)","v":""},{"$f":"IF('Double Service Elec'!I40 = \"\", \"\", 'Double Service Elec'!I40)","v":""},{"$f":"IF('Double Service Elec'!L40 = \"\", \"\", 'Double Service Elec'!L40)","v":""},{"$f":"IF('Double Service Elec'!O40 = \"\", \"\", 'Double Service Elec'!O40)","v":""},{"$f":"IF('Double Service Elec'!R40 = \"\", \"\", 'Double Service Elec'!R40)","v":""}]
[null,null,"Consigne de départ",{"$f":"IF('Double Service Elec'!F42 = \"\", \"\", 'Double Service Elec'!F42)","v":""},{"$f":"IF('Double Service Elec'!I42 = \"\", \"\", 'Double Service Elec'!I42)","v":""},{"$f":"IF('Double Service Elec'!L42 = \"\", \"\", 'Double Service Elec'!L42)","v":""},{"$f":"IF('Double Service Elec'!O42 = \"\", \"\", 'Double Service Elec'!O42)","v":""},{"$f":"IF('Double Service Elec'!R42 = \"\", \"\", 'Double Service Elec'!R42)","v":""}]
[null,null,"Delta T",{"$f":"IF('Double Service Elec'!F44 = \"\", \"\", 'Double Service Elec'!F44)","v":""},{"$f":"IF('Double Service Elec'!I44 = \"\", \"\", 'Double Service Elec'!I44)","v":""},{"$f":"IF('Double Service Elec'!L44 = \"\", \"\", 'Double Service Elec'!L44)","v":""},{"$f":"IF('Double Service Elec'!O44 = \"\", \"\", 'Double Service Elec'!O44)","v":""},{"$f":"IF('Double Service Elec'!R44 = \"\", \"\", 'Double Service Elec'!R44)","v":""}]
[null,"Circuit ECS","Type de logement",{"$f":"'Double Service Elec'!F51","v":"Logements privés"}]
[null,null,"T1",{"$f":"'Double Service Elec'!C53","v":0}]
[null,null,"T2",{"$f":"'Double Service Elec'!C55","v":0}]
[null,null,"T3",{"$f":"'Double Service Elec'!C57","v":0}]
[null,null,"T4",{"$f":"'Double Service Elec'!E53","v":0}]
[null,null,"T5",{"$f":"'Double Service Elec'!E55","v":0}]
[null,null,"T6",{"$f":"'Double Service Elec'!E57","v":0}]
[null,null,"Temperature eau froide",{"$f":"\"\"&'Double Service Elec'!E59","v":"10"}]
[null,null,"Perte thermique de bouclage",{"$f":"\"\"&'Double Service Elec'!I59","v":""}]
[null,null,"Cycle AL",{"$f":"IF('Double Service Elec'!N53=\"Non\",\"\",'Double Service Elec'!N55)","v":""}]
[null,null,"Choix Solution ECS",{"$f":"IF('Double Service Elec'!T70<>\"\",'Double Service Elec'!T70,0)","v":0}]
["Sorties","Solutions","nom","Conso energetique mini : Economique","Conso energetique mini : Encombrement","Bas carbone : Economique","Bas carbone : Encombrement"]
[null,"Pac","nom Pac",null,null,null,null,"Système choisi pour générer le PDF"]
[null,null,"nb Pac"]
[null,null,"ChassisPac"]
[null,"Ballon & Appoints","Puissance App élec total"]
[null,null,"Ballon de charge 1"]
[null,null,"Ballon de charge 1 Appoint 1"]
[null,null,"Ballon de charge 1 Appoint 2"]
[null,null,"Ballon de charge 1 Appoint 3"]
[null,null,"Ballon de charge 2"]
[null,null,"Ballon Supplémentaire"]
[null,null,"Ballon Sup Appoint 1"]
[null,null,"Ballon Sup Appoint 2"]
[null,null,"Ballon Sup Appoint 3"]
[null,"Stats","Part PAC à Tbase"]
[null,null,"Puissance PAC à Tbase"]
[null,null,"Taux de couverture PAC annuel estimé"]
[null,"Besoins Elec","Puissance électrique max"]
[null,null,"Intensité électrique max"]
[null,null,"Puissance active"]
[null,"Hydraulique","Débit PAC préconisé"]
[null,null,"Diamètre préconisé des canalisations"]
[null,null,"HMT disponible"]
[null,null,"Pression maximale"]
[null,"Dimensions","Surface nécessaire installation PAC"]
[null,null,"Hauteur Pac"]
[null,null,"Largeur Pac"]
[null,null,"Profondeur Pac"]
[null,null,"Hauteur du plus gros ballon"]
[null,null,"Diametre du plus gros ballon"]
[null,"Puissance Sonore","P.sonore Charge partielle"]
[null,null,"P.sonore Pleine charge"]
[null,"Prix","PPHT estimé"]
[null,null,"code schéma"]
[null,"Données ECS","DS part pac à Tbase"]
[null,null,"DS part pac + appoint à Tbase"]
[null,null,"Debit Serpentin préconisé"]
[null,null,"Choix Ballon serpentin"]
[null,null,"Choix Ballon stockage 1"]
[null,null,"Choix Ballon stockage 2"]

{"sheet":"Données ECS Double Service Elec","index":9,"n_rows":1,"n_cols":6,"rows_kept":1,"cut":false,"hidden":true,"merged":[]}
["Puissance","Code Ballon serpentin","Code Ballon stockage 1","Code Ballon stockage 2","Puissance optimisée","Volume journalier"]

{"sheet":"Tutoriel ECS","index":10,"n_rows":72,"n_cols":5,"rows_kept":72,"cut":false,"hidden":false,"merged":[[18,3,19,16],[21,1,21,2],[21,3,21,16],[9,1,9,2],[11,3,12,16],[13,3,14,16],[16,1,16,2],[16,3,17,16],[1,2,2,8],[65,4,66,16],[28,3,28,16],[29,3,29,16],[32,3,32,16],[33,3,33,16],[36,3,36,16],[43,4,43,15],[46,1,46,2],[47,1,47,2],[48,4,49,16],[50,4,50,16],[56,4,57,16],[24,3,25,16],[4,1,4,9],[7,1,7,2]]}
[]
[null,null,"Tutoriel interface ECS 100% thermodynamique"]
[]
[]
[null,"Utilisez cette interface afin de dimensionner votre projet ECS 100% thermodynamique en plusieurs étapes:"]
[]
["1)","Paramétrez votre étude en remplissant les différents champs de données d'entrées:"]
[null,"Référence de l'étude",null,"Donnez un nom à votre étude, celui-ci sera le nom du document généré à l'issue de l'étude"]
[]
[null,"Localisation",null,"Indiquez la station météo la plus proche de votre projet, vous pouvez ensuite ajuster l'altitude ou directement la température extérieure de base"]
[null,null,null,"Choisissez si vous voulez appliquer un traitement anti-corrosion à la PAC"]
[null,null,null,"Pour certaines stations météo vous devrez indiquer si vous vous trouvez dans une zone montagne ou bord de mer: cela applique automatiquement un facteur correctif sur les performances de la PAC"]
[]
[null,null,null,"Indiquez la température extérieure maximale atteinte à l'emplacement où la PAC sera installée, en été. Ce paramètre impacte la production d'ECS en été et devra être compris entre 35 et 40°C."]
[]
[]
[null,"Installation",null,"Indiquez les distances entre la PAC et le batiment et entre la PAC et le ballon, afin d'estimer le volume primaire contenu dans les canalisations. Si vous ne les connaissez pas, des valeurs par défaut sont initialisées"]
[]
[null,null,null,"Si vous avez des contraintes de tailles (hauteur sous plafond, passage de porte etc) veuillez les indiquer dans le champs contraintes chaufferie. Le volume primaire de votre solution sera, si possible, adapté à ces contraintes."]
[]
[]
[null,"Besoin ECS",null,"Paramétrez votre batiment en indiquant le type parmis logements privés, sociaux ou senior et sa typologie. Le nombre total de logement est ensuite calculé automoatiquement."]
[null,null,null,"Indiquez la température minimale d'eau froide ainsi que les pertes thermiques du bouclage"]
[null,null,null,"Le volume journalier (en litres à 60°C) est aussi calculé automatiquement"]
[null,null,null,"Indiquez si la PAC doit prendre en charge les cycles anti-légionnelles. Si oui, précisez ensuite la consigne du cycle anti-légionnelles. Notez que pour une consigne suppérieure à 60°C, le cycle anti-légionnelle nécessitera l'usage d'un appoint supplémentaire."]
[]
[]
["2)","Déterminez le préparateur ECS, en cliquant sur le bouton prévu à cet effet"]
[null,null,null,"Choisissez ensuite dans la liste déroulante le préparateur ECS qui correspond le mieux à votre étude avant de générer des solutions."]
[null,null,null,"Attention, si vous modifiez les paramètres ECS après avoir appuyé sur \"Déterminer le préparateur ECS\", veuillez rappuyer sur ce même bouton."]
[]
["3)","Choisissez votre objectif de dimensionnement"]
[null,null,null,"Choississez le type de dimensionnement: \"Avec appoint électrique\" ou \"Sans appoint électrique\". Selon le paramétrage de l'étude, la solution \"sans apopint\" pourra proposer un minimum d'appoint."]
[null,null,null,"Choississez votre préférence PAC parmi la liste déroulante. Une solution \"la + économique\" vous sera proposé avec cette PAC."]
[]
["4)","Générez des solutions, en cliquant sur le bouton prévu à cet effet"]
[null,null,null,"Attention, si vous modifiez les paramètres de l'étude après avoir généré des solutions, veuillez rappuyer sur \"générer des solutions\"."]
[]
["5)","Identifiez la solution la plus adaptée à votre projet: "]
[null,"Faites votre choix parmi 3 solutions complètes:"]
[]
[null,"La solution la plus économique:",null,null,"Solution la moins chère en termes de coûts de fourniture."]
[null,"La solution la moins encombrante",null,null,"Solution occupant le moins de place en extérieur (surface PAC + dégagements). Cette solution peut parfois être la même que la solution « la + économique »."]
[null,"La solution choix PAC utilisateur",null,null,"Solution \"la plus économique\", avec la PAC sélectionnée dans l'onglet \"préférence PAC\". Attention, il est possible qu'il n'existe pas de solution dans cette colonne si le choix de la PAC n'est pas adapté à l'étude renseignée."]
[]
[null,"Accédez à de nombreuses données techniques sur les solutions proposées:"]
[null,"PAC",null,null,"Choix de la PAC et nombre"]
[null,"Appoint électrique total",null,null,"Somme des appoints électriques dimensionnés, voir dans les trois lignes en dessous leur répartition dans les différents ballons"]
[null,"Ballons de charge / supplémentaires",null,null,"Possibilité de solutions jusqu’à 3 ballons :ballon de charge 1 et 2 et ballon supplémentaire. Description dans la ligne inférieure de la répartition des appoints électriques."]
[]
[null,"Ballon préparateur et stockage ECS",null,null,"Retrouvez le(s) ballon(s) préparateur et de stockage ECS que vous avez choisi."]
[]
[null,"Part PAC à Tbase (ECS)",null,null,"Part PAC à Tbase de la solution correspondante, pour le poste ECS"]
[null,"Puissance totale PAC à Tbase",null,null,"Puissance calorifique totale à Tbase de la solution"]
[]
[null,"Données électriques",null,null,"Puissance et intensité électrique max associées à la solution: PAC + Appoint(s) électrique(s). "]
[null,null,null,null,"Puissance apparente associée à la solution (seulement PAC + appoint). Permet de donner une indication sur la possibilité ou non pour le client d’un tarif bleu. Un message s’affiche lorsque le tarif bleu est jugé possible, sur la base des données PAC et appoints."]
[]
[null,"Données hydrauliques",null,null,"Débit PAC préconisé de la solution, Diamètre des canalisations préconisé entre la/les PAC et le ballon. Hauteur manométrique disponible pour la solution "]
[null,null,null,null,"Pression maximale: Attention: la pression maximale est de 6 bar pour Izea châssis M et L. La pression max est de 3 bar pour Izea châssis S"]
[]
[null,"Données dimensionnelles",null,null,"Surface nécessaire à l’installation PAC, dimensions pour 1 PAC, hauteur et diamètre du plus gros ballon"]
[]
[null,"Données acoustiques",null,null,"Puissance sonore pour la solution PAC à pleine charge et puissance sonore pour une PAC à charge partielle, selon la norme EN 12102"]
[]
[null,"Coût",null,null,"Prix Public Hors Taxe de la solution choisie. Il s’agit d’une enveloppe qui comprend le prix du système PAC + ballon(s) primaire(s) + ballon prépérateur + appoint(s) + système de régulation et accessoires obligatoires. Le devis final peut légèrement différer de cette enveloppe."]
[]
[]
["6)","Cliquez sur \"générer étude de prédimensionnement\" afin d'être redirigé vers la synthèse de l'étude"]
[null,"Vous retrouverez sur cette onglet un récapitulatif de votre étude ainsi qu'un schéma de principe de votre solution PAC et les dimensions de la PAC sélectionnée."]
[]
["7)","Cliquez sur \"télecharger le rapport\" si vous souhaitez sauvegarder votre étude sur votre PC"]

{"sheet":"ECS","index":11,"n_rows":144,"n_cols":22,"rows_kept":144,"cut":false,"hidden":false,"merged":[[45,14,46,14],[69,15,70,18],[25,2,25,5],[25,6,25,8],[25,17,25,18],[27,2,27,5],[27,6,27,8],[27,17,27,18],[19,6,19,8],[19,17,19,18],[21,2,21,5],[21,6,21,8],[21,17,21,18],[23,2,23,5],[23,6,23,8],[35,10,37,12],[37,6,39,7],[37,8,39,8],[38,10,38,12],[40,16,40,17],[34,5,34,7],[34,10,34,13],[41,1,43,3],[49,11,49,13],[0,7,1,15],[8,5,8,17],[17,6,17,8],[17,17,17,18],[66,4,67,8],[66,15,67,18],[46,11,46,13],[47,5,47,7],[47,8,47,10],[47,11,47,13],[41,6,43,7],[45,5,45,7],[45,8,45,10],[45,11,45,13],[40,10,42,13],[50,11,50,13],[51,5,51,7],[51,8,51,10],[51,11,51,13],[48,5,48,7],[48,8,48,10],[48,11,48,13],[49,5,49,7],[49,8,49,10],[56,3,56,4],[53,19,54,19],[54,5,54,7],[54,8,54,10],[54,11,54,13],[52,5,52,7],[52,8,52,10],[52,11,52,13],[53,5,53,7],[53,8,53,10],[53,11,53,13],[53,16,54,18],[54,3,54,4],[57,11,57,13],[58,5,58,7],[58,8,58,10],[58,11,58,13],[55,5,55,7],[55,8,55,10],[55,11,55,13],[56,5,56,7],[56,8,56,10],[56,11,56,13],[93,8,93,11],[93,13,93,16],[93,18,93,21],[94,8,94,11],[94,13,94,16],[94,18,94,21],[74,3,74,19],[81,1,81,21],[89,9,89,10],[89,14,89,15],[89,19,89,20],[99,8,99,11],[99,13,99,16],[99,18,99,21],[101,8,101,11],[101,13,101,16],[101,18,101,21],[96,8,96,11],[96,13,96,16],[96,18,96,21],[98,8,98,11],[98,13,98,16],[98,18,98,21],[109,30,109,31],[103,8,103,11],[103,13,103,16],[103,18,103,21],[105,8,105,11],[105,13,105,16],[105,18,105,21],[111,3,111,6],[121,3,121,6],[109,3,109,6],[133,8,133,10],[122,3,124,6],[123,9,123,10],[123,14,123,15],[123,19,123,20],[118,3,119,6],[118,7,119,7],[119,8,119,11],[119,13,119,16],[119,18,119,21],[59,11,59,13],[60,5,60,7],[60,8,60,10],[60,11,60,13],[143,15,144,15],[143,18,144,19],[143,20,144,20],[140,3,140,6],[141,2,141,6],[143,4,144,6],[143,8,144,9],[143,10,144,10],[143,13,144,14],[133,13,133,15],[133,18,133,20],[135,3,135,6],[137,3,137,6],[139,2,139,6],[125,3,125,6],[127,3,127,6],[129,3,129,6],[131,3,131,6],[133,3,133,6],[143,7,144,7],[57,3,57,4],[58,3,58,4],[59,3,59,4],[60,3,60,4],[69,3,70,5],[69,7,70,10],[45,3,45,4],[46,3,46,4],[47,3,47,4],[48,3,48,4],[49,3,49,4],[50,3,50,4],[51,3,51,4],[52,3,52,4],[53,3,53,4],[59,5,59,7],[59,8,59,10],[57,5,57,7],[57,8,57,10],[50,5,50,7],[50,8,50,10],[46,5,46,7],[46,8,46,10],[55,3,55,4]]}
[null,null,null,null,null,null,null,"APPLICATION ECS"]
[]
[]
[]
[]
[]
[]
[]
[null,null,null,null,null,"Référence"]
[]
[]
[]
[]
[]
[]
[]
[]
[null,null,"Ville",null,null,null,"01 - AMBERIEU",null,null,null,null,null,null,"Distance PAC / ballon",null,null,null,5,null,"m"]
[]
[null,null,"Altitude",null,null,null,250,null,null,"m",null,null,null,"Distance PAC / Bâtiment",null,null,null,2,null,"m"]
[]
[null,null,"T° extérieure de base (Tbase)",null,null,null,-11,null,null,"°C"]
[]
[null,null,"T° extérieure maximale été",null,null,null,35,null,null,"°C",null,null,null,"Contraintes local technique / accès (si connues)"]
[]
[null,null,"Traitement Anti Corrosion",null,null,null,"Non",null,null,null,null,null,null,"Hauteur sous plafond",null,null,null,null,null,"mm"]
[]
[null,null,{"$f":"IF(VLOOKUP(G18,'Validation des Données'!A3:B174,2,FALSE)=0,\"\",VLOOKUP(G18,'Validation des Données'!A3:B174,2,FALSE))","v":""},null,null,null,null,null,null,null,null,null,null,"Largeur de passage",null,null,null,null,null,"mm"]
[]
[]
[]
[]
[]
[]
[null,null,null,"Bâtiment:",null,"Logements privés",null,null,null,null,"Anti-légionelle"]
[null,null,null,null,null,null,null,null,null,null,"Prise en charge cycle anti-légionnelle"]
[null,null,null,{"$f":"IF(F35=\"Résidence seniors\",\"Logements\",\"T1\")","v":"T1"},null,"T4",null,null,null,null,null,null,null,"Non"]
[null,null,null,null,null,null,"Nombre total de logements ",null,{"$f":"IF(F35=\"Résidence seniors\",C37,SUM(C37,C39,C41,E37,E39,E41))","v":0}]
[null,null,null,"T2",null,"T5",null,null,null,null,"Consigne anti-légionnelle",null,null,"60°C / 1h",null,null,"Estimation des besoins ECS:"]
[]
[null,null,null,"T3",null,"T6",null,null,null,null,"Pour ces températures de consigne, le cycle anti-légionnelle nécessitera l'usage d'un appoint supplémentaire",null,null,null,null,null,"Volume journalier",null,{"$f":"IF('Données ECS ECS'!F2=\"\",\"\",'Données ECS ECS'!F2)","v":""},"litres à 60°C"]
[null,"Température minimale d'eau froide",null,null,null,null,"Pertes thermiques du bouclage"]
[null,null,null,null,10,"°C",null,null,null,"kW"]
[]
[]
[null,null,"Solution","Puissance ECS nécessaire",null,"Ballon préparateur ECS",null,null,"Ballon stockage ECS 1",null,null,"Ballon stockage ECS 2"]
[null,null,{"$f":"IF(D47<>\"\",ROW()-ROW($C$46),\"\")","v":""},{"$f":"IF('Données ECS ECS'!E2=\"\",\"\",ROUNDUP('Données ECS ECS'!E2,0)&\" kW\")","v":""},null,{"$f":"IF('Données ECS ECS'!B2=\"\",\"\",INDEX('Informations Devis'!$C$5:$C$9999,MATCH('Données ECS ECS'!B2&\"\",'Informations Devis'!$A$5:$A$9999,0)))","v":""},null,null,{"$f":"IF('Données ECS ECS'!C2=\"\",\"\",INDEX('Informations Devis'!$C$5:$C$9999,MATCH('Données ECS ECS'!C2&\"\",'Informations Devis'!$A$5:$A$9999,0)))","v":""},null,null,{"$f":"IF('Données ECS ECS'!D2=\"\",\"\",INDEX('Informations Devis'!$C$5:$C$9999,MATCH('Données ECS ECS'!D2&\"\",'Informations Devis'!$A$5:$A$9999,0)))","v":""}]
[null,null,{"$f":"IF(D48<>\"\",ROW()-ROW($C$46),\"\")","v":""},{"$f":"IF('Données ECS ECS'!E3=\"\",\"\",ROUNDUP('Données ECS ECS'!E3,0)&\" kW\")","v":""},null,{"$f":"IF('Données ECS ECS'!B3=\"\",\"\",INDEX('Informations Devis'!$C$5:$C$9999,MATCH('Données ECS ECS'!B3&\"\",'Informations Devis'!$A$5:$A$9999,0)))","v":""},null,null,{"$f":"IF('Données ECS ECS'!C3=\"\",\"\",INDEX('Informations Devis'!$C$5:$C$9999,MATCH('Données ECS ECS'!C3&\"\",'Informations Devis'!$A$5:$A$9999,0)))","v":""},null,null,{"$f":"IF('Données ECS ECS'!D3=\"\",\"\",INDEX('Informations Devis'!$C$5:$C$9999,MATCH('Données ECS ECS'!D3&\"\",'Informations Devis'!$A$5:$A$9999,0)))","v":""}]
[null,null,"",{"$f":"IF('Données ECS ECS'!E4=\"\",\"\",ROUNDUP('Données ECS ECS'!E4,0)&\" kW\")","v":""},null,{"$f":"IF('Données ECS ECS'!B4=\"\",\"\",INDEX('Informations Devis'!$C$5:$C$9999,MATCH('Données ECS ECS'!B4&\"\",'Informations Devis'!$A$5:$A$9999,0)))","v":""},null,null,{"$f":"IF('Données ECS ECS'!C4=\"\",\"\",INDEX('Informations Devis'!$C$5:$C$9999,MATCH('Données ECS ECS'!C4&\"\",'Informations Devis'!$A$5:$A$9999,0)))","v":""},null,null,{"$f":"IF('Données ECS ECS'!D4=\"\",\"\",INDEX('Informations Devis'!$C$5:$C$9999,MATCH('Données ECS ECS'!D4&\"\",'Informations Devis'!$A$5:$A$9999,0)))","v":""}]
[null,null,"",{"$f":"IF('Données ECS ECS'!E5=\"\",\"\",ROUNDUP('Données ECS ECS'!E5,0)&\" kW\")","v":""},null,{"$f":"IF('Données ECS ECS'!B5=\"\",\"\",INDEX('Informations Devis'!$C$5:$C$9999,MATCH('Données ECS ECS'!B5&\"\",'Informations Devis'!$A$5:$A$9999,0)))","v":""},null,null,{"$f":"IF('Données ECS ECS'!C5=\"\",\"\",INDEX('Informations Devis'!$C$5:$C$9999,MATCH('Données ECS ECS'!C5&\"\",'Informations Devis'!$A$5:$A$9999,0)))","v":""},null,null,{"$f":"IF('Données ECS ECS'!D5=\"\",\"\",INDEX('Informations Devis'!$C$5:$C$9999,MATCH('Données ECS ECS'!D5&\"\",'Informations Devis'!$A$5:$A$9999,0)))","v":""}]
[null,null,"",{"$f":"IF('Données ECS ECS'!E6=\"\",\"\",ROUNDUP('Données ECS ECS'!E6,0)&\" kW\")","v":""},null,{"$f":"IF('Données ECS ECS'!B6=\"\",\"\",INDEX('Informations Devis'!$C$5:$C$9999,MATCH('Données ECS ECS'!B6&\"\",'Informations Devis'!$A$5:$A$9999,0)))","v":""},null,null,{"$f":"IF('Données ECS ECS'!C6=\"\",\"\",INDEX('Informations Devis'!$C$5:$C$9999,MATCH('Données ECS ECS'!C6&\"\",'Informations Devis'!$A$5:$A$9999,0)))","v":""},null,null,{"$f":"IF('Données ECS ECS'!D6=\"\",\"\",INDEX('Informations Devis'!$C$5:$C$9999,MATCH('Données ECS ECS'!D6&\"\",'Informations Devis'!$A$5:$A$9999,0)))","v":""}]
[null,null,"",{"$f":"IF('Données ECS ECS'!E7=\"\",\"\",ROUNDUP('Données ECS ECS'!E7,0)&\" kW\")","v":""},null,{"$f":"IF('Données ECS ECS'!B7=\"\",\"\",INDEX('Informations Devis'!$C$5:$C$9999,MATCH('Données ECS ECS'!B7&\"\",'Informations Devis'!$A$5:$A$9999,0)))","v":""},null,null,{"$f":"IF('Données ECS ECS'!C7=\"\",\"\",INDEX('Informations Devis'!$C$5:$C$9999,MATCH('Données ECS ECS'!C7&\"\",'Informations Devis'!$A$5:$A$9999,0)))","v":""},null,null,{"$f":"IF('Données ECS ECS'!D7=\"\",\"\",INDEX('Informations Devis'!$C$5:$C$9999,MATCH('Données ECS ECS'!D7&\"\",'Informations Devis'!$A$5:$A$9999,0)))","v":""}]
[null,null,"",{"$f":"IF('Données ECS ECS'!E8=\"\",\"\",ROUNDUP('Données ECS ECS'!E8,0)&\" kW\")","v":""},null,{"$f":"IF('Données ECS ECS'!B8=\"\",\"\",INDEX('Informations Devis'!$C$5:$C$9999,MATCH('Données ECS ECS'!B8&\"\",'Informations Devis'!$A$5:$A$9999,0)))","v":""},null,null,{"$f":"IF('Données ECS ECS'!C8=\"\",\"\",INDEX('Informations Devis'!$C$5:$C$9999,MATCH('Données ECS ECS'!C8&\"\",'Informations Devis'!$A$5:$A$9999,0)))","v":""},null,null,{"$f":"IF('Données ECS ECS'!D8=\"\",\"\",INDEX('Informations Devis'!$C$5:$C$9999,MATCH('Données ECS ECS'!D8&\"\",'Informations Devis'!$A$5:$A$9999,0)))","v":""}]
[null,null,"",{"$f":"IF('Données ECS ECS'!E9=\"\",\"\",ROUND('Données ECS ECS'!E9,0)&\" kW\")","v":""},null,{"$f":"IF('Données ECS ECS'!B9=\"\",\"\",INDEX('Informations Devis'!$C$5:$C$9999,MATCH('Données ECS ECS'!B9&\"\",'Informations Devis'!$A$5:$A$9999,0)))","v":""},null,null,{"$f":"IF('Données ECS ECS'!C9=\"\",\"\",INDEX('Informations Devis'!$C$5:$C$9999,MATCH('Données ECS ECS'!C9&\"\",'Informations Devis'!$A$5:$A$9999,0)))","v":""},null,null,{"$f":"IF('Données ECS ECS'!D9=\"\",\"\",INDEX('Informations Devis'!$C$5:$C$9999,MATCH('Données ECS ECS'!D9&\"\",'Informations Devis'!$A$5:$A$9999,0)))","v":""},null,null,null,null,"Choix solution"]
[null,null,"",{"$f":"IF('Données ECS ECS'!E10=\"\",\"\",ROUND('Données ECS ECS'!E10,0)&\" kW\")","v":""},null,{"$f":"IF('Données ECS ECS'!B10=\"\",\"\",INDEX('Informations Devis'!$C$5:$C$9999,MATCH('Données ECS ECS'!B10&\"\",'Informations Devis'!$A$5:$A$9999,0)))","v":""},null,null,{"$f":"IF('Données ECS ECS'!C10=\"\",\"\",INDEX('Informations Devis'!$C$5:$C$9999,MATCH('Données ECS ECS'!C10&\"\",'Informations Devis'!$A$5:$A$9999,0)))","v":""},null,null,{"$f":"IF('Données ECS ECS'!D10=\"\",\"\",INDEX('Informations Devis'!$C$5:$C$9999,MATCH('Données ECS ECS'!D10&\"\",'Informations Devis'!$A$5:$A$9999,0)))","v":""}]
[null,null,"",{"$f":"IF('Données ECS ECS'!E11=\"\",\"\",ROUND('Données ECS ECS'!E11,0)&\" kW\")","v":""},null,{"$f":"IF('Données ECS ECS'!B11=\"\",\"\",INDEX('Informations Devis'!$C$5:$C$9999,MATCH('Données ECS ECS'!B11&\"\",'Informations Devis'!$A$5:$A$9999,0)))","v":""},null,null,{"$f":"IF('Données ECS ECS'!C11=\"\",\"\",INDEX('Informations Devis'!$C$5:$C$9999,MATCH('Données ECS ECS'!C11&\"\",'Informations Devis'!$A$5:$A$9999,0)))","v":""},null,null,{"$f":"IF('Données ECS ECS'!D11=\"\",\"\",INDEX('Informations Devis'!$C$5:$C$9999,MATCH('Données ECS ECS'!D11&\"\",'Informations Devis'!$A$5:$A$9999,0)))","v":""}]
[null,null,"",{"$f":"IF('Données ECS ECS'!E12=\"\",\"\",ROUND('Données ECS ECS'!E12,0)&\" kW\")","v":""},null,{"$f":"IF('Données ECS ECS'!B12=\"\",\"\",INDEX('Informations Devis'!$C$5:$C$9999,MATCH('Données ECS ECS'!B12&\"\",'Informations Devis'!$A$5:$A$9999,0)))","v":""},null,null,{"$f":"IF('Données ECS ECS'!C12=\"\",\"\",INDEX('Informations Devis'!$C$5:$C$9999,MATCH('Données ECS ECS'!C12&\"\",'Informations Devis'!$A$5:$A$9999,0)))","v":""},null,null,{"$f":"IF('Données ECS ECS'!D12=\"\",\"\",INDEX('Informations Devis'!$C$5:$C$9999,MATCH('Données ECS ECS'!D12&\"\",'Informations Devis'!$A$5:$A$9999,0)))","v":""}]
[null,null,"",{"$f":"IF('Données ECS ECS'!E13=\"\",\"\",ROUND('Données ECS ECS'!E13,0)&\" kW\")","v":""},null,{"$f":"IF('Données ECS ECS'!B13=\"\",\"\",INDEX('Informations Devis'!$C$5:$C$9999,MATCH('Données ECS ECS'!B13&\"\",'Informations Devis'!$A$5:$A$9999,0)))","v":""},null,null,{"$f":"IF('Données ECS ECS'!C13=\"\",\"\",INDEX('Informations Devis'!$C$5:$C$9999,MATCH('Données ECS ECS'!C13&\"\",'Informations Devis'!$A$5:$A$9999,0)))","v":""},null,null,{"$f":"IF('Données ECS ECS'!D13=\"\",\"\",INDEX('Informations Devis'!$C$5:$C$9999,MATCH('Données ECS ECS'!D13&\"\",'Informations Devis'!$A$5:$A$9999,0)))","v":""}]
[null,null,"",{"$f":"IF('Données ECS ECS'!E14=\"\",\"\",ROUND('Données ECS ECS'!E14,0)&\" kW\")","v":""},null,{"$f":"IF('Données ECS ECS'!B14=\"\",\"\",INDEX('Informations Devis'!$C$5:$C$9999,MATCH('Données ECS ECS'!B14&\"\",'Informations Devis'!$A$5:$A$9999,0)))","v":""},null,null,{"$f":"IF('Données ECS ECS'!C14=\"\",\"\",INDEX('Informations Devis'!$C$5:$C$9999,MATCH('Données ECS ECS'!C14&\"\",'Informations Devis'!$A$5:$A$9999,0)))","v":""},null,null,{"$f":"IF('Données ECS ECS'!D14=\"\",\"\",INDEX('Informations Devis'!$C$5:$C$9999,MATCH('Données ECS ECS'!D14&\"\",'Informations Devis'!$A$5:$A$9999,0)))","v":""}]
[null,null,"",{"$f":"IF('Données ECS ECS'!E15=\"\",\"\",ROUND('Données ECS ECS'!E15,0)&\" kW\")","v":""},null,{"$f":"IF('Données ECS ECS'!B15=\"\",\"\",INDEX('Informations Devis'!$C$5:$C$9999,MATCH('Données ECS ECS'!B15&\"\",'Informations Devis'!$A$5:$A$9999,0)))","v":""},null,null,{"$f":"IF('Données ECS ECS'!C15=\"\",\"\",INDEX('Informations Devis'!$C$5:$C$9999,MATCH('Données ECS ECS'!C15&\"\",'Informations Devis'!$A$5:$A$9999,0)))","v":""},null,null,{"$f":"IF('Données ECS ECS'!D15=\"\",\"\",INDEX('Informations Devis'!$C$5:$C$9999,MATCH('Données ECS ECS'!D15&\"\",'Informations Devis'!$A$5:$A$9999,0)))","v":""}]
[null,null,"",{"$f":"IF('Données ECS ECS'!E16=\"\",\"\",ROUND('Données ECS ECS'!E16,0)&\" kW\")","v":""},null,{"$f":"IF('Données ECS ECS'!B16=\"\",\"\",INDEX('Informations Devis'!$C$5:$C$9999,MATCH('Données ECS ECS'!B16&\"\",'Informations Devis'!$A$5:$A$9999,0)))","v":""},null,null,{"$f":"IF('Données ECS ECS'!C16=\"\",\"\",INDEX('Informations Devis'!$C$5:$C$9999,MATCH('Données ECS ECS'!C16&\"\",'Informations Devis'!$A$5:$A$9999,0)))","v":""},null,null,{"$f":"IF('Données ECS ECS'!D16=\"\",\"\",INDEX('Informations Devis'!$C$5:$C$9999,MATCH('Données ECS ECS'!D16&\"\",'Informations Devis'!$A$5:$A$9999,0)))","v":""}]
[]
[]
[]
[]
[]
[null,null,null,null,"Type de dimensionnement",null,null,null,null,null,null,null,null,null,null,"Préférence PAC (facultatif)"]
[]
[]
[null,null,null,"Avec appoint électrique",null,null,null,"Sans appoint électrique"]
[]
[]
[]
[]
[null,null,null,"Si vous modifiez des paramètres de l'étude après avoir généré des solutions, veuillez rappuyer sur \"Déterminer le préparateur ECS\" (si paramètres ECS modifiés), puis sur \"Générer des solutions\"."]
[]
[]
[]
[]
[]
[]
[null,"Ce dimensionnement est réalisé à titre indicatif afin de guider l'utilisateur vers un système en fonction des données d'entrées renseignées. Il ne remplace pas une étude de dimensionnement finale effectuée par le service Avant Vente ACV."]
[]
[]
[]
[]
[]
[]
[]
[null,null,null,null,null,null,"PAC",null,null,{"$f":"IF(ISBLANK('Données ECS'!D28),\"\",_xlfn.TEXTJOIN(\" x \", TRUE, 'Données ECS'!D29, 'Données ECS'!D28))","v":""},null,null,null,null,{"$f":"IF(ISBLANK('Données ECS'!E28),\"\",_xlfn.TEXTJOIN(\" x \", TRUE, 'Données ECS'!E29, 'Données ECS'!E28))","v":""},null,null,null,null,{"$f":"IF(ISBLANK('Données ECS'!F28),\"\",_xlfn.TEXTJOIN(\" x \", TRUE, 'Données ECS'!F29, 'Données ECS'!F28))","v":""}]
[]
[null,null,null,null,null,null,"Appoint électrique total",null,null,{"$f":"IF(ISBLANK('Données ECS'!D31),\"\",'Données ECS'!D31)","v":""},"kW",null,null,null,{"$f":"IF(ISBLANK('Données ECS'!E31),\"\",'Données ECS'!E31)","v":""},"kW",null,null,null,{"$f":"IF(ISBLANK('Données ECS'!F31),\"\",'Données ECS'!F31)","v":""},"kW"]
[]
[null,null,null,null,null,null,"Ballon de charge 1",null,{"$f":"IF(ISBLANK('Données ECS'!D32),\"\",'Données ECS'!D32)","v":""},null,null,null,null,{"$f":"IF(ISBLANK('Données ECS'!E32),\"\",'Données ECS'!E32)","v":""},null,null,null,null,{"$f":"IF(ISBLANK('Données ECS'!F32),\"\",'Données ECS'!F32)","v":""}]
[null,null,null,null,null,null,"Appoint.s équipé.s",null,{"$f":"_xlfn.TEXTJOIN(\" + \",TRUE,_xlfn.MAP('Données ECS'!D33:D35,_xlfn.LAMBDA(_xlpm.puissance,IF(_xlpm.puissance=\"\",\"\",_xlpm.puissance&\" kW\"))))","v":""},null,null,null,null,{"$f":"_xlfn.TEXTJOIN(\" + \",TRUE,_xlfn.MAP('Données ECS'!E33:E35,_xlfn.LAMBDA(_xlpm.puissance,IF(_xlpm.puissance=\"\",\"\",_xlpm.puissance&\" kW\"))))","v":""},null,null,null,null,{"$f":"_xlfn.TEXTJOIN(\" + \",TRUE,_xlfn.MAP('Données ECS'!F33:F35,_xlfn.LAMBDA(_xlpm.puissance,IF(_xlpm.puissance=\"\",\"\",_xlpm.puissance&\" kW\"))))","v":""}]
[]
[null,null,null,null,null,null,"Ballon de charge 2",null,{"$f":"IF(ISBLANK('Données ECS'!D36),\"\",'Données ECS'!D36)","v":""},null,null,null,null,{"$f":"IF(ISBLANK('Données ECS'!E36),\"\",'Données ECS'!E36)","v":""},null,null,null,null,{"$f":"IF(ISBLANK('Données ECS'!F36),\"\",'Données ECS'!F36)","v":""}]
[]
[null,null,null,null,null,null,"Ballon Supplémentaire",null,{"$f":"IF(ISBLANK('Données ECS'!D37),\"\",'Données ECS'!D37)","v":""},null,null,null,null,{"$f":"IF(ISBLANK('Données ECS'!E37),\"\",'Données ECS'!E37)","v":""},null,null,null,null,{"$f":"IF(ISBLANK('Données ECS'!F37),\"\",'Données ECS'!F37)","v":""}]
[null,null,null,null,null,null,"Appoint.s équipé.s",null,{"$f":"_xlfn.TEXTJOIN(\" + \",TRUE,_xlfn.MAP('Données ECS'!D38:D40,_xlfn.LAMBDA(_xlpm.puissance,IF(_xlpm.puissance=\"\",\"\",_xlpm.puissance&\" kW\"))))","v":""},null,null,null,null,{"$f":"_xlfn.TEXTJOIN(\" + \",TRUE,_xlfn.MAP('Données ECS'!E38:E40,_xlfn.LAMBDA(_xlpm.puissance,IF(_xlpm.puissance=\"\",\"\",_xlpm.puissance&\" kW\"))))","v":""},null,null,null,null,{"$f":"_xlfn.TEXTJOIN(\" + \",TRUE,_xlfn.MAP('Données ECS'!F38:F40,_xlfn.LAMBDA(_xlpm.puissance,IF(_xlpm.puissance=\"\",\"\",_xlpm.puissance&\" kW\"))))","v":""}]
[]
[null,null,null,null,null,null,"Ballon préparateur ECS",null,{"$f":"IF(ISBLANK('Données ECS'!D61),\"\",'Données ECS'!D61)","v":""},null,null,null,null,{"$f":"IF(ISBLANK('Données ECS'!E61),\"\",'Données ECS'!E61)","v":""},null,null,null,null,{"$f":"IF(ISBLANK('Données ECS'!F61),\"\",'Données ECS'!F61)","v":""}]
[]
[null,null,null,null,null,null,"Ballon stockage ECS 1",null,{"$f":"IF(ISBLANK('Données ECS'!D62),\"\",'Données ECS'!D62)","v":""},null,null,null,null,{"$f":"IF(ISBLANK('Données ECS'!E62),\"\",'Données ECS'!E62)","v":""},null,null,null,null,{"$f":"IF(ISBLANK('Données ECS'!F62),\"\",'Données ECS'!F62)","v":""}]
[]
[null,null,null,null,null,null,"Ballon stockage ECS 2",null,{"$f":"IF(ISBLANK('Données ECS'!D63),\"\",'Données ECS'!D63)","v":""},null,null,null,null,{"$f":"IF(ISBLANK('Données ECS'!E63),\"\",'Données ECS'!E63)","v":""},null,null,null,null,{"$f":"IF(ISBLANK('Données ECS'!F63),\"\",'Données ECS'!F63)","v":""}]
[]
[]
[]
[null,null,null,"Part PAC à Tbase (ECS)",null,null,null,null,null,{"$f":"IF(ISBLANK('Données ECS'!D41),\"\",'Données ECS'!D41 * 100)","v":""},"%",null,null,null,{"$f":"IF(ISBLANK('Données ECS'!E41),\"\",'Données ECS'!E41 * 100)","v":""},"%",null,null,null,{"$f":"IF(ISBLANK('Données ECS'!F41),\"\",'Données ECS'!F41 * 100)","v":""},"%"]
[]
[null,null,null,"Puissance Totale PAC à Tbase",null,null,null,null,null,{"$f":"IF(ISBLANK('Données ECS'!D42),\"\",'Données ECS'!D42)","v":""},"kW",null,null,null,{"$f":"IF(ISBLANK('Données ECS'!E42),\"\",'Données ECS'!E42)","v":""},"kW",null,null,null,{"$f":"IF(ISBLANK('Données ECS'!F42),\"\",'Données ECS'!F42)","v":""},"kW"]
[]
[]
[null,null,null,null,null,null,"Puissance électrique max",null,null,{"$f":"IF(ISBLANK('Données ECS'!D43),\"\",'Données ECS'!D43)","v":""},"kW",null,null,null,{"$f":"IF(ISBLANK('Données ECS'!E43),\"\",'Données ECS'!E43)","v":""},"kW",null,null,null,{"$f":"IF(ISBLANK('Données ECS'!F43),\"\",'Données ECS'!F43)","v":""},"kW"]
[]
[null,null,null,null,null,null,"Intensité électrique max",null,null,{"$f":"IF(ISBLANK('Données ECS'!D44),\"\",'Données ECS'!D44)","v":""},"A",null,null,null,{"$f":"IF(ISBLANK('Données ECS'!E44),\"\",'Données ECS'!E44)","v":""},"A",null,null,null,{"$f":"IF(ISBLANK('Données ECS'!F44),\"\",'Données ECS'!F44)","v":""},"A"]
[]
[null,null,null,"Puissance apparente",null,null,null,null,null,{"$f":"IF(ISBLANK('Données ECS'!D45),\"\",'Données ECS'!D45)","v":""},"kVA",null,null,null,{"$f":"IF(ISBLANK('Données ECS'!E45),\"\",'Données ECS'!E45)","v":""},"kVA",null,null,null,{"$f":"IF(ISBLANK('Données ECS'!F45),\"\",'Données ECS'!F45)","v":""},"kVA"]
[]
[]
[null,null,null,"Débit global PAC préconisé",null,null,null,null,null,{"$f":"IF(ISBLANK('Données ECS'!D46),\"\",'Données ECS'!D46)","v":""},"m³/h",null,null,null,{"$f":"IF(ISBLANK('Données ECS'!E46),\"\",'Données ECS'!E46)","v":""},"m³/h",null,null,null,{"$f":"IF(ISBLANK('Données ECS'!F46),\"\",'Données ECS'!F46)","v":""},"m³/h"]
[null,null,null,"Diamètre préconisé des canalisations"]
[null,null,null,null,null,null,null,null,null,{"$f":"IF(ISBLANK('Données ECS'!D47),\"\",'Données ECS'!D47)","v":""},null,null,null,null,{"$f":"IF(ISBLANK('Données ECS'!E47),\"\",'Données ECS'!E47)","v":""},null,null,null,null,{"$f":"IF(ISBLANK('Données ECS'!F47),\"\",'Données ECS'!F47)","v":""}]
[]
[null,null,null,"HMT disponible",null,null,null,null,null,{"$f":"IF(ISBLANK('Données ECS'!D48),\"\",'Données ECS'!D48)","v":""},"kPa",null,null,null,{"$f":"IF(ISBLANK('Données ECS'!E48),\"\",'Données ECS'!E48)","v":""},"kPa",null,null,null,{"$f":"IF(ISBLANK('Données ECS'!F48),\"\",'Données ECS'!F48)","v":""},"kPa"]
[]
[null,null,null,"Pression maximum de service",null,null,null,null,null,{"$f":"IF(ISBLANK('Données ECS'!D49),\"\",'Données ECS'!D49)","v":""},"bar",null,null,null,{"$f":"IF(ISBLANK('Données ECS'!E49),\"\",'Données ECS'!E49)","v":""},"bar",null,null,null,{"$f":"IF(ISBLANK('Données ECS'!F49),\"\",'Données ECS'!F49)","v":""},"bar"]
[]
[null,null,null,"Débit préconisé serpentin",null,null,null,null,null,{"$f":"IF(ISBLANK('Données ECS'!D60),\"\",'Données ECS'!D60)","v":""},"m³/h",null,null,null,{"$f":"IF(ISBLANK('Données ECS'!E60),\"\",'Données ECS'!E60)","v":""},"m³/h",null,null,null,{"$f":"IF(ISBLANK('Données ECS'!F60),\"\",'Données ECS'!F60)","v":""},"m³/h"]
[]
[null,null,null,"Surface nécessaire installation PAC",null,null,null,null,null,{"$f":"IF(ISBLANK('Données ECS'!D50),\"\",'Données ECS'!D50)","v":""},"m²",null,null,null,{"$f":"IF(ISBLANK('Données ECS'!E50),\"\",'Données ECS'!E50)","v":""},"m²",null,null,null,{"$f":"IF(ISBLANK('Données ECS'!F50),\"\",'Données ECS'!F50)","v":""},"m²"]
[]
[null,null,null,"Dimensions 1 PAC (HxLxP)",null,null,null,null,{"$f":"IF(ISBLANK('Données ECS'!D51),\"\",_xlfn.TEXTJOIN(\" x \",TRUE, 'Données ECS'!D51:D53))","v":""},null,null,"mm",null,{"$f":"IF(ISBLANK('Données ECS'!E51),\"\",_xlfn.TEXTJOIN(\" x \",TRUE, 'Données ECS'!E51:E53))","v":""},null,null,"mm",null,{"$f":"IF(ISBLANK('Données ECS'!F51),\"\",_xlfn.TEXTJOIN(\" x \",TRUE, 'Données ECS'!F51:F53))","v":""},null,null,"mm"]
[]
[null,null,null,"Hauteur minimale local",null,null,null,null,null,{"$f":"IF(ISBLANK('Données ECS'!D54),\"\",'Données ECS'!D54)","v":""},"mm",null,null,null,{"$f":"IF(ISBLANK('Données ECS'!E54),\"\",'Données ECS'!E54)","v":""},"mm",null,null,null,{"$f":"IF(ISBLANK('Données ECS'!F54),\"\",'Données ECS'!F54)","v":""},"mm"]
[]
[null,null,null,"Largeur de passage minimale local",null,null,null,null,null,{"$f":"IF(ISBLANK('Données ECS'!D55),\"\",'Données ECS'!D55)","v":""},"mm",null,null,null,{"$f":"IF(ISBLANK('Données ECS'!E55),\"\",'Données ECS'!E55)","v":""},"mm",null,null,null,{"$f":"IF(ISBLANK('Données ECS'!F55),\"\",'Données ECS'!F55)","v":""},"mm"]
[]
[null,null,"Puissance sonore 1 PAC à charge partielle\nPuissance sonore 1 PAC à charge partielle\nPuissance sonore 1 PAC à charge partielle",null,null,null,null,null,null,{"$f":"IF(ISBLANK('Données ECS'!D56),\"\",'Données ECS'!D56)","v":""},"dB(A)",null,null,null,{"$f":"IF(ISBLANK('Données ECS'!E56),\"\",'Données ECS'!E56)","v":""},"dB(A)",null,null,null,{"$f":"IF(ISBLANK('Données ECS'!F56),\"\",'Données ECS'!F56)","v":""},"dB(A)"]
[null,null,null,"Selon la norme EN 12-102"]
[null,null,"Puissance sonore totale à pleine charge",null,null,null,null,null,null,{"$f":"IF(ISBLANK('Données ECS'!D57),\"\",'Données ECS'!D57)","v":""},"dB(A)",null,null,null,{"$f":"IF(ISBLANK('Données ECS'!E57),\"\",'Données ECS'!E57)","v":""},"dB(A)",null,null,null,{"$f":"IF(ISBLANK('Données ECS'!F57),\"\",'Données ECS'!F57)","v":""},"dB(A)"]
[]
[null,null,null,null,"PPHT estimé",null,null,null,{"$f":"IF(ISBLANK('Données ECS'!D58),\"\",'Données ECS'!D58)","v":""},null,"€",null,null,{"$f":"IF(ISBLANK('Données ECS'!E58),\"\",'Données ECS'!E58)","v":""},null,"€",null,null,{"$f":"IF(ISBLANK('Données ECS'!F58),\"\",'Données ECS'!F58)","v":""},null,"€"]

{"sheet":"PDF ECS","index":12,"n_rows":124,"n_cols":11,"rows_kept":124,"cut":false,"hidden":false,"merged":[[38,1,38,2],[1,3,1,8],[3,1,6,10],[9,4,9,7],[10,4,10,7],[17,1,17,4],[14,1,14,3],[14,4,14,5],[14,7,14,8],[15,1,15,4],[15,7,15,8],[16,1,16,4],[16,7,16,8],[30,1,30,3],[34,8,34,10],[35,8,35,10],[36,8,36,10],[37,3,37,4],[31,1,31,3],[37,1,37,2],[18,1,18,4],[27,1,27,3],[27,7,27,9],[28,1,28,3],[29,1,29,3],[17,7,17,8],[19,1,19,4],[22,1,22,4],[22,5,22,8],[22,9,22,10],[40,1,40,2],[44,1,44,2],[44,3,44,4],[44,5,44,6],[44,7,44,8],[40,3,40,4],[40,5,40,6],[40,7,40,8],[45,1,45,2],[45,3,45,4],[45,5,45,6],[45,7,45,8],[41,1,41,2],[41,3,41,4],[41,5,41,6],[41,7,41,8],[42,1,42,2],[42,3,42,4],[67,3,67,5],[46,1,46,2],[46,3,46,4],[46,7,46,8],[49,1,49,4],[50,1,50,4],[53,1,53,3],[53,6,53,8],[54,1,54,3],[54,6,54,8],[55,1,55,3],[55,6,55,8],[70,1,70,4],[123,5,123,6],[75,1,98,10],[103,1,122,10],[56,6,56,8],[57,6,57,8],[60,1,60,4],[60,5,60,6],[61,1,61,4],[61,5,61,6],[62,1,62,4],[62,5,62,6],[63,1,63,4],[63,5,63,6],[66,1,67,2],[66,3,66,5]]}
[]
[null,null,null,"ECS",null,null,null,null,null,null,{"$f":"\"Version \"&version","v":"Version 3.1"}]
[]
[null,"Cet outil est avant tout un outil où les Utilisateurs se voient proposer une aide au dimensionnement pour les pompes à chaleur pour la production d'ECS collective. \nLes informations indiquées sur l'Outil sont données à titre indicatif, et sont susceptibles d’évoluer. Par ailleurs, les renseignements figurants sur l'Outil ne sont pas exhaustifs. Ils sont donnés sous réserve de modifications ayant été apportées depuis leur mise en ligne. ACV n'assume aucune responsabilité quant aux conséquences directes ou indirectes, quelle qu'en soit la nature, de l'utilisation de l’Outil et de son Contenu.\n"]
[]
[]
[]
[]
[]
[null,null,null,"Référence du projet:",{"$f":"ECS!F9","v":"Référence"}]
[null,null,null,"Date:",{"$f":"TODAY()","v":"2024-10-28"}]
[]
[null,"Localisation",null,null,null,null,null,"Installation"]
[]
[null,"Ville",null,null,{"$f":"\"\"&'Données ECS'!I1","v":""},null,null,"Distance PAC / ballon",null,{"$f":"'Données ECS'!I7","v":0},"m"]
[null,"Altitude",null,null,null,{"$f":"'Données ECS'!I2","v":0},"m","Distance PAC / Bâtiment",null,{"$f":"'Données ECS'!I8","v":0},"m"]
[null,"Température extérieure de base",null,null,null,{"$f":"'Données ECS'!I3","v":0},"°C","Hauteur sous plafond",null,{"$f":"'Données ECS'!I10","v":0},"mm"]
[null,"Température maximale été",null,null,null,{"$f":"'Données ECS'!I4","v":0},"°C","Largeur de passage",null,{"$f":"'Données ECS'!I11","v":0},"mm"]
[null,"Traitement Anti Corrosion nécessaire",null,null,null,{"$f":"IF('Données ECS'!I5,\"oui\",\"non\")","v":"non"}]
[null,"Zone \"montagne ou bord de mer\"",null,null,null,{"$f":"IF('Données ECS'!I6=TRUE,\"oui\",\"non\")","v":"non"}]
[]
[null,"Besoins ECS"]
[null,"Logements privés",null,null,null,"Logements sociaux",null,null,null,"Logements séniors"]
[null,"T1",{"$f":"IF('Données ECS'!$I$13=\"Logements privés\",'Données ECS'!I14,\"\")","v":""},"T4",{"$f":"IF('Données ECS'!$I$13=\"Logements privés\",'Données ECS'!I17,\"\")","v":""},"T1",{"$f":"IF('Données ECS'!$I$13=\"Logements sociaux\",'Données ECS'!I14,\"\")","v":""},"T4",{"$f":"IF('Données ECS'!$I$13=\"Logements sociaux\",'Données ECS'!I17,\"\")","v":""},"Logements",{"$f":"IF('Données ECS'!$I$13=\"Résidence seniors\",'Données ECS'!I14,\"\")","v":""}]
[null,"T2",{"$f":"IF('Données ECS'!$I$13=\"Logements privés\",'Données ECS'!I15,\"\")","v":""},"T5",{"$f":"IF('Données ECS'!$I$13=\"Logements privés\",'Données ECS'!I18,\"\")","v":""},"T2",{"$f":"IF('Données ECS'!$I$13=\"Logements sociaux\",'Données ECS'!I15,\"\")","v":""},"T5",{"$f":"IF('Données ECS'!$I$13=\"Logements sociaux\",'Données ECS'!I18,\"\")","v":""}]
[null,"T3",{"$f":"IF('Données ECS'!$I$13=\"Logements privés\",'Données ECS'!I16,\"\")","v":""},"T6",{"$f":"IF('Données ECS'!$I$13=\"Logements privés\",'Données ECS'!I19,\"\")","v":""},"T3",{"$f":"IF('Données ECS'!$I$13=\"Logements sociaux\",'Données ECS'!I16,\"\")","v":""},"T6",{"$f":"IF('Données ECS'!$I$13=\"Logements sociaux\",'Données ECS'!I19,\"\")","v":""}]
[]
[null,"Température minimale d'eau froide",null,null,{"$f":"\"\"&'Données ECS'!I20","v":""},"°C",null,"Nombre total de logements",null,null,{"$f":"SUM('Données ECS'!I14:I19)","v":0}]
[null,"Pertes thermiques du bouclage",null,null,{"$f":"\"\"&'Données ECS'!I21","v":""},"kW"]
[null,"Prise en charge anti-légionelle",null,null,{"$f":"ECS!N37","v":"Non"}]
[null,"Consigne anti-légionelle",null,null,{"$f":"\"\"&'Données ECS'!I22","v":""}]
[null,"Volume journalier",null,null,{"$f":"IF('Données ECS ECS'!F2=\"\",\"\",'Données ECS ECS'!F2)","v":""},"litres à 60°C"]
[]
[]
[null,"Résultat",null,null,null,null,null,"Solution choisie",{"$f":"_xlfn.SWITCH('Données ECS'!I24,FALSE,\"Avec appoint électrique\",TRUE,\"Sans appoint électrique\",\"\")","v":""}]
[null,null,null,null,null,null,null,null,{"$f":"INDEX('Données ECS'!D27:F27,MATCH('Données ECS'!I26,'Données ECS'!D26:F26,0))","v":{"$error":"#N/A"}}]
[null,"Equipement",null,null,null,null,null,{"$f":"IF('Données ECS'!I26='Données ECS'!F26,\"Préférence PAC\",\"\")","v":""},{"$f":"IF('Données ECS'!I26='Données ECS'!F26,'Données ECS'!J25,\"\")","v":""}]
[null,"PAC",null,{"$f":"_xlfn.TEXTJOIN(\" \", TRUE, 'Données ECS'!I29,'Données ECS'!I28)","v":""}]
[null,"Appoint électrique total",null,{"$f":"'Données ECS'!I31","v":0},"kW"]
[]
[null,"Ballon ECS",null,"Ballon préparateur",null,"Ballon  de stockage 1",null,"Ballon  de stockage 2"]
[null,"Type",null,{"$f":"\"\"&'Données ECS'!I61","v":""},null,{"$f":"\"\"&'Données ECS'!I62","v":""},null,{"$f":"\"\"&'Données ECS'!I63","v":""}]
[null,"Puissance ECS nécessaire",null,{"$f":"IF('Données ECS'!I23=0,\"\",ROUNDUP(INDEX('Données ECS ECS'!E2:E16,'Données ECS'!I23),0))","v":""},null,"kW"]
[]
[null,"Ballon primaire",null,"Ballon de charge 1",null,"Ballon de charge 2",null,"Ballon Supplémentaire"]
[null,"Type",null,{"$f":"\"\"&'Données ECS'!I32","v":""},null,{"$f":"\"\"&'Données ECS'!I36","v":""},null,{"$f":"\"\"&'Données ECS'!I37","v":""}]
[null,"Appoint(s) équipé(s)",null,{"$f":"_xlfn.TEXTJOIN(\" + \",TRUE,_xlfn.MAP('Données ECS'!I33:I35,_xlfn.LAMBDA(_xlpm.puissance,IF(_xlpm.puissance=\"\",\"\",_xlpm.puissance&\" kW\"))))","v":""},null,null,null,{"$f":"_xlfn.TEXTJOIN(\" + \",TRUE,_xlfn.MAP('Données ECS'!I38:I40,_xlfn.LAMBDA(_xlpm.puissance,IF(_xlpm.puissance=\"\",\"\",_xlpm.puissance&\" kW\"))))","v":""}]
[]
[null,"Performances estimées"]
[null,"Part PAC à la température de base (ECS)",null,null,null,{"$f":"'Données ECS'!I41","v":0}]
[null,"Puissance PAC à la température de base",null,null,null,{"$f":"'Données ECS'!I42","v":0},"kW"]
[]
[null,"Données électriques",null,null,null,null,"Données hydrauliques"]
[null,"Puissance électrique max",null,null,{"$f":"'Données ECS'!I43","v":0},"kW","Débit global PAC préconisé",null,null,{"$f":"'Données ECS'!I46","v":0},"m³/h"]
[null,"Intensité électrique max",null,null,{"$f":"'Données ECS'!I44","v":0},"A","Diamètre préconisé des canalisations*",null,null,{"$f":"'Données ECS'!I47","v":0}]
[null,"Puissance apparente",null,null,{"$f":"'Données ECS'!I45","v":0},"kVA","HMT disponible",null,null,{"$f":"'Données ECS'!I48","v":0},"kPa"]
[null,null,null,null,null,null,"Pression maximum de service",null,null,{"$f":"'Données ECS'!I49","v":0},"bar"]
[null,null,null,null,null,null,"Debit Serpentin préconisé",null,null,{"$f":"'Données ECS'!I60","v":0},"m³/h"]
[null,null,null,null,null,null,"*selon la distance PAC-ballons renseignée"]
[null,"Dimensions et encombrement"]
[null,"Surface nécessaire installation PAC",null,null,null,{"$f":"'Données ECS'!I50","v":0},null,"m²"]
[null,"Dimensions 1 PAC (HxLxP)",null,null,null,{"$f":"_xlfn.TEXTJOIN(\" x \", TRUE, 'Données ECS'!I51:I53)","v":""},null,"mm"]
[null,"Hauteur minimale local",null,null,null,{"$f":"'Données ECS'!I54","v":0},null,"mm"]
[null,"Largeur de passage minimale local",null,null,null,{"$f":"'Données ECS'!I55","v":0},null,"mm"]
[]
[null,"Acoustique"]
[null,"Puissance sonore\nselon EN 12 102",null,"Pour une PAC à charge partielle",null,null,{"$f":"'Données ECS'!I56","v":0},"dB(A)"]
[null,null,null,"Pour la solution à pleine charge",null,null,{"$f":"'Données ECS'!I57","v":0},"dB(A)"]
[]
[null,"Coût"]
[null,"PPHT estimé",null,null,null,{"$f":"'Données ECS'!I58","v":0},"€"]
[]
[]
[]
[null,"Schéma de principe"]
[null,{"$f":"getSchemaECS","v":{"$error":"#VALUE!"}}]
[]
[]
[]
[]
[]
[]
[]
[]
[]
[]
[]
[]
[]
[]
[]
[]
[]
[]
[]
[]
[]
[]
[]
[]
[]
[]
[null,"Caractéristiques dimensionnelles (en mm)"]
[null,{"$f":"getImageDimensionsPacECS","v":{"$error":"#VALUE!"}}]
[]
[]
[]
[]
[]
[]
[]
[]
[]
[]
[]
[]
[]
[]
[]
[]
[]
[]
[]
[null,null,null,null,null,{"$f":"\"\"&'Données ECS'!I28","v":""}]

{"sheet":"Données ECS","index":13,"n_rows":63,"n_cols":8,"rows_kept":63,"cut":false,"hidden":true,"merged":[[0,0,24,0],[23,1,24,1],[0,1,5,1],[6,1,11,1],[12,1,22,1],[25,0,62,0],[55,1,56,1],[57,1,58,1],[25,7,62,7],[59,1,62,1],[27,1,29,1],[30,1,39,1],[40,1,41,1],[42,1,44,1],[45,1,48,1],[49,1,54,1],[25,1,26,1]]}
["Entrées","Localisation","Ville",{"$f":"ECS!G18","v":"01 - AMBERIEU"}]
[null,null,"Altitude",{"$f":"ECS!$G$20","v":250}]
[null,null,"Température de base (Tbase)",{"$f":"ECS!G22","v":-11}]
[null,null,"Température été (Tete)",{"$f":"ECS!$G$24","v":35}]
[null,null,"Traitement Anti Corrosion",{"$f":"ECS!G26=\"Oui\"","v":false}]
[null,null,"BordDeMer / Montagne",{"$f":"IF(ECS!C28 = \"\",\"\",ECS!G28=\"Oui\")","v":""}]
[null,"Installation","Distance PAC / ballon",{"$f":"ECS!R18","v":5}]
[null,null,"Distance PAC / Bâtiment",{"$f":"ECS!R20","v":2}]
[null,null,"Taux de glycol",{"$f":"0","v":0}]
[null,null,"Hauteur sous plafond",{"$f":"\"\"&ECS!R26","v":""}]
[null,null,"Largeur de porte",{"$f":"\"\"&ECS!R28","v":""}]
[null,null,"Gamme de Pac","AHP70"]
[null,"Circuit ECS","Type de logement",{"$f":"ECS!F35","v":"Logements privés"}]
[null,null,"T1",{"$f":"ECS!C37","v":0}]
[null,null,"T2",{"$f":"ECS!C39","v":0}]
[null,null,"T3",{"$f":"ECS!C41","v":0}]
[null,null,"T4",{"$f":"ECS!E37","v":0}]
[null,null,"T5",{"$f":"ECS!E39","v":0}]
[null,null,"T6",{"$f":"ECS!E41","v":0}]
[null,null,"Temperature eau froide",{"$f":"\"\"&ECS!E43","v":"10"}]
[null,null,"Perte thermique de bouclage",{"$f":"\"\"&ECS!I43","v":""}]
[null,null,"Cycle AL",{"$f":"IF(ECS!N37=\"Non\",\"\",ECS!N39)","v":""}]
[null,null,"Choix Solution ECS",{"$f":"IF(ECS!T54<>\"\",ECS!T54,0)","v":0}]
[null,"Objectif","Type de dimensionnement",{"$f":"E24=2","v":false},1]
[null,null,"Préférence Pac",{"$f":"IF(E25=\"\",\"\",INDEX('Préférence Pac'!A3:A14,MATCH('Données ECS'!E25,_xlfn.ANCHORARRAY('Préférence Pac'!B3),0)))","v":""},{"$f":"\"\"&ECS!P70","v":""}]
["Sorties","Solutions","nom","Economique","Encombrement","Economique - Choix Utilisateur",null,"Système choisi pour générer le PDF"]
[null,null,"nom pdf","La + économique","La - encombrante","Choix PAC utilisateur"]
[null,"Pac","nom Pac"]
[null,null,"nb Pac"]
[null,null,"ChassisPac"]
[null,"Ballon & Appoints","Puissance App élec total"]
[null,null,"Ballon de charge 1"]
[null,null,"Ballon de charge 1 Appoint 1"]
[null,null,"Ballon de charge 1 Appoint 2"]
[null,null,"Ballon de charge 1 Appoint 3"]
[null,null,"Ballon de charge 2"]
[null,null,"Ballon Supplémentaire"]
[null,null,"Ballon Sup Appoint 1"]
[null,null,"Ballon Sup Appoint 2"]
[null,null,"Ballon Sup Appoint 3"]
[null,"Stats","Part PAC à Tbase"]
[null,null,"Puissance PAC à Tbase"]
[null,"Besoins Elec","Puissance électrique max"]
[null,null,"Intensité électrique max"]
[null,null,"Puissance active"]
[null,"Hydraulique","Débit PAC préconisé"]
[null,null,"Diamètre préconisé des canalisations"]
[null,null,"HMT disponible"]
[null,null,"Pression maximale"]
[null,"Dimensions","Surface nécessaire installation PAC"]
[null,null,"Hauteur Pac"]
[null,null,"Largeur Pac"]
[null,null,"Profondeur Pac"]
[null,null,"Hauteur du plus gros ballon"]
[null,null,"Diametre du plus gros ballon"]
[null,"Puissance Sonore","P.sonore Charge partielle"]
[null,null,"P.sonore Pleine charge"]
[null,"Prix","PPHT estimé"]
[null,null,"code schéma"]
[null,"Données ECS","Debit Serpentin préconisé"]
[null,null,"Choix Ballon serpentin"]
[null,null,"Choix Ballon stockage 1"]
[null,null,"Choix Ballon stockage 2"]

{"sheet":"Données ECS ECS","index":14,"n_rows":1,"n_cols":6,"rows_kept":1,"cut":false,"hidden":true,"merged":[]}
["Puissance","Code Ballon serpentin","Code Ballon stockage 1","Code Ballon stockage 2","Puissance optimisée","Volume journalier"]

{"sheet":"Tutoriel chauffage Hybride","index":15,"n_rows":79,"n_cols":7,"rows_kept":79,"cut":false,"hidden":false,"merged":[[51,4,52,16],[55,1,55,2],[56,4,56,16],[64,4,65,16],[73,4,74,16],[40,3,41,4],[40,5,41,6],[16,3,17,16],[23,3,23,5],[24,3,24,5],[26,3,27,16],[32,3,33,16],[35,3,37,4],[35,5,37,6],[38,3,39,4],[38,5,39,6],[29,1,29,2],[30,3,31,16],[1,2,2,7],[7,1,7,2],[9,1,9,2],[11,3,12,16],[14,1,14,2],[14,3,15,16]]}
[]
[null,null,"Tutoriel interface chauffage hybride"]
[]
[]
[null,"Utilisez cette interface afin de dimensionner votre projet de chauffage hybride en plusieurs étapes:"]
[]
["1)","Paramétrez votre étude en remplissant les différents champs de données d'entrées:"]
[null,"Référence de l'étude",null,"Donnez un nom à votre étude, celui-ci sera le nom du document généré à l'issue de l'étude"]
[]
[null,"Localisation",null,"Indiquez la station météo la plus proche de votre projet, vous pouvez ensuite ajuster l'altitude ou directement la température extérieure de base"]
[null,null,null,"Choisissez si vous voulez appliquer un traitement anti-corrosion à la PAC"]
[null,null,null,"Pour certaines stations météo vous devrez indiquer si vous vous trouvez dans une zone montagne ou bord de mer: cela applique automatiquement un facteur correctif sur les performances de la PAC"]
[]
[]
[null,"Installation",null,"Indiquez les distances entre la PAC et le batiment et entre la PAC et le ballon, afin d'estimer le volume primaire contenu dans les canalisations. Si vous ne les connaissez pas, des valeurs par défaut sont initialisées."]
[]
[null,null,null,"Si vous avez des contraintes de tailles (hauteur sous plafond, passage de porte etc) veuillez les indiquer dans le champs contraintes chaufferie. Le volume primaire de votre solution sera, si possible, adapté à ces contraintes."]
[]
[]
[null,"Chaudière",null,"Le type de chaudière avec laquelle sera hybridée la PAC sera Condensation"]
[null,null,null,"Indiquez la présence ou non d'un circuit ECS géré par la chaudière. Ce paramètre pourra avoir un impact sur le type d'hybridation proposé par l'outil"]
[]
[null,"Performances attendues",null,"Selon les besoins et les données à disposition, indiquez votre critère de sélection de la PAC: Part PAC à Tbase  ou  Taux de couverture annuel"]
[null,null,null,"Part PAC à Tbase ",null,null,"Rapport entre la puissance de la PAC à Tbase et les déperditions du bâtiment à Tbase"]
[null,null,null,"Taux de couverture annuel",null,null,"Rapport entre l’énergie apportée par la PAC sur l’ensemble de la saison de chauffe et l’énergie nécessaire pour chauffer le bâtiment."]
[null,null,null,"• Selon l'emplacement géographique, une part PAC à Tbase de 30% peut représenter jusqu'à 80% de taux de couverture annuel."]
[null,null,null,"• Dans certaines régions à Tbase très basse il sera préférable d'utiliser le critère Taux de couverture annuel car la part PAC à Tbase peut-être égale à 0% mais le taux de couverture sera lui intéressant."]
[]
[]
[null,"Circuits de chauffage",null,"Paramétrez jusqu'à 5 circuits de chauffage. Appuyez sur \"+\" pour ajouter et sur \"-\" pour retirer un circuit."]
[null,null,null,"Indiquez le type de circuit (constant ou régulé) ainsi que sa puissance. Indiquez  systématiquement s'il s'agit d'un circuit plancher chauffant ou non (un circuit plancher chauffant ne peut être qu'un circuit régulé)"]
[]
[null,null,null,"Renseignez la consigne de température associée au circuit: Attention, pour qu'un circuit soit pris en charge par la PAC, il faut à minima que les consignes de départ maximales présentent dans ce tableau soient respctées. Elles diffèrent selon le type de circuits et la technologie PAC:"]
[]
[]
[null,null,null,"Type de circuit",null,"Consigne départ maximale pour prise en charge possible par la PAC (°C)"]
[]
[]
[null,null,null,"Circuit régulé",null,80]
[]
[null,null,null,"Circuit constant",null,55]
[]
[null,null,null,"Il est possible de renseigner des circuits constants jusqu'à 80°C, en plus d'un circuit régulé. Le circuit constant ne sera pas pris en charge par la PAC."]
[]
[null,null,null,"Rensignez enfin le delta T du circuit: différence de température entre le départ et retour du circuit"]
[]
["2)","Générez des solutions, en cliquant sur le bouton prévu à cet effet"]
[]
["3)","Identifiez la solution la plus adaptée à votre projet: "]
[null,"Faites votre choix parmi 3 solutions complètes:"]
[null,"La solution la plus économique:",null,null,"Solution respectant si possible le critère performances PAC attendues et la moins chère en termes de coûts de fourniture."]
[null,"La solution la moins encombrante",null,null,"Solution respectant si possible le critère performances PAC attendues et occupant le moins de place en extérieur (surface PAC + dégagements). Cette solution peut parfois être la même que la solution « la + économique »."]
[]
[]
[null,"Accédez à de nombreuses données techniques sur les solutions proposées:"]
[null,"PAC",null,null,"Choix de la PAC et nombre"]
[null,"Ballons de charge",null,null,"Possibilité de solutions jusqu’à 2 ballons :ballon de charge 1 et 2. "]
[null,"Circuit pris en charge par la PAC",null,null,"Indication sur le(s) circuit(s) pris en charge par la PAC, tels que calculés par l'outil."]
[]
[null,"Part PAC à Tbase",null,null,"Part PAC à Tbase de la solution correspondante."]
[null,"Puissance totale PAC à Tbase",null,null,"Puissance calorifique totale à Tbase de la solution"]
[null,"Taux de couverture PAC annuel estimé",null,null,"Taux de couverture annuel estimé pour la solution"]
[]
[null,"Données électriques",null,null,"Puissance et intensité électrique max associées à la solution PAC "]
[null,null,null,null,"Puissance apparente associée à la solution (seulement PAC). Permet de donner une indication sur la possibilité ou non pour le client d’un tarif bleu. Un message s’affiche lorsque le tarif bleu est jugé possible, sur la base des données PAC et appoints."]
[]
[null,"Données hydrauliques",null,null,"Débit PAC préconisé de la solution, Diamètre des canalisations préconisé entre la/les PAC et le ballon. Hauteur manométrique disponible pour la solution "]
[null,null,null,null,"Pression maximale: Attention: la pression maximale est de 6 bar pour Izea châssis M et L. La pression max est de 3 bar pour Izea châssis S."]
[]
[null,"Données dimensionnelles",null,null,"Surface nécessaire à l’installation PAC, dimensions pour 1 PAC, hauteur et diamètre du plus gros ballon"]
[]
[null,"Données acoustiques",null,null,"\nPuissance sonore pour la solution PAC à pleine charge et puissance sonore pour une PAC à charge partielle, selon la norme EN 12102"]
[]
[null,"Coût",null,null,"Prix Public Hors Taxe de la solution choisie. Il s’agit d’une enveloppe qui comprend le prix du système PAC + ballon(s) + systèmes de régulation et accessoires obligatoires. Le devis final peut légèrement différer de cette enveloppe."]
[]
["4)","Cliquez sur \"générer étude de prédimensionnement\" afin d'être redirigé vers la synthèse de l'étude"]
[null,"Vous retrouverez sur cette onglet un récapitulatif de votre étude ainsi qu'un schéma de principe de votre solution PAC et les dimensions de la PAC sélectionnée."]
[]
["5)","Cliquez sur \"télecharger le rapport\" si vous souhaitez sauvegarder votre étude sur votre PC"]

{"sheet":"Chauffage hybride","index":16,"n_rows":118,"n_cols":20,"rows_kept":118,"cut":false,"hidden":false,"merged":[[111,3,111,6],[29,5,29,8],[57,17,57,18],[47,17,47,18],[49,17,49,18],[51,17,51,18],[53,17,53,18],[55,17,55,18],[53,14,53,15],[55,14,55,15],[57,14,57,15],[51,11,51,12],[47,11,47,12],[49,11,49,12],[57,8,57,9],[53,11,53,12],[78,8,78,11],[78,13,78,16],[76,8,76,11],[65,1,65,21],[74,8,74,11],[0,6,1,16],[76,13,76,16],[8,5,8,17],[16,6,16,8],[74,13,74,16],[53,5,53,6],[55,5,55,6],[49,5,49,6],[35,11,35,12],[47,5,47,6],[15,17,15,18],[55,8,55,9],[15,6,15,8],[17,6,17,8],[19,6,19,8],[21,6,21,8],[82,25,82,26],[97,3,99,6],[81,10,82,10],[81,9,82,9],[81,15,82,15],[81,14,82,14],[86,14,87,14],[86,15,87,15],[81,3,82,6],[86,3,87,6],[86,10,87,10],[86,9,87,9],[84,3,84,6],[93,3,94,6],[94,8,94,11],[94,13,94,16],[47,14,47,15],[107,3,107,6],[117,4,118,6],[117,13,118,14],[100,3,100,6],[105,3,105,6],[107,8,107,10],[107,13,107,15],[117,15,118,15],[109,3,109,6],[117,8,118,9],[117,10,118,10],[102,3,102,6],[113,2,113,6],[115,2,115,6],[114,3,114,6],[37,11,37,12],[47,8,47,9],[49,8,49,9],[51,8,51,9],[53,8,53,9],[117,7,118,7],[17,17,17,18],[23,17,23,18],[21,17,21,18],[19,2,19,5],[21,2,21,5],[23,2,23,4],[23,6,23,8],[49,14,49,15],[51,14,51,15],[72,9,72,10],[72,14,72,15],[51,5,51,6],[57,5,57,6],[57,11,57,12],[55,11,55,12]]}
[null,null,null,null,null,null,"APPLICATION CHAUFFAGE HYBRIDE"]
[]
[]
[]
[]
[]
[]
[]
[null,null,null,null,null,"Référence"]
[]
[]
[]
[]
[]
[]
[null,null,"Ville",null,null,null,"01 - AMBERIEU","40 - MONT DE MARSAN","40 - MONT DE MARSAN",null,null,null,null,"Distance PAC / ballon",null,null,null,5,null,"m"]
[]
[null,null,"Altitude",null,null,null,250,null,null,"m",null,null,null,"Distance PAC / Bâtiment",null,null,null,2,null,"m"]
[]
[null,null,"T° extérieure de base (Tbase)",null,null,null,-11,null,null,"°C",null,null,null,"Contraintes chaufferie / accès (si connues)"]
[]
[null,null,"Traitement Anti Corrosion",null,null,null,"Non",null,null,null,null,null,null,"Hauteur sous plafond",null,null,null,null,null,"mm"]
[]
[null,null,{"$f":"IF(VLOOKUP(G16,'Validation des Données'!A3:B174,2,FALSE)=0,\"\",VLOOKUP(G16,'Validation des Données'!A3:B174,2,FALSE))","v":""},null,null,null,null,"Non","Non",null,null,null,null,"Largeur de passage",null,null,null,null,null,"mm"]
[]
[]
[]
[]
[]
[null,null,null,"Type :",null,"Condensation",null,null,null,null,null,"Présence d'un réseau ECS géré par la chaudière seule",null,null,null,null,null,null,"Non"]
[]
[]
[]
[]
[]
[null,null,null,null,null,"Part PAC à Température de base souhaitée",null,null,null,null,null,null,null,"%"]
[]
[null,null,null,null,null,"Taux de couverture annuel souhaité",null,null,null,null,null,null,null,"%"]
[]
[]
[]
[]
[]
[]
[null,null,null,null,null,null,null,null,null,"Ajouter un circuit",null,null,null,"Supprimer un circuit"]
[]
[]
[null,null,null,null,null,"Circuit 1"]
[]
[null,null,null,"Type"]
[]
[null,null,null,"Plancher chauffant"]
[]
[null,null,null,"Puissance circuit",null,null,null,"kW",null,null,"kW",null,null,"kW",null,null,"kW",null,null,"kW"]
[]
[null,null,null,"Consigne de départ",null,null,null,"°C",null,null,"°C",null,null,"°C",null,null,"°C",null,null,"°C"]
[]
[null,null,null,"Delta T°",null,null,null,"K",null,null,"K",null,null,"K",null,null,"K",null,null,"K"]
[]
[]
[]
[]
[]
[]
[]
[null,"Ce dimensionnement est réalisé à titre indicatif afin de guider l'utilisateur vers un système en fonction des données d'entrées renseignées. Il ne remplace pas une étude de dimensionnement finale effectuée par le service Avant Vente ACV."]
[]
[]
[]
[]
[]
[]
[null,null,null,null,null,null,"PAC",null,null,{"$f":"IF(ISBLANK('Données Hybride'!D24),\"\",_xlfn.TEXTJOIN(\" x \", TRUE, 'Données Hybride'!D25, 'Données Hybride'!D24))","v":""},null,null,null,null,{"$f":"IF(ISBLANK('Données Hybride'!E24),\"\",_xlfn.TEXTJOIN(\" x \", TRUE, 'Données Hybride'!E25, 'Données Hybride'!E24))","v":""}]
[]
[null,null,null,null,null,null,"Ballon de charge 1",null,{"$f":"IF(ISBLANK('Données Hybride'!D27),\"\",'Données Hybride'!D27)","v":""},null,null,null,null,{"$f":"IF(ISBLANK('Données Hybride'!E27),\"\",'Données Hybride'!E27)","v":""}]
[]
[null,null,null,null,null,null,"Ballon de charge 2",null,{"$f":"IF(ISBLANK('Données Hybride'!D28),\"\",'Données Hybride'!D28)","v":""},null,null,null,null,{"$f":"IF(ISBLANK('Données Hybride'!E28),\"\",'Données Hybride'!E28)","v":""}]
[]
[null,null,null,null,null,null,"Circuit(s) pris en charge(s) par la PAC",null,{"$f":"IF(ISBLANK('Données Hybride'!D29),\"\",'Données Hybride'!D29)","v":""},null,null,null,null,{"$f":"IF(ISBLANK('Données Hybride'!E29),\"\",'Données Hybride'!E29)","v":""}]
[]
[]
[null,null,null,"Part PAC à Tbase",null,null,null,null,null,{"$f":"IF(ISBLANK('Données Hybride'!D30),\"\",'Données Hybride'!D30*100)","v":""},"%",null,null,null,{"$f":"IF(ISBLANK('Données Hybride'!E30),\"\",'Données Hybride'!E30*100)","v":""},"%"]
[]
[]
[null,null,null,"Puissance totale PAC à Tbase",null,null,null,null,null,{"$f":"IF(ISBLANK('Données Hybride'!D31),\"\",'Données Hybride'!D31)","v":""},"kW",null,null,null,{"$f":"IF(ISBLANK('Données Hybride'!E31),\"\",'Données Hybride'!E31)","v":""},"kW"]
[]
[null,null,null,"Taux de couverture PAC annuel estimé",null,null,null,null,null,{"$f":"IF(ISBLANK('Données Hybride'!D32),\"\",'Données Hybride'!D32*100)","v":""},"%",null,null,null,{"$f":"IF(ISBLANK('Données Hybride'!E32),\"\",'Données Hybride'!E32*100)","v":""},"%"]
[]
[]
[null,null,null,null,null,null," Puissance électrique max",null,null,{"$f":"IF(ISBLANK('Données Hybride'!D33),\"\",'Données Hybride'!D33)","v":""},"kW",null,null,null,{"$f":"IF(ISBLANK('Données Hybride'!E33),\"\",'Données Hybride'!E33)","v":""},"kW"]
[]
[null,null,null,null,null,null,"Intensité électrique max",null,null,{"$f":"IF(ISBLANK('Données Hybride'!D34),\"\",'Données Hybride'!D34)","v":""},"A",null,null,null,{"$f":"IF(ISBLANK('Données Hybride'!E34),\"\",'Données Hybride'!E34)","v":""},"A"]
[]
[null,null,null,"Puissance apparente",null,null,null,null,null,{"$f":"IF(ISBLANK('Données Hybride'!D35),\"\",'Données Hybride'!D35)","v":""},"kVA",null,null,null,{"$f":"IF(ISBLANK('Données Hybride'!E35),\"\",'Données Hybride'!E35)","v":""},"kVA"]
[]
[]
[null,null,null,null,null,null,"Débit global PAC préconisé",null,null,{"$f":"IF(ISBLANK('Données Hybride'!D36),\"\",'Données Hybride'!D36)","v":""},"m³/h",null,null,null,{"$f":"IF(ISBLANK('Données Hybride'!E36),\"\",'Données Hybride'!E36)","v":""},"m³/h"]
[null,null,null,"Diamètre préconisé des canalisations"]
[null,null,null,null,null,null,null,null,null,{"$f":"IF(ISBLANK('Données Hybride'!D37),\"\",'Données Hybride'!D37)","v":""},null,null,null,null,{"$f":"IF(ISBLANK('Données Hybride'!E37),\"\",'Données Hybride'!E37)","v":""}]
[]
[null,null,null,"HMT disponible",null,null,null,null,null,{"$f":"IF(ISBLANK('Données Hybride'!D38),\"\",'Données Hybride'!D38)","v":""},"kPa",null,null,null,{"$f":"IF(ISBLANK('Données Hybride'!E38),\"\",'Données Hybride'!E38)","v":""},"kPa"]
[]
[null,null,null,"Pression maximum de service",null,null,null,null,null,{"$f":"IF(ISBLANK('Données Hybride'!D39),\"\",'Données Hybride'!D39)","v":""},"bar",null,null,null,{"$f":"IF(ISBLANK('Données Hybride'!E39),\"\",'Données Hybride'!E39)","v":""},"bar"]
[]
[]
[null,null,null,"Surface nécessaire installation PAC",null,null,null,null,null,{"$f":"IF(ISBLANK('Données Hybride'!D40),\"\",'Données Hybride'!D40)","v":""},"m²",null,null,null,{"$f":"IF(ISBLANK('Données Hybride'!E40),\"\",'Données Hybride'!E40)","v":""},"m²"]
[]
[null,null,null,"Dimensions 1 PAC (HxLxP)",null,null,null,null,{"$f":"IF(ISBLANK('Données Hybride'!D41),\"\",_xlfn.TEXTJOIN(\" x \",TRUE, 'Données Hybride'!D41:D43))","v":""},null,null,"mm",null,{"$f":"IF(ISBLANK('Données Hybride'!E41),\"\",_xlfn.TEXTJOIN(\" x \",TRUE, 'Données Hybride'!E41:E43))","v":""},null,null,"mm"]
[]
[null,null,null,"Hauteur minimale local",null,null,null,null,null,{"$f":"IF(ISBLANK('Données Hybride'!D44),\"\",'Données Hybride'!D44)","v":""},"mm",null,null,null,{"$f":"IF(ISBLANK('Données Hybride'!E44),\"\",'Données Hybride'!E44)","v":""},"mm"]
[]
[null,null,null,"Largeur de passage minimale local",null,null,null,null,null,{"$f":"IF(ISBLANK('Données Hybride'!D45),\"\",'Données Hybride'!D45)","v":""},"mm",null,null,null,{"$f":"IF(ISBLANK('Données Hybride'!E45),\"\",'Données Hybride'!E45)","v":""},"mm"]
[]
[null,null,"Puissance sonore 1 PAC à charge partielle\nPuissance sonore 1 PAC à charge partielle\nPuissance sonore 1 PAC à charge partielle",null,null,null,null,null,null,{"$f":"IF(ISBLANK('Données Hybride'!D46),\"\",'Données Hybride'!D46)","v":""},"dB(A)",null,null,null,{"$f":"IF(ISBLANK('Données Hybride'!E46),\"\",'Données Hybride'!E46)","v":""},"dB(A)"]
[null,null,null,"Selon la norme EN 12-102"]
[null,null,"Puissance sonore totale à pleine charge",null,null,null,null,null,null,{"$f":"IF(ISBLANK('Données Hybride'!D47),\"\",'Données Hybride'!D47)","v":""},"dB(A)",null,null,null,{"$f":"IF(ISBLANK('Données Hybride'!E47),\"\",'Données Hybride'!E47)","v":""},"dB(A)"]
[]
[null,null,null,null,"PPHT estimé",null,null,null,{"$f":"IF(ISBLANK('Données Hybride'!D48),\"\",'Données Hybride'!D48)","v":""},null,"€",null,null,{"$f":"IF(ISBLANK('Données Hybride'!E48),\"\",'Données Hybride'!E48)","v":""},null,"€"]

{"sheet":"Données Hybride","index":17,"n_rows":49,"n_cols":8,"rows_kept":49,"cut":false,"hidden":true,"merged":[[0,0,21,0],[0,1,5,1],[17,1,21,1],[6,1,16,1],[22,0,48,0],[35,1,38,1],[39,1,44,1],[45,1,46,1],[47,1,48,1],[22,7,48,7],[23,1,25,1],[26,1,27,1],[29,1,31,1],[32,1,34,1]]}
["Entrées","Localisation","Ville",{"$f":"'Chauffage hybride'!G16","v":"01 - AMBERIEU"}]
[null,null,"Altitude",{"$f":"'Chauffage hybride'!G18","v":250}]
[null,null,"Température de base (Tbase)",{"$f":"'Chauffage hybride'!G20","v":-11}]
[null,null,"Température été (Tete)",35]
[null,null,"Traitement Anti Corrosion",{"$f":"'Chauffage hybride'!G22=\"Oui\"","v":false}]
[null,null,"BordDeMer / Montagne",{"$f":"IF('Chauffage hybride'!C24 = \"\",\"\",'Chauffage hybride'!G24=\"Oui\")","v":""}]
[null,"Installation","Distance PAC / ballon",{"$f":"'Chauffage hybride'!R16","v":5}]
[null,null,"Distance PAC / Bâtiment",{"$f":"'Chauffage hybride'!R18","v":2}]
[null,null,"taux de glycol"]
[null,null,"Régulation externe"]
[null,null,"Hauteur sous plafond",{"$f":"IF('Chauffage hybride'!R22=\"\",\"\",'Chauffage hybride'!R22)","v":""}]
[null,null,"Largeur de porte",{"$f":"IF('Chauffage hybride'!R24=\"\",\"\",'Chauffage hybride'!R24)","v":""}]
[null,null,"Gamme de Pac",{"$f":"IF(E13= 1,\"AHP60\",\"AHP70\")","v":"AHP70"},2]
[null,null,"PrésenceReseauECS",{"$f":"'Chauffage hybride'!S30=\"Oui\"","v":false}]
[null,null,"Filtre Hybride Choisi",1]
[null,null,"Part PAC à Température de base souhaitée",{"$f":"IF(AND(D15=1,'Chauffage hybride'!L36<>\"\"),'Chauffage hybride'!L36,\"\")","v":""}]
[null,null,"Taux de couverture souhaité",{"$f":"IF(AND(D15=2,'Chauffage hybride'!L38<>\"\"),'Chauffage hybride'!L38,\"\")","v":""}]
[null,"Circuit.s","Type",{"$f":"\"\"&'Chauffage hybride'!F50","v":""},{"$f":"\"\"&'Chauffage hybride'!I50","v":""},{"$f":"\"\"&'Chauffage hybride'!L50","v":""},{"$f":"\"\"&'Chauffage hybride'!O50","v":""},{"$f":"\"\"&'Chauffage hybride'!R50","v":""}]
[null,null,"Plancher chauffant",{"$f":"IF('Chauffage hybride'!F52 = \"\", \"\", 'Chauffage hybride'!F52=\"Oui\")","v":""},{"$f":"IF('Chauffage hybride'!I52 = \"\", \"\", 'Chauffage hybride'!I52=\"Oui\")","v":""},{"$f":"IF('Chauffage hybride'!L52 = \"\", \"\", 'Chauffage hybride'!L52=\"Oui\")","v":""},{"$f":"IF('Chauffage hybride'!O52 = \"\", \"\", 'Chauffage hybride'!O52=\"Oui\")","v":""},{"$f":"IF('Chauffage hybride'!R52 = \"\", \"\", 'Chauffage hybride'!R52=\"Oui\")","v":""}]
[null,null,"Puissance circuit",{"$f":"IF('Chauffage hybride'!F54 = \"\", \"\", 'Chauffage hybride'!F54)","v":""},{"$f":"IF('Chauffage hybride'!I54 = \"\", \"\", 'Chauffage hybride'!I54)","v":""},{"$f":"IF('Chauffage hybride'!L54 = \"\", \"\", 'Chauffage hybride'!L54)","v":""},{"$f":"IF('Chauffage hybride'!O54 = \"\", \"\", 'Chauffage hybride'!O54)","v":""},{"$f":"IF('Chauffage hybride'!R54 = \"\", \"\", 'Chauffage hybride'!R54)","v":""}]
[null,null,"Consigne de départ",{"$f":"IF('Chauffage hybride'!F56 = \"\", \"\", 'Chauffage hybride'!F56)","v":""},{"$f":"IF('Chauffage hybride'!I56 = \"\", \"\", 'Chauffage hybride'!I56)","v":""},{"$f":"IF('Chauffage hybride'!L56 = \"\", \"\", 'Chauffage hybride'!L56)","v":""},{"$f":"IF('Chauffage hybride'!O56 = \"\", \"\", 'Chauffage hybride'!O56)","v":""},{"$f":"IF('Chauffage hybride'!R56 = \"\", \"\", 'Chauffage hybride'!R56)","v":""}]
[null,null,"Delta T",{"$f":"IF('Chauffage hybride'!F58 = \"\", \"\", 'Chauffage hybride'!F58)","v":""},{"$f":"IF('Chauffage hybride'!I58 = \"\", \"\", 'Chauffage hybride'!I58)","v":""},{"$f":"IF('Chauffage hybride'!L58 = \"\", \"\", 'Chauffage hybride'!L58)","v":""},{"$f":"IF('Chauffage hybride'!O58 = \"\", \"\", 'Chauffage hybride'!O58)","v":""},{"$f":"IF('Chauffage hybride'!R58 = \"\", \"\", 'Chauffage hybride'!R58)","v":""}]
["Sorties","Solutions","nom","Economique","Encombrement",null,null,"Système choisi pour générer le PDF"]
[null,"Pac","nom Pac"]
[null,null,"nb Pac"]
[null,null,"ChassisPac"]
[null,"Ballons","Ballon de charge 1"]
[null,null,"Ballon de charge 2"]
[null,null,"Cyrcuits Hybridés"]
[null,"Stats","Part PAC à Tbase"]
[null,null,"Puissance PAC à Tbase"]
[null,null,"Taux de couverture PAC annuel estimé"]
[null,"Besoins Elec","Puissance électrique max"]
[null,null,"Intensité électrique max"]
[null,null,"Puissance active"]
[null,"Hydraulique","Débit PAC préconisé"]
[null,null,"Diamètre préconisé des canalisations"]
[null,null,"HMT disponible"]
[null,null,"Pression maximum"]
[null,"Dimensions","Surface nécessaire installation PAC"]
[null,null,"Hauteur Pac"]
[null,null,"Largeur Pac"]
[null,null,"Profondeur Pac"]
[null,null,"Hauteur du plus gros ballon"]
[null,null,"Diametre du plus gros ballon"]
[null,"Puissance Sonore","P.sonore Charge partielle"]
[null,null,"P.sonore Pleine charge"]
[null,"Prix","PPHT estimé"]
[null,null,"code schéma"]

{"sheet":"PDF chauffage Hybride","index":18,"n_rows":121,"n_cols":12,"rows_kept":121,"cut":false,"hidden":false,"merged":[[100,1,119,10],[120,5,120,6],[32,11,33,11],[27,1,27,2],[45,1,45,4],[46,1,46,4],[47,1,47,4],[50,1,50,3],[28,1,28,2],[32,8,33,9],[58,5,58,6],[57,5,57,6],[56,5,56,6],[32,10,33,10],[38,5,38,6],[33,5,33,6],[1,3,1,8],[9,4,9,7],[10,4,10,7],[16,1,16,3],[16,4,16,5],[16,7,16,8],[17,1,17,4],[17,7,17,8],[18,1,18,4],[3,1,6,10],[12,3,12,4],[12,5,12,6],[19,1,19,4],[20,1,20,4],[19,7,19,8],[20,7,20,8],[25,1,25,2],[32,5,32,6],[26,1,26,2],[62,1,63,2],[52,6,52,8],[59,1,59,4],[50,6,50,8],[41,3,41,4],[32,1,32,4],[33,1,33,4],[56,1,56,4],[57,1,57,4],[58,1,58,4],[59,5,59,6],[29,1,29,2],[39,1,39,4],[52,1,52,3],[93,1,95,10],[70,1,92,10],[51,6,51,8],[42,5,42,6],[41,5,41,6],[39,5,39,6],[66,1,66,4],[38,1,38,4],[41,1,41,2],[42,1,42,2],[42,3,42,4],[51,1,51,3],[53,6,53,8],[62,3,62,5],[63,3,63,5]]}
[]
[null,null,null,"CHAUFFAGE HYBRIDE",null,null,null,null,null,null,{"$f":"\"Version \"&version","v":"Version 3.1"}]
[]
[null,"Cet outil est avant tout un outil où les Utilisateurs se voient proposer une aide au dimensionnement pour les pompes à chaleur pour la production de chauffage collectif. \nLes informations indiquées sur l'Outil sont données à titre indicatif, et sont susceptibles d’évoluer. Par ailleurs, les renseignements figurant sur l'Outil ne sont pas exhaustifs. Ils sont donnés sous réserve de modifications ayant été apportées depuis leur mise en ligne. ACV n'assume aucune responsabilité quant aux conséquences directes ou indirectes, quelle qu'en soit la nature, de l'utilisation de l’Outil et de son Contenu."]
[]
[]
[]
[]
[]
[null,null,null,"Référence du projet:",{"$f":"'Chauffage hybride'!F9","v":"Référence"}]
[null,null,null,"Date:",{"$f":"TODAY()","v":"2024-10-28"}]
[]
[null,null,null,"Technologie",null,{"$f":"_xlfn.SWITCH('Données Hybride'!I13, \"AHP60\", \"Effipac R32\", \"AHP70\", \"IZEA R290\",\"\")","v":""}]
[]
[null,"Localisation",null,null,null,null,null,"Installation"]
[]
[null,"Ville",null,null,{"$f":"\"\"&'Données Hybride'!I1","v":""},null,null,"Distance PAC / ballon",null,{"$f":"\"\"&'Données Hybride'!I7","v":""},"m"]
[null,"Altitude",null,null,null,{"$f":"\"\"&'Données Hybride'!I2","v":""},"m","Distance PAC / Bâtiment",null,{"$f":"\"\"&'Données Hybride'!I8","v":""},"m"]
[null,"Température extérieure de base",null,null,null,{"$f":"\"\"&'Données Hybride'!I3","v":""},"°C"]
[null,"Traitement Anti Corrosion nécessaire",null,null,null,{"$f":"IF('Données Hybride'!I5,\"oui\",\"non\")","v":"non"},null,"Hauteur sous plafond",null,{"$f":"\"\"&'Données Hybride'!I11","v":""},"mm"]
[null,"Zone \"montagne ou bord de mer\"",null,null,null,{"$f":"IF('Données Hybride'!I6=TRUE,\"oui\",\"non\")","v":"non"},null,"Largeur de passage",null,{"$f":"\"\"&'Données Hybride'!I12","v":""},"mm"]
[]
[null,"Circuits de chauffage"]
[]
[null,null,null,null,"Circuit 1","Circuit 2","Circuit 3","Circuit 4","Circuit 5"]
[null,"Type",null,"-",{"$f":"\"\"&'Données Hybride'!I18","v":""},{"$f":"\"\"&'Données Hybride'!J18","v":""},{"$f":"\"\"&'Données Hybride'!K18","v":""},{"$f":"\"\"&'Données Hybride'!L18","v":""},{"$f":"\"\"&'Données Hybride'!M18","v":""}]
[null,"Plancher chauffant",null,"-",{"$f":"_xlfn.SWITCH('Données Hybride'!I19, TRUE, \"oui\", FALSE, \"non\",\"\")","v":""},{"$f":"_xlfn.SWITCH('Données Hybride'!J19, TRUE, \"oui\", FALSE, \"non\",\"\")","v":""},{"$f":"_xlfn.SWITCH('Données Hybride'!K19, TRUE, \"oui\", FALSE, \"non\",\"\")","v":""},{"$f":"_xlfn.SWITCH('Données Hybride'!L19, TRUE, \"oui\", FALSE, \"non\",\"\")","v":""},{"$f":"_xlfn.SWITCH('Données Hybride'!M19, TRUE, \"oui\", FALSE, \"non\",\"\")","v":""}]
[null,"Puissance",null,"kW",{"$f":"\"\"&'Données Hybride'!I20","v":""},{"$f":"\"\"&'Données Hybride'!J20","v":""},{"$f":"\"\"&'Données Hybride'!K20","v":""},{"$f":"\"\"&'Données Hybride'!L20","v":""},{"$f":"\"\"&'Données Hybride'!M20","v":""}]
[null,"Consigne",null,"°C",{"$f":"\"\"&'Données Hybride'!I21","v":""},{"$f":"\"\"&'Données Hybride'!J21","v":""},{"$f":"\"\"&'Données Hybride'!K21","v":""},{"$f":"\"\"&'Données Hybride'!L21","v":""},{"$f":"\"\"&'Données Hybride'!M21","v":""}]
[null,"Delta T°",null,"K",{"$f":"\"\"&'Données Hybride'!I22","v":""},{"$f":"\"\"&'Données Hybride'!J22","v":""},{"$f":"\"\"&'Données Hybride'!K22","v":""},{"$f":"\"\"&'Données Hybride'!L22","v":""},{"$f":"\"\"&'Données Hybride'!M22","v":""}]
[]
[null,"Chaudière",null,null,null,null,null,null,"Performances attendues"]
[null,"Type de chaudière",null,null,null,"Condensation",null,null,{"$f":"_xlfn.SWITCH('Données Hybride'!I15,1, 'Données Hybride'!C16, 2, 'Données Hybride'!C17,\"\")","v":""},null,{"$f":"_xlfn.SWITCH('Données Hybride'!I15,1,'Données Hybride'!I16,2,'Données Hybride'!I17,\"\")","v":""},"%"]
[null,"Présence d'un réseau ECS géré par la chaudière seule",null,null,null,{"$f":"_xlfn.SWITCH('Données Hybride'!I14,  TRUE, \"oui\", FALSE, \"non\",\"\")","v":""}]
[]
[null,"Résultat"]
[]
[null,"Equipement"]
[null,"PAC",null,null,null,{"$f":"_xlfn.TEXTJOIN(\" \", TRUE, 'Données Hybride'!I25,'Données Hybride'!I24)","v":""}]
[null,"Circuit(s) pris en charge(s) par la PAC",null,null,null,{"$f":"IF('Données Hybride'!I29=\"\",\"\",'Données Hybride'!I29)","v":""}]
[]
[null,"Ballon",null,"Ballon de charge 1",null,"Ballon de charge 2"]
[null,"Type",null,{"$f":"IF('Données Hybride'!I27=\"\",\"\",'Données Hybride'!I27)","v":""},null,{"$f":"IF('Données Hybride'!I28=\"\",\"\",'Données Hybride'!I28)","v":""}]
[]
[null,"Performances estimées"]
[null,"Part PAC à la température de base",null,null,null,{"$f":"'Données Hybride'!I30","v":0}]
[null,"Puissance PAC à la température de base",null,null,null,{"$f":"'Données Hybride'!I31","v":0},"kW"]
[null,"Taux de couverture PAC annuel estimé",null,null,null,{"$f":"'Données Hybride'!I32","v":0}]
[]
[null,"Données électriques",null,null,null,null,"Données hydrauliques"]
[null,"Puissance électrique max",null,null,{"$f":"'Données Hybride'!I33","v":0},"kW","Débit global PAC préconisé",null,null,{"$f":"'Données Hybride'!I36","v":0},"m³/h"]
[null,"Intensité électrique max",null,null,{"$f":"'Données Hybride'!I34","v":0},"A","Diamètre préconisé des canalisations*",null,null,{"$f":"'Données Hybride'!I37","v":0}]
[null,"Puissance apparente",null,null,{"$f":"'Données Hybride'!I35","v":0},"kVA","HMT disponible",null,null,{"$f":"'Données Hybride'!I38","v":0},"kPa"]
[null,null,null,null,null,null,"Pression maximum de service",null,null,{"$f":"'Données Hybride'!I39","v":0},"bar"]
[null,null,null,null,null,null,"*selon la distance PAC-ballons renseignée"]
[null,"Dimensions et encombrement"]
[null,"Surface nécessaire installation PAC",null,null,null,{"$f":"'Données Hybride'!I40","v":0},null,"m²"]
[null,"Dimensions 1 PAC (HxLxP)",null,null,null,{"$f":"_xlfn.TEXTJOIN(\" x \", TRUE, 'Données Hybride'!I41:I43)","v":""},null,"mm"]
[null,"Hauteur minimale local",null,null,null,{"$f":"'Données Hybride'!I44","v":0},null,"mm"]
[null,"Largeur de passage minimale local",null,null,null,{"$f":"'Données Hybride'!I45","v":0},null,"mm"]
[]
[null,"Acoustique"]
[null,"Puissance sonore\nselon EN 12 102",null,"Pour une PAC à charge partielle",null,null,{"$f":"'Données Hybride'!I46","v":0},"dB(A)"]
[null,null,null,"Pour la solution à pleine charge",null,null,{"$f":"'Données Hybride'!I47","v":0},"dB(A)"]
[]
[null,"Coût"]
[null,"PPHT estimé",null,null,null,{"$f":"'Données Hybride'!I48","v":0},"€"]
[]
[]
[null,"Schéma de principe"]
[null,{"$f":"getSchemaHybride","v":{"$error":"#VALUE!"}}]
[]
[]
[]
[]
[]
[]
[]
[]
[]
[]
[]
[]
[]
[]
[]
[]
[]
[]
[]
[]
[]
[]
[null,"Attention : il s’agit d’un schéma générique dans le cas d’une hybridation avec une chaudière ACV équipée d’une régulation B3000. Dans le cas d’un autre générateur ou pour toute demande de schéma spécifique, veuillez contacter notre service avant-vente et chiffrage (coordonnées en haut du rapport)."]
[]
[]
[]
[]
[]
[null,"Caractéristiques dimensionnelles (en mm)"]
[null,{"$f":"getImageDimensionsPacHybride","v":{"$error":"#VALUE!"}}]
[]
[]
[]
[]
[]
[]
[]
[]
[]
[]
[]
[]
[]
[]
[]
[]
[]
[]
[]
[null,null,null,null,null,{"$f":"IF('Données Hybride'!I24=\"\",\"\",'Données Hybride'!I24)","v":""}]

{"sheet":"Préférence Pac","index":19,"n_rows":14,"n_cols":4,"rows_kept":14,"cut":false,"hidden":true,"merged":[[0,2,0,3],[0,0,1,0],[0,1,1,1]]}
["PAC","Labels affichés","Label interface"]
[null,null,"FR_ATL","FR_ACV"]
["AHP60_14",{"$f":"_xlfn.MAP(_xlfn.CHOOSECOLS('Préférence Pac'!C3:D14,MATCH(reseau_commercial,'Préférence Pac'!C2:D2,0)),_xlfn.LAMBDA(_xlpm.v,IF(_xlpm.v=\"\",\"\",_xlpm.v)))","v":""},"Effipac 14 - Chassis S"]
["AHP60_18","","Effipac 18 - Chassis S"]
["AHP60_26","","Effipac 26 - Chassis M"]
["AHP60_32","","Effipac 32 - Chassis M"]
["AHP60_50","","Effipac 50 - Chassis L"]
["AHP60_70","","Effipac 70 - Chassis L"]
["AHP70_15","Izea 15 - Chassis S","Aptae 15 - Chassis S","Izea 15 - Chassis S"]
["AHP70_18","Izea 18 - Chassis S","Aptae 18 - Chassis S","Izea 18 - Chassis S"]
["AHP70_23","Izea 23 - Chassis M","Aptae 23 - Chassis M","Izea 23 - Chassis M"]
["AHP70_27","Izea 27 - Chassis M","Aptae 27 - Chassis M","Izea 27 - Chassis M"]
["AHP70_40","Izea 40 - Chassis L","Aptae 40 - Chassis L","Izea 40 - Chassis L"]
["AHP70_50","Izea 50 - Chassis L","Aptae 50 - Chassis L","Izea 50 - Chassis L"]

{"sheet":"Validation des Données","index":20,"n_rows":174,"n_cols":24,"rows_kept":174,"cut":false,"hidden":true,"merged":[[7,16,25,16],[26,16,44,16],[0,13,1,13]]}
["Villes","Choix ","Taux de Glycol","Oui/Non","BDM / Montagne","Type Circuit","Type Chaudière","Bord de Mer / Montagne de base","Gamme de Pac","Type de logement","Cycle Al","Consigne AL",null,"Temperature eau froide","Chassis Pac",null,"Interface","n° circuit","Formules de validations des données","Formule","Titre Erreur","Msg Erreur",null,"Mise en forme conditionnelle"]
[null,null,null,null,null,null,null,null,null,null,null,null,null,null,null,null,null,null,"tBase"]
["01 - AMBERIEU",null,0,"Oui","Oui","Régulé","Condensation",null,"Effipac au R32","Logements privés","Oui","60°C / 1h",null,2,null,null,null,null,"distancePacBallon","=ET(ESTNUM(R16); R16=ARRONDI(R16; 0); R16>=R18; R16<=200)","Donnée non Valide","La Distance Pac / Ballon doit être un entier compris entre 0 et 200. Elle doit et supérieure à la distance Pac / Batiment."]
["02 - EPARCY",null,10,"Non","Non","Constant","Non Condensation",null,"Aptae au R290","Logements sociaux","Non","65°C / 4min",null,10,"S",null,null,null,"distancePacBatiment","=ET(ESTNUM(R18); R18=ARRONDI(R18; 0); R18>=0; R18<R16)","Donnée non Valide","La Distance Pac / Batiment doit être un entier compris entre 0 et 200. Elle doit et inférieure à la distance Pac / Ballon."]
["02 - ST QUENTIN",null,20,null,null,null,null,null,null,"Résidence seniors",null,"70°C / 2min",null,15,"M",null,null,null,"Hauteur de porte/ chaufferie","=ET(ESTNUM(R26); R26=ARRONDI(R26; 2); R26>=0; R26<5000)","Donnée non Valide","La Hauteur de porte/chaufferie doit être comprise entre 0 et 5m. Sa précision maximale doit être le centième."]
["03 - VICHY",null,30,null,null,null,null,null,null,null,null,null,null,null,"L",null,null,null,"Largeur de porte","=ET(ESTNUM(R28); R28=ARRONDI(R28; 2); R28>=0; R28<5000)","Donnée non Valide","La largeur de porte doit être comprise entre 0 et 5m. Sa précision maximale doit être le centième."]
["04 - ALLOS",null,40]
["05 - EMBRUN",null,50,null,null,null,null,null,null,null,null,null,null,null,null,null,"Elec","Circuit 1","Puissance Circuit","'=ET(ESTNUM(F46); F46=ARRONDI(F46; 1); 0<F46; F46<=1000)","Donnée non Valide","La Puissance doit être inférieure à 1000kW. La précision maximum autorisée est le dixième."]
["05 - GAP",null,null,null,null,null,null,null,null,null,null,null,null,null,null,null,null,null,"Consigne Depart","'=ET(ESTNUM(F48); F48=ARRONDI(F48; 0); 10<=F48; SI('Données Elec'!$D$13=1; SI(F44=\"Constant\"; F48<=55; F48<=60); SI(F44=\"Constant\"; F48<=70; F48<=75)))","Donnée non Valide","La consigne de départ doit être un entier compris entre 10 et 75°C. Selon le type de circuit et la gamme de Pac choisie, des limites supplémentaires peuvent s'appliquer.",null,"'=NON(SI('Données Elec'!$D$13=1; SI(F44=\"Constant\"; F48<=55; F48<=60); SI(F44=\"Constant\"; F48<=70; F48<=75)))"]
["05 - LARAGNE",null,null,null,null,null,null,null,null,null,null,null,null,null,null,null,null,null,"Delta T","'=ET(ESTNUM(F50); F50=ARRONDI(F50; 0); 1<=F50; F50<=40; F50<=F48)","Donnée non Valide","Le delta T doit être un entier compris entre 1 et 40 K ou Consigne de départ si consigne de départ < 40."]
["06 - ANDON-bas Thorenc","Bord de mer",null,null,null,null,null,false]
["06 - BREIL SUR ROYA","Bord de mer",null,null,null,null,null,true,null,null,null,null,null,null,null,null,null,"Circuit 2","Puissance Circuit","'=ET(ESTNUM(I46); I46=ARRONDI(I46; 1); 0<I46; I46<=1000)","Donnée non Valide","La Puissance doit être inférieure à 1000kW. La précision maximum autorisée est le dixième."]
["06 - GRASSE","Bord de mer",null,null,null,null,null,true,null,null,null,null,null,null,null,null,null,null,"Consigne Depart","'=ET(ESTNUM(I48); I48=ARRONDI(I48; 0); 10<=I48; SI('Données Elec'!$D$13=1; SI(I44=\"Constant\"; I48<=55; I48<=60); SI(I44=\"Constant\"; I48<=70; I48<=75)))","Donnée non Valide","La consigne de départ doit être un entier compris entre 10 et 75°C. Selon le type de circuit et la gamme de Pac choisie, des limites supplémentaires peuvent s'appliquer.",null,"'=NON(SI('Données Elec'!$D$13=1; SI(I44=\"Constant\"; I48<=55; I48<=60); SI(I44=\"Constant\"; I48<=70; I48<=75)))"]
["06 - ISOLA","Bord de mer",null,null,null,null,null,false,null,null,null,null,null,null,null,null,null,null,"Delta T","'=ET(ESTNUM(I50); I50=ARRONDI(I50; 0); 1<=I50; I50<=40; I50<=I48)","Donnée non Valide","Le delta T doit être un entier compris entre 1 et 40 K ou Consigne de départ si consigne de départ < 40."]
["06 - NICE","Bord de mer",null,null,null,null,null,true]
["06 - PUGET THENIERS","Bord de mer",null,null,null,null,null,true,null,null,null,null,null,null,null,null,null,"Circuit 3","Puissance Circuit","'=ET(ESTNUM(L46); L46=ARRONDI(L46; 1); 0<L46; L46<=1000)","Donnée non Valide","La Puissance doit être inférieure à 1000kW. La précision maximum autorisée est le dixième."]
["06 - ST DALMAS LE SELVAGE","Bord de mer",null,null,null,null,null,false,null,null,null,null,null,null,null,null,null,null,"Consigne Depart","'=ET(ESTNUM(L48); L48=ARRONDI(L48; 0); 10<=L48; SI('Données Elec'!$D$13=1; SI(L44=\"Constant\"; L48<=55; L48<=60); SI(L44=\"Constant\"; L48<=70; L48<=75)))","Donnée non Valide","La consigne de départ doit être un entier compris entre 10 et 75°C. Selon le type de circuit et la gamme de Pac choisie, des limites supplémentaires peuvent s'appliquer.",null,"'=NON(SI('Données Elec'!$D$13=1; SI(L44=\"Constant\"; L48<=55; L48<=60); SI(L44=\"Constant\"; L48<=70; L48<=75)))"]
["06 - ST ETIENNE DE THINEE-Auron","Bord de mer",null,null,null,null,null,false,null,null,null,null,null,null,null,null,null,null,"Delta T","'=ET(ESTNUM(L50); L50=ARRONDI(L50; 0); 1<=L50; L50<=40; L50<=L48)","Donnée non Valide","Le delta T doit être un entier compris entre 1 et 40 K ou Consigne de départ si consigne de départ < 40."]
["06 - VENCE","Bord de mer",null,null,null,null,null,true]
["07 - TOURNON",null,null,null,null,null,null,null,null,null,null,null,null,null,null,null,null,"Circuit 4","Puissance Circuit","'=ET(ESTNUM(O46); O46=ARRONDI(O46; 1); 0<O46; O46<=1000)","Donnée non Valide","La Puissance doit être inférieure à 1000kW. La précision maximum autorisée est le dixième."]
["08 - ROCROI",null,null,null,null,null,null,null,null,null,null,null,null,null,null,null,null,null,"Consigne Depart","'=ET(ESTNUM(O48); O48=ARRONDI(O48; 0); 10<=O48; SI('Données Elec'!$D$13=1; SI(O44=\"Constant\"; O48<=55; O48<=60); SI(O44=\"Constant\"; O48<=70; O48<=75)))","Donnée non Valide","La consigne de départ doit être un entier compris entre 10 et 75°C. Selon le type de circuit et la gamme de Pac choisie, des limites supplémentaires peuvent s'appliquer.",null,"'=NON(SI('Données Elec'!$D$13=1; SI(O44=\"Constant\"; O48<=55; O48<=60); SI(O44=\"Constant\"; O48<=70; O48<=75)))"]
["08 - SEDAN",null,null,null,null,null,null,null,null,null,null,null,null,null,null,null,null,null,"Delta T","'=ET(ESTNUM(O50); O50=ARRONDI(O50; 0); 1<=O50; O50<=40; O50<=O48)","Donnée non Valide","Le delta T doit être un entier compris entre 1 et 40 K ou Consigne de départ si consigne de départ < 40."]
["09 - ASTRON"]
["09 - AUZAT-PRADIERES",null,null,null,null,null,null,null,null,null,null,null,null,null,null,null,null,"Circuit 5","Puissance Circuit","'=ET(ESTNUM(R46); R46=ARRONDI(R46; 1); 0<R46; R46<=1000)","Donnée non Valide","La Puissance doit être inférieure à 1000kW. La précision maximum autorisée est le dixième."]
["09 - CONFLANS-SALAU",null,null,null,null,null,null,null,null,null,null,null,null,null,null,null,null,null,"Consigne Depart","'=ET(ESTNUM(R48); R48=ARRONDI(R48; 0); 10<=R48; SI('Données Elec'!$D$13=1; SI(R44=\"Constant\"; R48<=55; R48<=60); SI(R44=\"Constant\"; R48<=70; R48<=75)))","Donnée non Valide","La consigne de départ doit être un entier compris entre 10 et 75°C. Selon le type de circuit et la gamme de Pac choisie, des limites supplémentaires peuvent s'appliquer.",null,"'=NON(SI('Données Elec'!$D$13=1; SI(R44=\"Constant\"; R48<=55; R48<=60); SI(R44=\"Constant\"; R48<=70; R48<=75)))"]
["09 - L'HOSPITALET (Andorre)",null,null,null,null,null,null,null,null,null,null,null,null,null,null,null,null,null,"Delta T","'=ET(ESTNUM(R50); R50=ARRONDI(R50; 0); 1<=R50; R50<=40; R50<=R48)","Donnée non Valide","Le delta T doit être un entier compris entre 1 et 40 K ou Consigne de départ-9 si consigne de départ-9 < 40."]
["09 - MERENS LES VALS",null,null,null,null,null,null,null,null,null,null,null,null,null,null,null,"Hybride","Circuit 1","Puissance Circuit","'=ET(ESTNUM(F60); F60=ARRONDI(F60; 1); 0<F60; F60<=1000)","Donnée non Valide","La Puissance doit être inférieure à 1000kW. La précision maximum autorisée est le dixième."]
["09 - SAINT GIRONS",null,null,null,null,null,null,null,null,null,null,null,null,null,null,null,null,null,"Consigne Depart","'=ET(ESTNUM(F62); F62=ARRONDI(F62; 0); 10<=F62; SI('Données Hybride'!$D$13=1; SI(F56=\"Constant\"; F62<=55; F62<=60); SI(F56=\"Constant\"; F62<=70; F62<=75)))","Donnée non Valide","La consigne de départ doit être un entier compris entre 10 et 75°C. Selon le type de circuit et la gamme de Pac choisie, des limites supplémentaires peuvent s'appliquer.",null,"'=NON(SI('Données Hybride'!$D$13=1; SI(F56=\"Constant\"; F62<=55; F62<=60); SI(F56=\"Constant\"; F62<=70; F62<=75)))"]
["09 - SANTEIN-EYLIE",null,null,null,null,null,null,null,null,null,null,null,null,null,null,null,null,null,"Delta T","'=ET(ESTNUM(F64); F64=ARRONDI(F64; 0); 1<=F64; F64<=40; F64<=F62)","Donnée non Valide","Le delta T doit être un entier compris entre 1 et 40 K ou Consigne de départ si consigne de départ < 40."]
["10 - ROMILLY"]
["11 - CARCASSONNE","Bord de mer",null,null,null,null,null,false,null,null,null,null,null,null,null,null,null,"Circuit 2","Puissance Circuit","'=ET(ESTNUM(I60); I60=ARRONDI(I60; 1); 0<I60; I60<=1000)","Donnée non Valide","La Puissance doit être inférieure à 1000kW. La précision maximum autorisée est le dixième."]
["12 - MILLAU","Montagne",null,null,null,null,null,false,null,null,null,null,null,null,null,null,null,null,"Consigne Depart","'=ET(ESTNUM(I62); I62=ARRONDI(I62; 0); 10<=I62; SI('Données Hybride'!$D$13=1; SI(I56=\"Constant\"; I62<=55; I62<=60); SI(I56=\"Constant\"; I62<=70; I62<=75)))","Donnée non Valide","La consigne de départ doit être un entier compris entre 10 et 75°C. Selon le type de circuit et la gamme de Pac choisie, des limites supplémentaires peuvent s'appliquer.",null,"'=NON(SI('Données Hybride'!$D$13=1; SI(I56=\"Constant\"; I62<=55; I62<=60); SI(I56=\"Constant\"; I62<=70; I62<=75)))"]
["13 - ISTRES",null,null,null,null,null,null,null,null,null,null,null,null,null,null,null,null,null,"Delta T","'=ET(ESTNUM(I64); I64=ARRONDI(I64; 0); 1<=I64; I64<=40; I64<=I62)","Donnée non Valide","Le delta T doit être un entier compris entre 1 et 40 K ou Consigne de départ si consigne de départ < 40."]
["13 - PORT DE BOUC"]
["14 - CAEN",null,null,null,null,null,null,null,null,null,null,null,null,null,null,null,null,"Circuit 3","Puissance Circuit","'=ET(ESTNUM(L60); L60=ARRONDI(L60; 1); 0<L60; L60<=1000)","Donnée non Valide","La Puissance doit être inférieure à 1000kW. La précision maximum autorisée est le dixième."]
["15 - AURILLAC",null,null,null,null,null,null,null,null,null,null,null,null,null,null,null,null,null,"Consigne Depart","'=ET(ESTNUM(L62); L62=ARRONDI(L62; 0); 10<=L62; SI('Données Hybride'!$D$13=1; SI(L56=\"Constant\"; L62<=55; L62<=60); SI(L56=\"Constant\"; L62<=70; L62<=75)))","Donnée non Valide","La consigne de départ doit être un entier compris entre 10 et 75°C. Selon le type de circuit et la gamme de Pac choisie, des limites supplémentaires peuvent s'appliquer.",null,"'=NON(SI('Données Hybride'!$D$13=1; SI(L56=\"Constant\"; L62<=55; L62<=60); SI(L56=\"Constant\"; L62<=70; L62<=75)))"]
["15 - CHALVIGNAC L AIGLE",null,null,null,null,null,null,null,null,null,null,null,null,null,null,null,null,null,"Delta T","'=ET(ESTNUM(L64); L64=ARRONDI(L64; 0); 1<=L64; L64<=40; L64<=L62)","Donnée non Valide","Le delta T doit être un entier compris entre 1 et 40 K ou Consigne de départ si consigne de départ < 40."]
["15 - FERRIERES ST MARY"]
["15 - LAFEUILLADE EN VEZIE",null,null,null,null,null,null,null,null,null,null,null,null,null,null,null,null,"Circuit 4","Puissance Circuit","'=ET(ESTNUM(O60); O60=ARRONDI(O60; 1); 0<O60; O60<=1000)","Donnée non Valide","La Puissance doit être inférieure à 1000kW. La précision maximum autorisée est le dixième."]
["15 - LAVASTRIE GRANDVAL",null,null,null,null,null,null,null,null,null,null,null,null,null,null,null,null,null,"Consigne Depart","'=ET(ESTNUM(O62); O62=ARRONDI(O62; 0); 10<=O62; SI('Données Hybride'!$D$13=1; SI(O56=\"Constant\"; O62<=55; O62<=60); SI(O56=\"Constant\"; O62<=70; O62<=75)))","Donnée non Valide","La consigne de départ doit être un entier compris entre 10 et 75°C. Selon le type de circuit et la gamme de Pac choisie, des limites supplémentaires peuvent s'appliquer.",null,"'=NON(SI('Données Hybride'!$D$13=1; SI(O56=\"Constant\"; O62<=55; O62<=60); SI(O56=\"Constant\"; O62<=70; O62<=75)))"]
["15 - LE CLAUX",null,null,null,null,null,null,null,null,null,null,null,null,null,null,null,null,null,"Delta T","'=ET(ESTNUM(O64); O64=ARRONDI(O64; 0); 1<=O64; O64<=40; O64<=O62)","Donnée non Valide","Le delta T doit être un entier compris entre 1 et 40 K ou Consigne de départ si consigne de départ < 40."]
["15 - MARCOLES"]
["15 - MARMANHAC",null,null,null,null,null,null,null,null,null,null,null,null,null,null,null,null,"Circuit 5","Puissance Circuit","'=ET(ESTNUM(R60); R60=ARRONDI(R60; 1); 0<R60; R60<=1000)","Donnée non Valide","La Puissance doit être inférieure à 1000kW. La précision maximum autorisée est le dixième."]
["15 - MASSIAC",null,null,null,null,null,null,null,null,null,null,null,null,null,null,null,null,null,"Consigne Depart","'=ET(ESTNUM(R62); R62=ARRONDI(R62; 0); 10<=R62; SI('Données Hybride'!$D$13=1; SI(R56=\"Constant\"; R62<=55; R62<=60); SI(R56=\"Constant\"; R62<=70; R62<=75)))","Donnée non Valide","La consigne de départ doit être un entier compris entre 10 et 75°C. Selon le type de circuit et la gamme de Pac choisie, des limites supplémentaires peuvent s'appliquer.",null,"'=NON(SI('Données Hybride'!$D$13=1; SI(R56=\"Constant\"; R62<=55; R62<=60); SI(R56=\"Constant\"; R62<=70; R62<=75)))"]
["16 - ANGOULEME",null,null,null,null,null,null,null,null,null,null,null,null,null,null,null,null,null,"Delta T","'=ET(ESTNUM(R64); R64=ARRONDI(R64; 0); 1<=R64; R64<=40; R64<=R62)","Donnée non Valide","Le delta T doit être un entier compris entre 1 et 40 K ou Consigne de départ-9 si consigne de départ-9 < 40."]
["16 - COGNAC"]
["17 - LA ROCHELLE","Bord de mer",null,null,null,null,null,true]
["18 - BOURGES"]
["19 - BRIVES"]
["20 - AJACCIO-CAMPO DEL ORO"]
["20 - ALBERTACCE-POPAJA"]
["20 - CALVI STE CATHERINE"]
["20 - CARBINI-MARGHESE"]
["20 - PILA-CANALE"]
["20 - SARTENE-MADONINA"]
["20 - SOLENZARA"]
["21 - BAIGNEUX LES JUIFS"]
["21 - DIJON"]
["22 - ILE DE BREHAT"]
["22 - ROSTRENEN"]
["23 - GUERET-GRANCHER"]
["24 - BERGERAC"]
["25 - BESANCON"]
["26 - MONSEGUR/LAUZON"]
["26 - MONTELIMAR"]
["26 - NYON"]
["27 - EVREUX-HUEST"]
["28 - CHARTRES"]
["29 - BREST"]
["29 - FOUESNANT"]
["30 - NIMES"]
["31 - BAGNERES DE LUCHON"]
["31 - TOULOUSE"]
["31 - TOULOUSE-BLAGNAC"]
["32 - AUCH"]
["33 - BORDEAUX","Bord de mer",null,null,null,null,null,true]
["33 - CAZAUX","Bord de mer",null,null,null,null,null,true]
["34 - MONTPELLIER"]
["35 - RENNES-ST JACQUES","Bord de mer",null,null,null,null,null,false]
["36 - CHATEAUROUX"]
["37 - TOURS"]
["38 - ALPES DE VENOSC"]
["38 - GRENOBLE-EYBENS"]
["38 - LA COTE ST ANDRE"]
["38 - VIENNE"]
["39 - ST CLAUDE - ETABLE"]
["40 - MONT DE MARSAN","Bord de mer",null,null,null,null,null,false]
["41 - BLOIS"]
["42 - ST ETIENNE-BOUTHEON"]
["43 - LE PUY-LOUDES"]
["44 - ESCOUBLAC-LA BAULE","Bord de mer",null,null,null,null,null,true]
["44 - NANTES-Chateau Bougon","Bord de mer",null,null,null,null,null,true]
["45 - ORLEANS"]
["46 - GOURDON"]
["47 - AGEN"]
["48 - MENDE-BRENOUX"]
["49 - ANGERS",null,null,null,null,null,null,false]
["50 - CHERBOURG"]
["51 - REIMS"]
["52 - CHAUMONT"]
["53 - LAVAL-ENTRAMMES"]
["54 - NANCY-ESSEY"]
["55 - HAUDIOMONT"]
["56 - LORIENT-LANN BIHOUE"]
["57 - METZ-FRESCATY"]
["58 - NEVERS"]
["59 - DUNKERQUE"]
["59 - LILLE"]
["60 - BEAUVAIS-TILLE"]
["61 - ALENCON"]
["62 - BOULOGNE"]
["63 - AUZAT sur Allier-La Combelle"]
["63 - CHATEAUNEUF LES BAINS"]
["63 - CLERMONT-FERRAND-Aulnat"]
["63 - EGLISENEUVE D ENGRAYGUES"]
["63 - LE MONT DORE"]
["63 - PICHERANDE"]
["63 - SAINT ANTHEME"]
["63 - SAINT NECTAIRE"]
["63 - VIVEROLS"]
["64 - BIARRITZ"]
["64 - LARUNS"]
["64 - PAU"]
["65 - GEDRE"]
["65 - LASSOULA"]
["65 - TARBES OSSUN"]
["66 - FONT ROMEU","Bord de mer",null,null,null,null,null,false]
["66 - PERPIGNAN","Bord de mer",null,null,null,null,null,true]
["66 - PRATS DE MOLLO","Bord de mer",null,null,null,null,null,false]
["67 - STRASBOURG Enteheim"]
["68 - COLMAR-MEYENHEIM"]
["69 - LYON"]
["70 - LUXEUIL"]
["71 - CHALON SUR SAONE"]
["71 - LA GUICHE"]
["71 - MACON"]
["71 - MONT ST VINCENT"]
["72 - LE MANS"]
["73 - CHALLES-LES-EAUX"]
["74 - ANNECY"]
["74 - ANNEMASSE"]
["74 - THONON-LES-BAINS"]
["74 - USINENS"]
["75 - PARIS-MONTSOURIS"]
["75 - PARIS-TOUR ST JACQUES"]
["76 - CAP DE LA HEVE"]
["76 - ROUEN"]
["77 - MELUN"]
["78 - TRAPPES"]
["79 - NIORT"]
["80 - ABBEVILLE"]
["81 - ALBI"]
["82 - MONTAUBAN"]
["83 - BRIGNOLES","Bord de mer",null,null,null,null,null,false]
["83 - COLLOBRIERES","Bord de mer",null,null,null,null,null,true]
["83 - DRAGUIGNAN","Bord de mer",null,null,null,null,null,false]
["83 - PLAN D AUPS","Bord de mer",null,null,null,null,null,false]
["84 - APT"]
["84 - AVIGNON-MONTFAVET"]
["84 - CAVAILLON"]
["84 - GORDES"]
["85 - LES SABLES D OLONNES","Bord de mer",null,null,null,null,null,true]
["86 - POITIERS"]
["87 - LIMOGES"]
["88 - EPINAL"]
["89 - AUXERRE"]
["90 - BELFORT"]
["91 - BRETIGNY SUR ORGE"]
["91 - ORLY"]
["92 - NANTERRE"]
["93 - ST-DENIS"]
["94 - CRETEIL"]
["95 - LE BOURGET"]
["95 - PONTOISE CORMELLES"]

{"sheet":"Informations Devis","index":21,"n_rows":148,"n_cols":5,"rows_kept":148,"cut":false,"hidden":true,"merged":[]}
[]
[]
[]
["Code","Nom Commercial","Nom Interface","NomDevis","Nb Brides\n(pour les ballons)"]
["090860","Effipac 14","Effipac 14","Effipac 14"]
["090862","Effipac 18","Effipac 18","Effipac 18"]
["090864","Effipac 26","Effipac 26","Effipac 26"]
["090867","Effipac 32","Effipac 32","Effipac 32"]
["090870","Effipac 50","Effipac 50","Effipac 50"]
["090873","Effipac 70","Effipac 70","Effipac 70"]
["090861","Effipac 14 AC","Effipac 14 AC","Effipac 14 AC"]
["090863","Effipac 18 AC","Effipac 18 AC","Effipac 18 AC"]
["090865","Effipac 26 AC","Effipac 26 AC","Effipac 26 AC"]
["090868","Effipac 32 AC","Effipac 32 AC","Effipac 32 AC"]
["090871","Effipac 50 AC","Effipac 50 AC","Effipac 50 AC"]
["090874","Effipac 70 AC","Effipac 70 AC","Effipac 70 AC"]
["092308","Effipac 14","Effipac 14","Effipac 14 Hybride"]
["092309","Effipac 18","Effipac 18","Effipac 18 Hybride"]
["092310","Effipac 26","Effipac 26","Effipac 26 Hybride"]
["092311","Effipac 32","Effipac 32","Effipac 32 Hybride"]
["092312","Effipac 50","Effipac 50","Effipac 50 Hybride"]
["092313","Effipac 70","Effipac 70","Effipac 70 Hybride"]
["092314","Effipac 14 AC","Effipac 14 AC","Effipac 14 AC Hybride"]
["092315","Effipac 18 AC","Effipac 18 AC","Effipac 18 AC Hybride"]
["092316","Effipac 26 AC","Effipac 26 AC","Effipac 26 AC Hybride"]
["092317","Effipac 32 AC","Effipac 32 AC","Effipac 32 AC Hybride"]
["092318","Effipac 50 AC","Effipac 50 AC","Effipac 50 AC Hybride"]
["092319","Effipac 70 AC","Effipac 70 AC","Effipac 70 AC Hybride"]
["043806","Bouteille Effi 100L","Bouteille Effi 100L","Bouteille Effi 100L",0]
["043807","Bouteille Effi 200L","Bouteille Effi 200L","Bouteille Effi 200L",0]
["520345","Corflex Effi 0B 500L SM1","Corflex Effi 0B 500L SM1","Corflex Effi 0B 500L SM1",0]
["520346","Corflex Effi 3B 500L SM1","Corflex Effi 3B 500L SM1","Corflex Effi 3B 500L SM1",3]
["520369","Corflex Effi 0B 900L SM1","Corflex Effi 0B 900L SM1","Corflex Effi 0B 900L SM1",0]
["520347","Corflex Effi 2B 900L SM1","Corflex Effi 2B 900L SM1","Corflex Effi 2B 900L SM1",2]
["520348","Corflex Effi 2B 1500L SM1","Corflex Effi 2B 1500L SM1","Corflex Effi 2B 1500L SM1",2]
["030332","Résistance blindée 6kw pac chauffage","6 kW","Résistance blindée 6kw"]
["029844","Résistance blindée 15kw pac chauffage","15 kW","Résistance blindée 15kw"]
["029845","Résistance blindée 30kw pac chauffage","30 kW","Résistance blindée 30kw"]
["059261","QAZ36 - Sonde départ système","QAZ36 - Sonde départ système","QAZ 36 - Sonde départ système"]
["059260","QAC34 - Sonde extérieure","QAC34 - Sonde extérieure","QAC 34 - Sonde extérieure"]
["059592","QAD 36 - Sonde circuit régulé","QAD 36 - Sonde circuit régulé","QAD 36 - Sonde circuit régulé"]
["059752","Interface de communication OCI 345","Interface de communication OCI 345","Interface de communication LPB OCI 345"]
["040941",null,null,"Kit RVS 63"]
["040943",null,null,"Kit RVS 46"]
["059775","Module d'extension de pilotage circuit chauffage AVS75","Module d'extension de pilotage circuit chauffage AVS75","Module d'extension de pilotage circuit chauffage (AVS75)"]
["091471","Bouton marche forcée","Bouton marche forcée","Bouton de marche forcéedes resistances"]
["030497","KIT DOIGT DE GANT RETOUR PAC 1\"1/4","KIT DOIGT DE GANT RETOUR PAC 1\"1/4","Kit doigt de gants retour Pac 1\"1/4"]
["030498","KIT DOIGT DE GANT RETOUR PAC 2\"1/2","KIT DOIGT DE GANT RETOUR PAC 2\"1/2","Kit doigt de gants retour Pac 2\"1/2"]
["030499","KIT DOIGT DE GANT RETOUR PAC 3\"","KIT DOIGT DE GANT RETOUR PAC 3\"","Kit doigt de gants retour Pac 3\""]
["092038","Kit antivibratile 14-18 kw","Kit antivibratile 14-18 kw","Supports anti-vibratiles châssis S"]
["092039","Kit antivibratile 26-32 kw","Kit antivibratile 26-32 kw","Supports anti-vibratiles châssis M"]
["092040","Kit antivibratile 50-70 kw","Kit antivibratile 50-70 kw","Supports anti-vibratiles châssis L"]
["030527",null,null,"Support sur-étanchéité châssis S"]
["030528",null,null,"Support sur-étanchéité châssis M"]
["030529",null,null,"Support sur-étanchéité châssis L"]
["030530",null,null,"Support sous-étanchéité châssis S"]
["030531",null,null,"Support sous-étanchéité châssis M"]
["030532",null,null,"Support sous-étanchéité châssis L"]
["074977",null,null,"Vanne de réglage châssis S"]
["074978",null,null,"Vanne de réglage châssis M"]
["074979",null,null,"Vanne de réglage châssis L"]
["059833","Navipass MODBUS","Navipass MODBUS","Navipass MODBUS"]
["092000",null,null,"Kit raccord hydraulique châssis L"]
["074976",null,null,"Relais temporisé"]
["880320","Mise en service Effipac ou Hydramax Effipac","Mise en service Effipac ou Hydramax Effipac","Mise en service d'une Effipac"]
["880321","Mise en service Effipac ou Hydramax Effipac supplémentaire","Mise en service Effipac ou Hydramax Effipac supplémentaire","Mise en service d'une Effipac supplémentaire"]
["880322","Pré-visite Effipac ou Hydramax Effipac","Pré-visite Effipac ou Hydramax Effipac","Pré-visite d'installation"]
["880323","Assistance installation Effipac ou Hydramax Effipac","Assistance installation Effipac ou Hydramax Effipac","Assistance à l'installation"]
["080013","Mise a terre avec hayon","Mise a terre avec hayon","Mise à terre avec hayon"]
["090839","Aptae 15","Aptae 15","Aptae 15"]
["090841","Aptae 18","Aptae 18","Aptae 18"]
["090843","Aptae 23","Aptae 23","Aptae 23"]
["090845","Aptae 27","Aptae 27","Aptae 27"]
["090847","Aptae 40","Aptae 40","Aptae 40"]
["090849","Aptae 50","Aptae 50","Aptae 50"]
["090840","Aptae 15 AC","Aptae 15 AC","Aptae 15 AC"]
["090842","Aptae 18 AC","Aptae 18 AC","Aptae 18 AC"]
["090844","Aptae 23 AC","Aptae 23 AC","Aptae 23 AC"]
["090846","Aptae 27 AC","Aptae 27 AC","Aptae 27 AC"]
["090848","Aptae 40 AC","Aptae 40 AC","Aptae 40 AC"]
["090850","Aptae 50 AC","Aptae 50 AC","Aptae 50 AC"]
["930102","Neofirst 500 BR SM1","Neofirst 500 BR SM1","Neofirst 500 BR SM1"]
["930103","Neofirst 750 BR SM1","Neofirst 750 BR SM1","Neofirst 750 BR SM1"]
["930104","Neofirst 900 BR SM1","Neofirst 900 BR SM1","Neofirst 900 BR SM1"]
["930105","Neofirst 1000 BR SM1","Neofirst 1000 BR SM1","Neofirst 1000 BR SM1"]
["930106","Neofirst 1500 BR SM1","Neofirst 1500 BR SM1","Neofirst 1500 BR SM1"]
["930107","Neofirst 2000 BR SM1","Neofirst 2000 BR SM1","Neofirst 2000 BR SM1"]
["930120","Neoflow 500 BR SM1","Neoflow 500 BR SM1","Neoflow 500 BR SM1"]
["930121","Neoflow 750 BR SM1","Neoflow 750 BR SM1","Neoflow 750 BR SM1"]
["930122","Neoflow 900 BR SM1","Neoflow 900 BR SM1","Neoflow 900 BR SM1"]
["930123","Neoflow 1000 BR SM1","Neoflow 1000 BR SM1","Neoflow 1000 BR SM1"]
["930124","Neoflow 1500 BR SM1","Neoflow 1500 BR SM1","Neoflow 1500 BR SM1"]
["930125","Neoflow 2000 BR SM1","Neoflow 2000 BR SM1","Neoflow 2000 BR SM1"]
["930126","Neoflow 2500 BR SM1","Neoflow 2500 BR SM1","Neoflow 2500 BR SM1"]
["930127","Neoflow 3000 BR SM1","Neoflow 3000 BR SM1","Neoflow 3000 BR SM1"]
["520434","Corhydro 500L SM1","Corhydro 500L SM1","Corhydro 500L SM1"]
["520435","Corhydro 750L SM1","Corhydro 750L SM1","Corhydro 750L SM1"]
["520650","Corhydro 900L SM1","Corhydro 900L SM1","Corhydro 900L SM1"]
["520436","Corhydro 1000L SM1","Corhydro 1000L SM1","Corhydro 1000L SM1"]
["520437","Corhydro 1000L TB SM1","Corhydro 1000L TB SM1","Corhydro 1000L TB SM1"]
["520480","Corhydro 1500L SM1","Corhydro 1500L SM1","Corhydro 1500L SM1"]
["520439","Corhydro 1500L TB SM1","Corhydro 1500L TB SM1","Corhydro 1500L TB SM1"]
["520440","Corhydro 2000L SM1","Corhydro 2000L SM1","Corhydro 2000L SM1"]
["520441","Corhydro 2500L SM1","Corhydro 2500L SM1","Corhydro 2500L SM1"]
["520442","Corhydro 2500L TB SM1","Corhydro 2500L TB SM1","Corhydro 2500L TB SM1"]
["520443","Corhydro 3000L SM1","Corhydro 3000L SM1","Corhydro 3000L SM1"]
["520444","Corhydro 3000L TB SM1","Corhydro 3000L TB SM1","Corhydro 3000L TB SM1"]
["090950","IZEA 15","IZEA 15","IZEA 15"]
["090951","IZEA 15 AC","IZEA 15 AC","IZEA 15 AC"]
["090952","IZEA 18","IZEA 18","IZEA 18"]
["090953","IZEA 18 AC","IZEA 18 AC","IZEA 18 AC"]
["090954","IZEA 23","IZEA 23","IZEA 23"]
["090955","IZEA 23 AC","IZEA 23 AC","IZEA 23 AC"]
["090956","IZEA 27","IZEA 27","IZEA 27"]
["090957","IZEA 27 AC","IZEA 27 AC","IZEA 27 AC"]
["090958","IZEA 40","IZEA 40","IZEA 40"]
["090959","IZEA 40 AC","IZEA 40 AC","IZEA 40 AC"]
["090960","IZEA 50","IZEA 50","IZEA 50"]
["090961","IZEA 50 AC","IZEA 50 AC","IZEA 50 AC"]
["950109","Elara 1 CO 500 TP SM1","Elara 1 CO 500 TP SM1","Elara 1 CO 500 TP SM1"]
["950110","Elara 1 CO 750 TP SM1","Elara 1 CO 750 TP SM1","Elara 1 CO 750 TP SM1"]
["950111","Elara 1 CO 900 TP SM1","Elara 1 CO 900 TP SM1","Elara 1 CO 900 TP SM1"]
["950112","Elara 1 CO 1000 TP SM1","Elara 1 CO 1000 TP SM1","Elara 1 CO 1000 TP SM1"]
["950113","Elara 1 CO 1500 TP SM1","Elara 1 CO 1500 TP SM1","Elara 1 CO 1500 TP SM1"]
["950114","Elara 1 CO 2000 TP SM1","Elara 1 CO 2000 TP SM1","Elara 1 CO 2000 TP SM1"]
["950116","Elara 1+ 500 TP SM1","Elara 1+ 500 TP SM1","Elara 1+ 500 TP SM1"]
["950117","Elara 1+ 750 TP SM1","Elara 1+ 750 TP SM1","Elara 1+ 750 TP SM1"]
["950118","Elara 1+ 900 TP SM1","Elara 1+ 900 TP SM1","Elara 1+ 900 TP SM1"]
["950119","Elara 1+ 1000 TP SM1","Elara 1+ 1000 TP SM1","Elara 1+ 1000 TP SM1"]
["950120","Elara 1+ 1500 TP SM1","Elara 1+ 1500 TP SM1","Elara 1+ 1500 TP SM1"]
["950121","Elara 1+ 2000 TP SM1","Elara 1+ 2000 TP SM1","Elara 1+ 2000 TP SM1"]
["950122","Elara 1+ 2500 TP SM1","Elara 1+ 2500 TP SM1","Elara 1+ 2500 TP SM1"]
["950123","Elara 1+ 3000 TP SM1","Elara 1+ 3000 TP SM1","Elara 1+ 3000 TP SM1"]
[520274,"BOUTEILLE P MAX 100L","BOUTEILLE P MAX 100L","BOUTEILLE P MAX 100L",0]
["520275","BOUTEILLE P MAX 200L","BOUTEILLE P MAX 200L","BOUTEILLE P MAX 200L",0]
[520351,"LCT P MAX 500 L 0TP SM1","LCT P MAX 500 L 0TP SM1","LCT P MAX 500 L 0TP SM1",0]
[520403,"LCT P MAX 500L 3TP SM1","LCT P MAX 500L 3TP SM1","LCT P MAX 500L 3TP SM1",3]
[520372,"LCT P MAX 900 L 0TP SM1","LCT P MAX 900 L 0TP SM1","LCT P MAX 900 L 0TP SM1",0]
[520404,"LCT P MAX 900L 2TP SM1","LCT P MAX 900L 2TP SM1","LCT P MAX 900L 2TP SM1",2]
[520405,"LCT P MAX 1500L 2TP SM1","LCT P MAX 1500L 2TP SM1","LCT P MAX 1500L 2TP SM1",2]
["065227","LCT 500 TP M1","LCT 500 TP M2","LCT 500 TP M3"]
["065228","LCT 750 TP M1","LCT 750 TP M2","LCT 750 TP M3"]
["065229","LCT 900 TP M2","LCT 900 TP M3","LCT 900 TP M4"]
["065230","LCT 1000 TP M3","LCT 1000 TP M4","LCT 1000 TP M5"]
["065232","LCT 1500 TP M4","LCT 1500 TP M5","LCT 1500 TP M6"]
["065234","LCT 2000 TP M5","LCT 2000 TP M6","LCT 2000 TP M7"]
["065235","LCT 2500 TP M6","LCT 2500 TP M7","LCT 2500 TP M8"]
["065237","LCT 3000 TP M7","LCT 3000 TP M8","LCT 3000 TP M9"]

{"sheet":"Schématèque","index":22,"n_rows":30,"n_cols":4,"rows_kept":30,"cut":false,"hidden":true,"merged":[]}
["Aide","Racine système : EF\nNombre de PAC : chiffre 1 pour une seule PAC  / chiffre 2 pour représentation de 2 PAC  en cascade\nNombre de volume primaire : de 1 à 3  (limité à la schémathèque)\nNombre d’appoint électrique : de 2 à 5 (limité à la schémathèque)\nNombre de circuit de chauffage :  1 ou 3 (limité à la schémathèque)\nPilotage de l’installation : T3100 ou T3100(Rext)","1 Pac OU Cascade\n1 ou 2 volumes primaires\n2 ou 5 appoins Electriques\n1 ou 3 Circuits"]
["Schema Affiché",211511,"Formula",{"$f":"INDEX(Schématèque!$B$3:$B$22,_xlfn.XMATCH(Schématèque!$B$2,Schématèque!$A$3:$A$22))","v":{"$error":"#N/A"}}]
["00_0000_00000",{"$error":"#VALUE!"}]
["EF2123_T3100",{"$error":"#VALUE!"}]
["EF2223_T3100",{"$error":"#VALUE!"}]
["EF2253_T3100",{"$error":"#VALUE!"}]
["EF2353_T3100",{"$error":"#VALUE!"}]
["AP2123_T3100",{"$error":"#VALUE!"}]
["AP2223_T3100",{"$error":"#VALUE!"}]
["AP2253_T3100",{"$error":"#VALUE!"}]
["AP2353_T3100",{"$error":"#VALUE!"}]
["HYB200",{"$error":"#VALUE!"}]
["HYB400",{"$error":"#VALUE!"}]
["HYB401",{"$error":"#VALUE!"}]
["S-021_AP(L)_3123_ECS1_T4100",{"$error":"#VALUE!"}]
["S-021_AP(L)_3123_ECS2_T4100",{"$error":"#VALUE!"}]
["S-021_AP(L)_3223_ECS1_T4100",{"$error":"#VALUE!"}]
["S-021_AP(L)_3223_ECS2_T4100",{"$error":"#VALUE!"}]
["S-021_AP(L)_3253_ECS1_T4100",{"$error":"#VALUE!"}]
["S-021_AP(L)_3253_ECS2_T4100",{"$error":"#VALUE!"}]
["S-021_AP(L)_3353_ECS1_T4100",{"$error":"#VALUE!"}]
["S-021_AP(L)_3353_ECS2_T4100",{"$error":"#VALUE!"}]
["S-012_AP(L)_2120_ECS1_T3100",{"$error":"#VALUE!"}]
["S-012_AP(L)_2120_ECS2_T3100",{"$error":"#VALUE!"}]
["S-012_AP(L)_2220_ECS1_T3100",{"$error":"#VALUE!"}]
["S-012_AP(L)_2220_ECS2_T3100",{"$error":"#VALUE!"}]
["S-012_AP(L)_2250_ECS1_T3100",{"$error":"#VALUE!"}]
["S-012_AP(L)_2250_ECS2_T3100",{"$error":"#VALUE!"}]
["S-012_AP(L)_2350_ECS1_T3100",{"$error":"#VALUE!"}]
["S-012_AP(L)_2350_ECS2_T3100",{"$error":"#VALUE!"}]

{"sheet":"ImageDimensionsPac","index":23,"n_rows":9,"n_cols":4,"rows_kept":9,"cut":false,"hidden":true,"merged":[]}
[]
["ImageDimensionsPac A Afficher","AHP70_","Formula",{"$f":"INDEX(ImageDimensionsPac!$B$3:$B$6,_xlfn.XMATCH(ImageDimensionsPac!$B$2,ImageDimensionsPac!$A$3:$A$6))","v":{"$error":"#N/A"}}]
["X",{"$error":"#VALUE!"}]
["Effipac_S",{"$error":"#VALUE!"}]
["Effipac_M",{"$error":"#VALUE!"}]
["Effipac_L",{"$error":"#VALUE!"}]
["IZEA_S",{"$error":"#VALUE!"}]
["IZEA_M",{"$error":"#VALUE!"}]
["IZEA_L",{"$error":"#VALUE!"}]